{"text_format":"1","workbook":"xlsx","n_sheets":12,"sheets":["8.1","8.2-8.3","8.4","8.5","8.6","8.8","8.9","8.10","8.12","8.13-8.14","8.16-8.18","US Regions"],"not_rendered":{"charts":24,"images":1,"macros":0,"external_links":0,"defined_names":0,"comments":0,"pivot_tables":0},"unopened":[],"bounds":{"document_bytes":16777216,"sheet_cells":100000,"rows_first":2000,"rows_last":500,"rows_between":2000,"halvings":0,"cell_chars":16384,"cell_head_chars":4096},"cells_cut":0,"cells_raw":0,"read":"whole","date_system":"1900"}

{"sheet":"8.1","index":0,"n_rows":69,"n_cols":18,"rows_kept":69,"cut":false,"hidden":false,"merged":[[5,5,5,6],[3,7,3,8],[4,7,4,8],[2,0,2,8],[65,0,65,8],[5,7,5,8],[3,3,4,6],[5,1,5,2],[3,1,3,2],[64,0,64,8],[4,1,4,2],[5,3,5,4]]}
["Table with row headings in column A and column headings in rows 5 to 10."]
["Percentage of People in Poverty by State Using 2- and 3-Year Averages:  2010-2011 and 2012-2013",null,null,null,null,null,null,null,null,null,"Get the data:",null,"page:","https://goo.gl/NVHjAn",null,null,"XLS:","https://goo.gl/RlQyUf"]
["(People as of March of the following year.  For information on confidentiality protection, sampling error, nonsampling error, and definitions, see see ftp://ftp2.census.gov/programs-surveys/cps/techdocs/cpsmar14.pdf)"]
[null,null,null,"2-year average",null,null,null,"Change in percentage points"]
[null,"3-year average",null,null,null,null,null,"(2012-2013 average less"]
["State","2011-20131",null,"2010–2011",null,"2012–2013",null,"2010-2011 average)3",null,null,null,"PERCENTAGE OF PEOPLE IN POVERTY "]
[null,null,"90 percent",null,"90 percent",null,"90 percent",null,"90 percent",null,null,"UNITED STATES",null,null,null,null,"MARYLAND"]
[null,null,"confidence",null,"confidence",null,"confidence",null,"confidence"]
[null,"Percentage","interval2 (+/-)","Percentage","interval2 (+/-)","Percentage","interval2 (+/-)","Percentage","interval2 (+/-)"]
[]
["     United States…….",14.8,0.2,15.1,0.2,14.7,0.2,"*-0.3",0.3]
["Alabama",16.100000000000001,1.2,16.3,2.1,16.399999999999999,1.3,0.2,2.2999999999999998,{"$f":"VLOOKUP(A12,'US Regions'!$B$23:$F$73,5,FALSE)","v":"AL"}]
["Alaska",10.9,1.5,12.1,1.9,10.5,1.9,-1.6,2.5,{"$f":"VLOOKUP(A13,'US Regions'!$B$23:$F$73,5,FALSE)","v":"AK"}]
["Arizona",18.8,1.9,18,2.2999999999999998,19.600000000000001,2.1,1.6,2.1,{"$f":"VLOOKUP(A14,'US Regions'!$B$23:$F$73,5,FALSE)","v":"AZ"}]
["Arkansas",18.7,2.2999999999999998,17,2.1,18.600000000000001,2.7,1.6,2.2999999999999998,{"$f":"VLOOKUP(A15,'US Regions'!$B$23:$F$73,5,FALSE)","v":"AR"}]
["California",15.9,0.5,16.600000000000001,0.7,15.4,0.6,"*-1.2",0.8,{"$f":"VLOOKUP(A16,'US Regions'!$B$23:$F$73,5,FALSE)","v":"CA"}]
["Colorado",11.9,1.2,12.7,1.5,11.2,1.4,-1.5,1.5,{"$f":"VLOOKUP(A17,'US Regions'!$B$23:$F$73,5,FALSE)","v":"CO"}]
["Connecticut",10.6,1,9.3000000000000007,1.2,10.8,1.1000000000000001,"*1.5",1.3,{"$f":"VLOOKUP(A18,'US Regions'!$B$23:$F$73,5,FALSE)","v":"CT"}]
["Delaware",13.7,1.2,12.9,1.3,13.7,1.5,0.8,2,{"$f":"VLOOKUP(A19,'US Regions'!$B$23:$F$73,5,FALSE)","v":"DE"}]
["District of Columbia",19.899999999999999,1.5,19.7,1.8,19.899999999999999,1.8,0.2,2.2999999999999998,{"$f":"VLOOKUP(A20,'US Regions'!$B$23:$F$73,5,FALSE)","v":"DC"},null,"PERCENTAGE OF PEOPLE IN POVERTY BY STATE"]
["Florida",15,0.8,15.4,0.9,15.1,0.9,-0.4,1.1000000000000001,{"$f":"VLOOKUP(A21,'US Regions'!$B$23:$F$73,5,FALSE)","v":"FL"}]
["Georgia",17.600000000000001,1.2,18.600000000000001,1.5,17.2,1.5,-1.4,2.1,{"$f":"VLOOKUP(A22,'US Regions'!$B$23:$F$73,5,FALSE)","v":"GA"}]
["Hawaii",12.3,1.4,12.2,1.7,12.5,1.7,0.2,1.9,{"$f":"VLOOKUP(A23,'US Regions'!$B$23:$F$73,5,FALSE)","v":"HI"}]
["Idaho",14.4,2,14.8,2.2999999999999998,13.7,2.2000000000000002,-1.1000000000000001,2.7,{"$f":"VLOOKUP(A24,'US Regions'!$B$23:$F$73,5,FALSE)","v":"ID"}]
["Illinois",13.4,1,14.1,1,12.9,1.1000000000000001,-1.2,1.3,{"$f":"VLOOKUP(A25,'US Regions'!$B$23:$F$73,5,FALSE)","v":"IL"}]
["Indiana",14.1,1.3,15.9,1.9,13.4,1.4,"*-2.5",2,{"$f":"VLOOKUP(A26,'US Regions'!$B$23:$F$73,5,FALSE)","v":"IN"}]
["Iowa",10.5,0.9,10.4,1.1000000000000001,10.5,1,0.2,1.2,{"$f":"VLOOKUP(A27,'US Regions'!$B$23:$F$73,5,FALSE)","v":"IA"}]
["Kansas",13.8,1.3,14.4,2,13.6,1.3,-0.8,1.9,{"$f":"VLOOKUP(A28,'US Regions'!$B$23:$F$73,5,FALSE)","v":"KS"}]
["Kentucky",18,1.6,16.8,2,18.899999999999999,1.8,2.1,2.2999999999999998,{"$f":"VLOOKUP(A29,'US Regions'!$B$23:$F$73,5,FALSE)","v":"KY"}]
["Louisiana",20.5,2.6,21.3,2.1,20.2,2.9,-1.1000000000000001,2.4,{"$f":"VLOOKUP(A30,'US Regions'!$B$23:$F$73,5,FALSE)","v":"LA"}]
["Maine",12.8,1.2,13,1.5,12.5,1.4,-0.5,1.8,{"$f":"VLOOKUP(A31,'US Regions'!$B$23:$F$73,5,FALSE)","v":"ME"}]
["Maryland",9.8000000000000007,0.8,10.1,1.1000000000000001,10.1,1,0.1,1.5,{"$f":"VLOOKUP(A32,'US Regions'!$B$23:$F$73,5,FALSE)","v":"MD"},null,"Source: U.S. Census Bureau"]
["Massachusetts",11.3,1.1000000000000001,10.7,1.3,11.6,1.4,0.9,1.8,{"$f":"VLOOKUP(A33,'US Regions'!$B$23:$F$73,5,FALSE)","v":"MA"}]
["Michigan",14.4,1.2,15.3,1.4,14.1,1.4,-1.2,1.9,{"$f":"VLOOKUP(A34,'US Regions'!$B$23:$F$73,5,FALSE)","v":"MI"}]
["Minnesota",10.7,1,10.4,1.2,11,1.1000000000000001,0.6,1.4,{"$f":"VLOOKUP(A35,'US Regions'!$B$23:$F$73,5,FALSE)","v":"MN"}]
["Mississippi",20.6,2.1,20,1.7,22.2,2.4,"*2.3",2.1,{"$f":"VLOOKUP(A36,'US Regions'!$B$23:$F$73,5,FALSE)","v":"MS"}]
["Missouri",14.8,1.9,15.2,2.2000000000000002,14.5,2.1,-0.7,2.2000000000000002,{"$f":"VLOOKUP(A37,'US Regions'!$B$23:$F$73,5,FALSE)","v":"MO"}]
["Montana",14.8,2,15.5,2.4,14,2.2000000000000002,-1.5,2.2999999999999998,{"$f":"VLOOKUP(A38,'US Regions'!$B$23:$F$73,5,FALSE)","v":"MT"}]
["Nebraska",11.2,1.5,10.199999999999999,1.7,11.6,1.6,1.4,1.9,{"$f":"VLOOKUP(A39,'US Regions'!$B$23:$F$73,5,FALSE)","v":"NE"}]
["Nevada",16.2,1.4,16,1.8,16.600000000000001,1.8,0.6,2.5,{"$f":"VLOOKUP(A40,'US Regions'!$B$23:$F$73,5,FALSE)","v":"NV"}]
["New Hampshire",8.3000000000000007,0.9,7.1,1,8.6,1,"*1.5",1.3,{"$f":"VLOOKUP(A41,'US Regions'!$B$23:$F$73,5,FALSE)","v":"NH"}]
["New Jersey",10.6,1,11.2,1.3,10.199999999999999,1.2,-1,1.6,{"$f":"VLOOKUP(A42,'US Regions'!$B$23:$F$73,5,FALSE)","v":"NJ"}]
["New Mexico",21.4,2.2000000000000002,20.2,2.2000000000000002,21,2.8,0.8,3.4,{"$f":"VLOOKUP(A43,'US Regions'!$B$23:$F$73,5,FALSE)","v":"NM"}]
["New York",15.9,0.7,16,1,15.9,0.9,-0.1,1.3,{"$f":"VLOOKUP(A44,'US Regions'!$B$23:$F$73,5,FALSE)","v":"NY"}]
["North Carolina",17,1.7,16.399999999999999,1.6,17.899999999999999,2,1.5,2,{"$f":"VLOOKUP(A45,'US Regions'!$B$23:$F$73,5,FALSE)","v":"NC"}]
["North Dakota",10.4,1.4,11.3,1.5,10.6,1.2,-0.6,1.3,{"$f":"VLOOKUP(A46,'US Regions'!$B$23:$F$73,5,FALSE)","v":"ND"}]
["Ohio",14.7,1.3,15.2,1.6,14.5,1.4,-0.7,1.5,{"$f":"VLOOKUP(A47,'US Regions'!$B$23:$F$73,5,FALSE)","v":"OH"}]
["Oklahoma",15.3,1.5,15.1,2,16,2.1,0.9,2.8,{"$f":"VLOOKUP(A48,'US Regions'!$B$23:$F$73,5,FALSE)","v":"OK"}]
["Oregon",14.3,1.4,14.3,1.7,14.3,1.5,-0.1,1.8,{"$f":"VLOOKUP(A49,'US Regions'!$B$23:$F$73,5,FALSE)","v":"OR"}]
["Pennsylvania",13,1.1000000000000001,12.4,1,13.1,1.3,0.7,1.4,{"$f":"VLOOKUP(A50,'US Regions'!$B$23:$F$73,5,FALSE)","v":"PA"}]
["Rhode Island",13.5,1.2,13.7,1.4,13.6,1.4,-0.1,1.7,{"$f":"VLOOKUP(A51,'US Regions'!$B$23:$F$73,5,FALSE)","v":"RI"}]
["South Carolina",17.2,1.4,18,1.6,16.3,1.5,-1.7,2,{"$f":"VLOOKUP(A52,'US Regions'!$B$23:$F$73,5,FALSE)","v":"SC"}]
["South Dakota",12.5,2.2999999999999998,14.1,2.6,11.5,1.8,"*-2.5",2.1,{"$f":"VLOOKUP(A53,'US Regions'!$B$23:$F$73,5,FALSE)","v":"SD"}]
["Tennessee",17.7,2,16.5,2.1,18.399999999999999,2.2999999999999998,1.9,2.5,{"$f":"VLOOKUP(A54,'US Regions'!$B$23:$F$73,5,FALSE)","v":"TN"}]
["Texas",17.100000000000001,0.9,17.899999999999999,1.1000000000000001,16.899999999999999,1,-1,1.3,{"$f":"VLOOKUP(A55,'US Regions'!$B$23:$F$73,5,FALSE)","v":"TX"}]
["Utah",10.1,1.3,10.5,1.4,9.6,1.6,-0.9,2,{"$f":"VLOOKUP(A56,'US Regions'!$B$23:$F$73,5,FALSE)","v":"UT"}]
["Vermont",10.5,1,11.2,1.4,10,1.1000000000000001,-1.2,1.7,{"$f":"VLOOKUP(A57,'US Regions'!$B$23:$F$73,5,FALSE)","v":"VT"}]
["Virginia",10.8,1,11,1.1000000000000001,10.5,1.2,-0.5,1.2,{"$f":"VLOOKUP(A58,'US Regions'!$B$23:$F$73,5,FALSE)","v":"VA"}]
["Washington",12,1.2,12.1,1.5,11.8,1.3,-0.3,1.6,{"$f":"VLOOKUP(A59,'US Regions'!$B$23:$F$73,5,FALSE)","v":"WA"}]
["West Virginia",17.2,2.7,17.2,2.1,17,2.9,-0.1,2.5,{"$f":"VLOOKUP(A60,'US Regions'!$B$23:$F$73,5,FALSE)","v":"WV"}]
["Wisconsin",11.8,1.1000000000000001,11.6,1.4,11.2,1.3,-0.4,1.6,{"$f":"VLOOKUP(A61,'US Regions'!$B$23:$F$73,5,FALSE)","v":"WI"}]
["Wyoming",10.7,1.3,10.1,1.5,10.7,1.4,0.6,1.9,{"$f":"VLOOKUP(A62,'US Regions'!$B$23:$F$73,5,FALSE)","v":"WY"}]
["*An asterisk preceding an estimate indicates change is statistically different from zero at the 90 percent confidence level"]
[]
["1Data are based on the CPS ASEC sample of 68,000 addresses. The 2014 CPS ASEC included redesigned questions for income and health insurance coverage. All of the approximately 98,000 addresses were eligible to receive the redesigned set of health insurance coverage questions. The redesigned income questions were implemented to a subsample of these 98,000 addresses using a probability split panel design. Approximately 68,000 addresses were eligible to receive a set of income questions similar to those used in the 2013 CPS ASEC and the remaining 30,000 addresses were eligible to receive the redesigned income questions. The source of the 2013 data for this table is the portion of the CPS ASEC sample which received the income questions consistent with the 2013 CPS ASEC, approximately 68,000 addresses"]
["2A 90 percent confidence interval is a measure of an estimate's variability.  The larger the confidence interval in relation to the size of the estimate, the less reliable the estimate.  Confidence interval shown in this table are based on standard errors calculated using replicate weights.  Fore more information, see \"Standard Errors and Their Use\" at <ftp://ftp2.census.gov/library/publications/2014/demo/p60-249sa.pdf>."]
["3Details may not sum to totals because of rounding."]
[]
["Source:  U.S. Census Bureau, Current Population Survey, 2011 to 2014 Annual Social and Economic Supplements."]

{"sheet":"8.2-8.3","index":1,"n_rows":59,"n_cols":82,"rows_kept":59,"cut":false,"hidden":false,"merged":[]}
[null,null,null,null,null,null,null,null,null,"Item","Expenditure",null,"Horizontal reference lines"]
[]
[]
[null,null,null,null,null,null,null,null,null,"Food",6665,null,6665,450,17377,1674,9104,3919,2560,602,101,1143,315,683,1790,5551]
[null,null,null,null,null,null,null,null,null,"Alcoholic beverages",450,null,6665,450,17377,1674,9104,3919,2560,602,101,1143,315,683,1790,5551]
[null,null,null,null,null,null,null,null,null,"Housing",17377,null,{"$f":"NA()","v":{"$error":"#N/A"}},450,17377,1674,9104,3919,2560,602,101,1143,315,683,1790,5551]
[null,null,null,null,null,null,null,null,null,"Apparel and services",1674,null,{"$f":"NA()","v":{"$error":"#N/A"}},{"$f":"NA()","v":{"$error":"#N/A"}},17377,1674,9104,3919,2560,602,101,1143,315,683,1790,5551]
[null,"ANNUAL MEAN EXPENDITURE",null,null,null,null,null,null,null,"Transportation",9104,null,{"$f":"NA()","v":{"$error":"#N/A"}},{"$f":"NA()","v":{"$error":"#N/A"}},{"$f":"NA()","v":{"$error":"#N/A"}},1674,9104,3919,2560,602,101,1143,315,683,1790,5551]
[null,"Consumer Expenditure Survey, 3rd quarter 2013 through 2nd quarter 2014",null,null,null,null,null,null,null,"Healthcare",3919,null,{"$f":"NA()","v":{"$error":"#N/A"}},{"$f":"NA()","v":{"$error":"#N/A"}},{"$f":"NA()","v":{"$error":"#N/A"}},{"$f":"NA()","v":{"$error":"#N/A"}},9104,3919,2560,602,101,1143,315,683,1790,5551]
[null,null,null,null,null,null,null,null,null,"Entertainment",2560,null,{"$f":"NA()","v":{"$error":"#N/A"}},{"$f":"NA()","v":{"$error":"#N/A"}},{"$f":"NA()","v":{"$error":"#N/A"}},{"$f":"NA()","v":{"$error":"#N/A"}},{"$f":"NA()","v":{"$error":"#N/A"}},3919,2560,602,101,1143,315,683,1790,5551]
[null,null,null,null,null,null,null,null,null,"Personal care",602,null,{"$f":"NA()","v":{"$error":"#N/A"}},{"$f":"NA()","v":{"$error":"#N/A"}},{"$f":"NA()","v":{"$error":"#N/A"}},{"$f":"NA()","v":{"$error":"#N/A"}},{"$f":"NA()","v":{"$error":"#N/A"}},{"$f":"NA()","v":{"$error":"#N/A"}},2560,602,101,1143,315,683,1790,5551]
[null,null,null,null,null,null,null,null,null,"Reading",101,null,{"$f":"NA()","v":{"$error":"#N/A"}},{"$f":"NA()","v":{"$error":"#N/A"}},{"$f":"NA()","v":{"$error":"#N/A"}},{"$f":"NA()","v":{"$error":"#N/A"}},{"$f":"NA()","v":{"$error":"#N/A"}},{"$f":"NA()","v":{"$error":"#N/A"}},{"$f":"NA()","v":{"$error":"#N/A"}},602,101,1143,315,683,1790,5551]
[null,null,null,null,null,null,null,null,null,"Education",1143,null,{"$f":"NA()","v":{"$error":"#N/A"}},{"$f":"NA()","v":{"$error":"#N/A"}},{"$f":"NA()","v":{"$error":"#N/A"}},{"$f":"NA()","v":{"$error":"#N/A"}},{"$f":"NA()","v":{"$error":"#N/A"}},{"$f":"NA()","v":{"$error":"#N/A"}},{"$f":"NA()","v":{"$error":"#N/A"}},{"$f":"NA()","v":{"$error":"#N/A"}},101,1143,315,683,1790,5551]
[null,null,null,null,null,null,null,null,null,"Tobacco products",315,null,{"$f":"NA()","v":{"$error":"#N/A"}},{"$f":"NA()","v":{"$error":"#N/A"}},{"$f":"NA()","v":{"$error":"#N/A"}},{"$f":"NA()","v":{"$error":"#N/A"}},{"$f":"NA()","v":{"$error":"#N/A"}},{"$f":"NA()","v":{"$error":"#N/A"}},{"$f":"NA()","v":{"$error":"#N/A"}},{"$f":"NA()","v":{"$error":"#N/A"}},{"$f":"NA()","v":{"$error":"#N/A"}},1143,315,683,1790,5551]
[null,null,null,null,null,null,null,null,null,"Miscellaneous",683,null,{"$f":"NA()","v":{"$error":"#N/A"}},{"$f":"NA()","v":{"$error":"#N/A"}},{"$f":"NA()","v":{"$error":"#N/A"}},{"$f":"NA()","v":{"$error":"#N/A"}},{"$f":"NA()","v":{"$error":"#N/A"}},{"$f":"NA()","v":{"$error":"#N/A"}},{"$f":"NA()","v":{"$error":"#N/A"}},{"$f":"NA()","v":{"$error":"#N/A"}},{"$f":"NA()","v":{"$error":"#N/A"}},{"$f":"NA()","v":{"$error":"#N/A"}},315,683,1790,5551]
[null,null,null,null,null,null,null,null,null,"Cash contributions",1790,null,{"$f":"NA()","v":{"$error":"#N/A"}},{"$f":"NA()","v":{"$error":"#N/A"}},{"$f":"NA()","v":{"$error":"#N/A"}},{"$f":"NA()","v":{"$error":"#N/A"}},{"$f":"NA()","v":{"$error":"#N/A"}},{"$f":"NA()","v":{"$error":"#N/A"}},{"$f":"NA()","v":{"$error":"#N/A"}},{"$f":"NA()","v":{"$error":"#N/A"}},{"$f":"NA()","v":{"$error":"#N/A"}},{"$f":"NA()","v":{"$error":"#N/A"}},{"$f":"NA()","v":{"$error":"#N/A"}},683,1790,5551]
[null,null,null,null,null,null,null,null,null,"Insurance and pensions",5551,null,{"$f":"NA()","v":{"$error":"#N/A"}},{"$f":"NA()","v":{"$error":"#N/A"}},{"$f":"NA()","v":{"$error":"#N/A"}},{"$f":"NA()","v":{"$error":"#N/A"}},{"$f":"NA()","v":{"$error":"#N/A"}},{"$f":"NA()","v":{"$error":"#N/A"}},{"$f":"NA()","v":{"$error":"#N/A"}},{"$f":"NA()","v":{"$error":"#N/A"}},{"$f":"NA()","v":{"$error":"#N/A"}},{"$f":"NA()","v":{"$error":"#N/A"}},{"$f":"NA()","v":{"$error":"#N/A"}},{"$f":"NA()","v":{"$error":"#N/A"}},1790,5551]
[null,null,null,null,null,null,null,null,null,null,null,null,{"$f":"NA()","v":{"$error":"#N/A"}},{"$f":"NA()","v":{"$error":"#N/A"}},{"$f":"NA()","v":{"$error":"#N/A"}},{"$f":"NA()","v":{"$error":"#N/A"}},{"$f":"NA()","v":{"$error":"#N/A"}},{"$f":"NA()","v":{"$error":"#N/A"}},{"$f":"NA()","v":{"$error":"#N/A"}},{"$f":"NA()","v":{"$error":"#N/A"}},{"$f":"NA()","v":{"$error":"#N/A"}},{"$f":"NA()","v":{"$error":"#N/A"}},{"$f":"NA()","v":{"$error":"#N/A"}},{"$f":"NA()","v":{"$error":"#N/A"}},{"$f":"NA()","v":{"$error":"#N/A"}},5551]
[]
[]
[]
[]
[]
[]
[]
[]
[]
[]
[]
[]
[null,"Source: Bureau of Labor Statistics"]
[]
[]
[]
[null,null,null,null,null,null,null,null,null,null,null,null,null,null,null,null,null,null,null,null,null,null,null,null,null,null,null,null,null,null,null,null,null,null,null,null,null,null,null,null,null,null,null,null,null,null,null,null,null,null,null,null,null,null,null,null,null,null,null,null,null,null,null,null,null,null,null,null,null,null,null,null,null,null,null,null,"Diversos",1277,3,{"$f":"IF(CA35=1,BZ35,NA())","v":{"$error":"#N/A"}},{"$f":"IF(CA35=2,BZ35,NA())","v":{"$error":"#N/A"}},{"$f":"IF(CA35=3,BZ35,NA())","v":1277}]
[null,null,null,null,null,null,null,null,null,null,null,null,null,null,null,null,null,null,null,null,null,null,null,null,null,null,null,null,null,null,null,null,null,null,null,null,null,null,null,null,null,null,null,null,null,null,null,null,null,null,null,null,null,null,null,null,null,null,null,null,null,null,null,null,null,null,null,null,null,null,null,null,null,null,null,null,"Saúde",1186,1,1186,{"$error":"#N/A"},{"$error":"#N/A"}]
[null,null,null,null,null,null,null,null,null,null,null,null,null,null,null,null,null,null,null,null,null,null,null,null,null,null,null,null,null,null,null,null,null,null,null,null,null,null,null,null,null,null,null,null,null,null,null,null,null,null,null,null,null,null,null,null,null,null,null,null,null,null,null,null,null,null,null,null,null,null,null,null,null,null,null,null,"Lazer",1073,3,{"$error":"#N/A"},{"$error":"#N/A"},1073]
[null,null,null,null,null,null,null,null,null,null,null,null,null,null,null,null,null,null,null,null,null,null,null,null,null,null,null,null,null,null,null,null,null,null,null,null,null,null,null,null,null,null,null,null,null,null,null,null,null,null,null,null,null,null,null,null,null,null,null,null,null,null,null,null,null,null,null,null,null,null,null,null,null,null,null,null,"Acessórios lar",864,2,{"$error":"#N/A"},864,{"$error":"#N/A"}]
[null,"ANNUAL MEAN EXPENDITURE",null,null,null,null,null,null,null,null,null,null,null,null,null,null,null,null,null,null,null,null,null,null,null,null,null,null,null,null,null,null,null,null,null,null,null,null,null,null,null,null,null,null,null,null,null,null,null,null,null,null,null,null,null,null,null,null,null,null,null,null,null,null,null,null,null,null,null,null,null,null,null,null,null,null,"Vestuário",757,1,757,{"$error":"#N/A"},{"$error":"#N/A"}]
[null,"Consumer Expenditure Survey, 3rd quarter 2013 through 2nd quarter 2014",null,null,null,null,null,null,null,null,null,null,null,null,null,null,null,null,null,null,null,null,null,null,null,null,null,null,null,null,null,null,null,null,null,null,null,null,null,null,null,null,null,null,null,null,null,null,null,null,null,null,null,null,null,null,null,null,null,null,null,null,null,null,null,null,null,null,null,null,null,null,null,null,null,null,"Comunicações",680,2,{"$error":"#N/A"},680,{"$error":"#N/A"}]
[null,null,null,null,null,null,null,null,null,null,null,null,null,null,null,null,null,null,null,null,null,null,null,null,null,null,null,null,null,null,null,null,null,null,null,null,null,null,null,null,null,null,null,null,null,null,null,null,null,null,null,null,null,null,null,null,null,null,null,null,null,null,null,null,null,null,null,null,null,null,null,null,null,null,null,null,"Educação",441,3,{"$error":"#N/A"},{"$error":"#N/A"},441]
[null,null,null,null,null,null,null,null,null,null,null,null,null,null,null,null,null,null,null,null,null,null,null,null,null,null,null,null,null,null,null,null,null,null,null,null,null,null,null,null,null,null,null,null,null,null,null,null,null,null,null,null,null,null,null,null,null,null,null,null,null,null,null,null,null,null,null,null,null,null,null,null,null,null,null,null,"Bebidas",384,1,384,{"$error":"#N/A"},{"$error":"#N/A"}]
[]
[]
[]
[]
[]
[]
[]
[]
[]
[]
[]
[]
[]
[]
[]
[]
[null,"Source: Bureau of Labor Statistics"]

{"sheet":"8.4","index":2,"n_rows":69,"n_cols":17,"rows_kept":69,"cut":false,"hidden":false,"merged":[[65,0,65,8],[2,0,2,8],[3,1,3,2],[3,3,4,6],[3,7,3,8],[4,1,4,2],[4,7,4,8],[5,1,5,2],[5,3,5,4],[5,5,5,6],[5,7,5,8],[64,0,64,8]]}
["Table with row headings in column A and column headings in rows 5 to 10."]
["Percentage of People in Poverty by State Using 2- and 3-Year Averages:  2010-2011 and 2012-2013"]
["(People as of March of the following year.  For information on confidentiality protection, sampling error, nonsampling error, and definitions, see see ftp://ftp2.census.gov/programs-surveys/cps/techdocs/cpsmar14.pdf)"]
[null,null,null,"2-year average",null,null,null,"Change in percentage points"]
[null,"3-year average",null,null,null,null,null,"(2012-2013 average less"]
["State","2011-20131",null,"2010-2011",null,"2012-2013",null,"2010-2011 average)3"]
[null,null,"90 percent",null,"90 percent",null,"90 percent",null,"90 percent"]
[null,null,"confidence",null,"confidence",null,"confidence",null,"confidence",null,"Series for the middle chart"]
[null,"Percentage","interval2 (+/-)","Percentage","interval2 (+/-)","Percentage","interval2 (+/-)","Percentage","interval2 (+/-)","x-label"]
[null,null,null,null,null,null,null,null,null,null,"Northeast","Midwest","South","West",null,null,"PERCENTAGE OF PEOPLE IN POVERTY BY STATE, 2012–2013"]
["     United States…….",14.8,0.2,15.1,0.2,14.7,0.2,"*-0.3",0.3,null,1,2,3,4]
["New Hampshire",8.3000000000000007,0.9,7.1,1,8.6,1,"*1.5",1.3,"NH",{"$f":"IF(VLOOKUP($A12,'US Regions'!$B$23:$E$73,4,FALSE)=K$11,$F12,NA())","v":8.6},{"$f":"IF(VLOOKUP($A12,'US Regions'!$B$23:$E$73,4,FALSE)=L$11,$F12,NA())","v":{"$error":"#N/A"}},{"$f":"IF(VLOOKUP($A12,'US Regions'!$B$23:$E$73,4,FALSE)=M$11,$F12,NA())","v":{"$error":"#N/A"}},{"$f":"IF(VLOOKUP($A12,'US Regions'!$B$23:$E$73,4,FALSE)=N$11,$F12,NA())","v":{"$error":"#N/A"}}]
["Utah",10.1,1.3,10.5,1.4,9.6,1.6,-0.9,2,"UT",{"$f":"IF(VLOOKUP($A13,'US Regions'!$B$23:$E$73,4,FALSE)=K$11,$F13,NA())","v":{"$error":"#N/A"}},{"$f":"IF(VLOOKUP($A13,'US Regions'!$B$23:$E$73,4,FALSE)=L$11,$F13,NA())","v":{"$error":"#N/A"}},{"$f":"IF(VLOOKUP($A13,'US Regions'!$B$23:$E$73,4,FALSE)=M$11,$F13,NA())","v":{"$error":"#N/A"}},{"$f":"IF(VLOOKUP($A13,'US Regions'!$B$23:$E$73,4,FALSE)=N$11,$F13,NA())","v":9.6}]
["Vermont",10.5,1,11.2,1.4,10,1.1000000000000001,-1.2,1.7,"VT",{"$f":"IF(VLOOKUP($A14,'US Regions'!$B$23:$E$73,4,FALSE)=K$11,$F14,NA())","v":10},{"$f":"IF(VLOOKUP($A14,'US Regions'!$B$23:$E$73,4,FALSE)=L$11,$F14,NA())","v":{"$error":"#N/A"}},{"$f":"IF(VLOOKUP($A14,'US Regions'!$B$23:$E$73,4,FALSE)=M$11,$F14,NA())","v":{"$error":"#N/A"}},{"$f":"IF(VLOOKUP($A14,'US Regions'!$B$23:$E$73,4,FALSE)=N$11,$F14,NA())","v":{"$error":"#N/A"}}]
["Maryland",9.8000000000000007,0.8,10.1,1.1000000000000001,10.1,1,0.1,1.5,"MD",{"$f":"IF(VLOOKUP($A15,'US Regions'!$B$23:$E$73,4,FALSE)=K$11,$F15,NA())","v":{"$error":"#N/A"}},{"$f":"IF(VLOOKUP($A15,'US Regions'!$B$23:$E$73,4,FALSE)=L$11,$F15,NA())","v":{"$error":"#N/A"}},{"$f":"IF(VLOOKUP($A15,'US Regions'!$B$23:$E$73,4,FALSE)=M$11,$F15,NA())","v":10.1},{"$f":"IF(VLOOKUP($A15,'US Regions'!$B$23:$E$73,4,FALSE)=N$11,$F15,NA())","v":{"$error":"#N/A"}}]
["New Jersey",10.6,1,11.2,1.3,10.199999999999999,1.2,-1,1.6,"NJ",{"$f":"IF(VLOOKUP($A16,'US Regions'!$B$23:$E$73,4,FALSE)=K$11,$F16,NA())","v":10.199999999999999},{"$f":"IF(VLOOKUP($A16,'US Regions'!$B$23:$E$73,4,FALSE)=L$11,$F16,NA())","v":{"$error":"#N/A"}},{"$f":"IF(VLOOKUP($A16,'US Regions'!$B$23:$E$73,4,FALSE)=M$11,$F16,NA())","v":{"$error":"#N/A"}},{"$f":"IF(VLOOKUP($A16,'US Regions'!$B$23:$E$73,4,FALSE)=N$11,$F16,NA())","v":{"$error":"#N/A"}}]
["Alaska",10.9,1.5,12.1,1.9,10.5,1.9,-1.6,2.5,"AK",{"$f":"IF(VLOOKUP($A17,'US Regions'!$B$23:$E$73,4,FALSE)=K$11,$F17,NA())","v":{"$error":"#N/A"}},{"$f":"IF(VLOOKUP($A17,'US Regions'!$B$23:$E$73,4,FALSE)=L$11,$F17,NA())","v":{"$error":"#N/A"}},{"$f":"IF(VLOOKUP($A17,'US Regions'!$B$23:$E$73,4,FALSE)=M$11,$F17,NA())","v":{"$error":"#N/A"}},{"$f":"IF(VLOOKUP($A17,'US Regions'!$B$23:$E$73,4,FALSE)=N$11,$F17,NA())","v":10.5}]
["Iowa",10.5,0.9,10.4,1.1000000000000001,10.5,1,0.2,1.2,"IA",{"$f":"IF(VLOOKUP($A18,'US Regions'!$B$23:$E$73,4,FALSE)=K$11,$F18,NA())","v":{"$error":"#N/A"}},{"$f":"IF(VLOOKUP($A18,'US Regions'!$B$23:$E$73,4,FALSE)=L$11,$F18,NA())","v":10.5},{"$f":"IF(VLOOKUP($A18,'US Regions'!$B$23:$E$73,4,FALSE)=M$11,$F18,NA())","v":{"$error":"#N/A"}},{"$f":"IF(VLOOKUP($A18,'US Regions'!$B$23:$E$73,4,FALSE)=N$11,$F18,NA())","v":{"$error":"#N/A"}}]
["Virginia",10.8,1,11,1.1000000000000001,10.5,1.2,-0.5,1.2,"VA",{"$f":"IF(VLOOKUP($A19,'US Regions'!$B$23:$E$73,4,FALSE)=K$11,$F19,NA())","v":{"$error":"#N/A"}},{"$f":"IF(VLOOKUP($A19,'US Regions'!$B$23:$E$73,4,FALSE)=L$11,$F19,NA())","v":{"$error":"#N/A"}},{"$f":"IF(VLOOKUP($A19,'US Regions'!$B$23:$E$73,4,FALSE)=M$11,$F19,NA())","v":10.5},{"$f":"IF(VLOOKUP($A19,'US Regions'!$B$23:$E$73,4,FALSE)=N$11,$F19,NA())","v":{"$error":"#N/A"}}]
["North Dakota",10.4,1.4,11.3,1.5,10.6,1.2,-0.6,1.3,"ND",{"$f":"IF(VLOOKUP($A20,'US Regions'!$B$23:$E$73,4,FALSE)=K$11,$F20,NA())","v":{"$error":"#N/A"}},{"$f":"IF(VLOOKUP($A20,'US Regions'!$B$23:$E$73,4,FALSE)=L$11,$F20,NA())","v":10.6},{"$f":"IF(VLOOKUP($A20,'US Regions'!$B$23:$E$73,4,FALSE)=M$11,$F20,NA())","v":{"$error":"#N/A"}},{"$f":"IF(VLOOKUP($A20,'US Regions'!$B$23:$E$73,4,FALSE)=N$11,$F20,NA())","v":{"$error":"#N/A"}}]
["Wyoming",10.7,1.3,10.1,1.5,10.7,1.4,0.6,1.9,"WY",{"$f":"IF(VLOOKUP($A21,'US Regions'!$B$23:$E$73,4,FALSE)=K$11,$F21,NA())","v":{"$error":"#N/A"}},{"$f":"IF(VLOOKUP($A21,'US Regions'!$B$23:$E$73,4,FALSE)=L$11,$F21,NA())","v":{"$error":"#N/A"}},{"$f":"IF(VLOOKUP($A21,'US Regions'!$B$23:$E$73,4,FALSE)=M$11,$F21,NA())","v":{"$error":"#N/A"}},{"$f":"IF(VLOOKUP($A21,'US Regions'!$B$23:$E$73,4,FALSE)=N$11,$F21,NA())","v":10.7}]
["Connecticut",10.6,1,9.3000000000000007,1.2,10.8,1.1000000000000001,"*1.5",1.3,"CT",{"$f":"IF(VLOOKUP($A22,'US Regions'!$B$23:$E$73,4,FALSE)=K$11,$F22,NA())","v":10.8},{"$f":"IF(VLOOKUP($A22,'US Regions'!$B$23:$E$73,4,FALSE)=L$11,$F22,NA())","v":{"$error":"#N/A"}},{"$f":"IF(VLOOKUP($A22,'US Regions'!$B$23:$E$73,4,FALSE)=M$11,$F22,NA())","v":{"$error":"#N/A"}},{"$f":"IF(VLOOKUP($A22,'US Regions'!$B$23:$E$73,4,FALSE)=N$11,$F22,NA())","v":{"$error":"#N/A"}}]
["Minnesota",10.7,1,10.4,1.2,11,1.1000000000000001,0.6,1.4,"MN",{"$f":"IF(VLOOKUP($A23,'US Regions'!$B$23:$E$73,4,FALSE)=K$11,$F23,NA())","v":{"$error":"#N/A"}},{"$f":"IF(VLOOKUP($A23,'US Regions'!$B$23:$E$73,4,FALSE)=L$11,$F23,NA())","v":11},{"$f":"IF(VLOOKUP($A23,'US Regions'!$B$23:$E$73,4,FALSE)=M$11,$F23,NA())","v":{"$error":"#N/A"}},{"$f":"IF(VLOOKUP($A23,'US Regions'!$B$23:$E$73,4,FALSE)=N$11,$F23,NA())","v":{"$error":"#N/A"}}]
["Colorado",11.9,1.2,12.7,1.5,11.2,1.4,-1.5,1.5,"CO",{"$f":"IF(VLOOKUP($A24,'US Regions'!$B$23:$E$73,4,FALSE)=K$11,$F24,NA())","v":{"$error":"#N/A"}},{"$f":"IF(VLOOKUP($A24,'US Regions'!$B$23:$E$73,4,FALSE)=L$11,$F24,NA())","v":{"$error":"#N/A"}},{"$f":"IF(VLOOKUP($A24,'US Regions'!$B$23:$E$73,4,FALSE)=M$11,$F24,NA())","v":{"$error":"#N/A"}},{"$f":"IF(VLOOKUP($A24,'US Regions'!$B$23:$E$73,4,FALSE)=N$11,$F24,NA())","v":11.2}]
["Wisconsin",11.8,1.1000000000000001,11.6,1.4,11.2,1.3,-0.4,1.6,"WI",{"$f":"IF(VLOOKUP($A25,'US Regions'!$B$23:$E$73,4,FALSE)=K$11,$F25,NA())","v":{"$error":"#N/A"}},{"$f":"IF(VLOOKUP($A25,'US Regions'!$B$23:$E$73,4,FALSE)=L$11,$F25,NA())","v":11.2},{"$f":"IF(VLOOKUP($A25,'US Regions'!$B$23:$E$73,4,FALSE)=M$11,$F25,NA())","v":{"$error":"#N/A"}},{"$f":"IF(VLOOKUP($A25,'US Regions'!$B$23:$E$73,4,FALSE)=N$11,$F25,NA())","v":{"$error":"#N/A"}}]
["South Dakota",12.5,2.2999999999999998,14.1,2.6,11.5,1.8,"*-2.5",2.1,"SD",{"$f":"IF(VLOOKUP($A26,'US Regions'!$B$23:$E$73,4,FALSE)=K$11,$F26,NA())","v":{"$error":"#N/A"}},{"$f":"IF(VLOOKUP($A26,'US Regions'!$B$23:$E$73,4,FALSE)=L$11,$F26,NA())","v":11.5},{"$f":"IF(VLOOKUP($A26,'US Regions'!$B$23:$E$73,4,FALSE)=M$11,$F26,NA())","v":{"$error":"#N/A"}},{"$f":"IF(VLOOKUP($A26,'US Regions'!$B$23:$E$73,4,FALSE)=N$11,$F26,NA())","v":{"$error":"#N/A"}}]
["Massachusetts",11.3,1.1000000000000001,10.7,1.3,11.6,1.4,0.9,1.8,"MA",{"$f":"IF(VLOOKUP($A27,'US Regions'!$B$23:$E$73,4,FALSE)=K$11,$F27,NA())","v":11.6},{"$f":"IF(VLOOKUP($A27,'US Regions'!$B$23:$E$73,4,FALSE)=L$11,$F27,NA())","v":{"$error":"#N/A"}},{"$f":"IF(VLOOKUP($A27,'US Regions'!$B$23:$E$73,4,FALSE)=M$11,$F27,NA())","v":{"$error":"#N/A"}},{"$f":"IF(VLOOKUP($A27,'US Regions'!$B$23:$E$73,4,FALSE)=N$11,$F27,NA())","v":{"$error":"#N/A"}}]
["Nebraska",11.2,1.5,10.199999999999999,1.7,11.6,1.6,1.4,1.9,"NE",{"$f":"IF(VLOOKUP($A28,'US Regions'!$B$23:$E$73,4,FALSE)=K$11,$F28,NA())","v":{"$error":"#N/A"}},{"$f":"IF(VLOOKUP($A28,'US Regions'!$B$23:$E$73,4,FALSE)=L$11,$F28,NA())","v":11.6},{"$f":"IF(VLOOKUP($A28,'US Regions'!$B$23:$E$73,4,FALSE)=M$11,$F28,NA())","v":{"$error":"#N/A"}},{"$f":"IF(VLOOKUP($A28,'US Regions'!$B$23:$E$73,4,FALSE)=N$11,$F28,NA())","v":{"$error":"#N/A"}}]
["Washington",12,1.2,12.1,1.5,11.8,1.3,-0.3,1.6,"WA",{"$f":"IF(VLOOKUP($A29,'US Regions'!$B$23:$E$73,4,FALSE)=K$11,$F29,NA())","v":{"$error":"#N/A"}},{"$f":"IF(VLOOKUP($A29,'US Regions'!$B$23:$E$73,4,FALSE)=L$11,$F29,NA())","v":{"$error":"#N/A"}},{"$f":"IF(VLOOKUP($A29,'US Regions'!$B$23:$E$73,4,FALSE)=M$11,$F29,NA())","v":{"$error":"#N/A"}},{"$f":"IF(VLOOKUP($A29,'US Regions'!$B$23:$E$73,4,FALSE)=N$11,$F29,NA())","v":11.8}]
["Hawaii",12.3,1.4,12.2,1.7,12.5,1.7,0.2,1.9,"HI",{"$f":"IF(VLOOKUP($A30,'US Regions'!$B$23:$E$73,4,FALSE)=K$11,$F30,NA())","v":{"$error":"#N/A"}},{"$f":"IF(VLOOKUP($A30,'US Regions'!$B$23:$E$73,4,FALSE)=L$11,$F30,NA())","v":{"$error":"#N/A"}},{"$f":"IF(VLOOKUP($A30,'US Regions'!$B$23:$E$73,4,FALSE)=M$11,$F30,NA())","v":{"$error":"#N/A"}},{"$f":"IF(VLOOKUP($A30,'US Regions'!$B$23:$E$73,4,FALSE)=N$11,$F30,NA())","v":12.5}]
["Maine",12.8,1.2,13,1.5,12.5,1.4,-0.5,1.8,"ME",{"$f":"IF(VLOOKUP($A31,'US Regions'!$B$23:$E$73,4,FALSE)=K$11,$F31,NA())","v":12.5},{"$f":"IF(VLOOKUP($A31,'US Regions'!$B$23:$E$73,4,FALSE)=L$11,$F31,NA())","v":{"$error":"#N/A"}},{"$f":"IF(VLOOKUP($A31,'US Regions'!$B$23:$E$73,4,FALSE)=M$11,$F31,NA())","v":{"$error":"#N/A"}},{"$f":"IF(VLOOKUP($A31,'US Regions'!$B$23:$E$73,4,FALSE)=N$11,$F31,NA())","v":{"$error":"#N/A"}}]
["Illinois",13.4,1,14.1,1,12.9,1.1000000000000001,-1.2,1.3,"IL",{"$f":"IF(VLOOKUP($A32,'US Regions'!$B$23:$E$73,4,FALSE)=K$11,$F32,NA())","v":{"$error":"#N/A"}},{"$f":"IF(VLOOKUP($A32,'US Regions'!$B$23:$E$73,4,FALSE)=L$11,$F32,NA())","v":12.9},{"$f":"IF(VLOOKUP($A32,'US Regions'!$B$23:$E$73,4,FALSE)=M$11,$F32,NA())","v":{"$error":"#N/A"}},{"$f":"IF(VLOOKUP($A32,'US Regions'!$B$23:$E$73,4,FALSE)=N$11,$F32,NA())","v":{"$error":"#N/A"}}]
["Pennsylvania",13,1.1000000000000001,12.4,1,13.1,1.3,0.7,1.4,"PA",{"$f":"IF(VLOOKUP($A33,'US Regions'!$B$23:$E$73,4,FALSE)=K$11,$F33,NA())","v":13.1},{"$f":"IF(VLOOKUP($A33,'US Regions'!$B$23:$E$73,4,FALSE)=L$11,$F33,NA())","v":{"$error":"#N/A"}},{"$f":"IF(VLOOKUP($A33,'US Regions'!$B$23:$E$73,4,FALSE)=M$11,$F33,NA())","v":{"$error":"#N/A"}},{"$f":"IF(VLOOKUP($A33,'US Regions'!$B$23:$E$73,4,FALSE)=N$11,$F33,NA())","v":{"$error":"#N/A"}}]
["Indiana",14.1,1.3,15.9,1.9,13.4,1.4,"*-2.5",2,"IN",{"$f":"IF(VLOOKUP($A34,'US Regions'!$B$23:$E$73,4,FALSE)=K$11,$F34,NA())","v":{"$error":"#N/A"}},{"$f":"IF(VLOOKUP($A34,'US Regions'!$B$23:$E$73,4,FALSE)=L$11,$F34,NA())","v":13.4},{"$f":"IF(VLOOKUP($A34,'US Regions'!$B$23:$E$73,4,FALSE)=M$11,$F34,NA())","v":{"$error":"#N/A"}},{"$f":"IF(VLOOKUP($A34,'US Regions'!$B$23:$E$73,4,FALSE)=N$11,$F34,NA())","v":{"$error":"#N/A"}}]
["Kansas",13.8,1.3,14.4,2,13.6,1.3,-0.8,1.9,"KS",{"$f":"IF(VLOOKUP($A35,'US Regions'!$B$23:$E$73,4,FALSE)=K$11,$F35,NA())","v":{"$error":"#N/A"}},{"$f":"IF(VLOOKUP($A35,'US Regions'!$B$23:$E$73,4,FALSE)=L$11,$F35,NA())","v":13.6},{"$f":"IF(VLOOKUP($A35,'US Regions'!$B$23:$E$73,4,FALSE)=M$11,$F35,NA())","v":{"$error":"#N/A"}},{"$f":"IF(VLOOKUP($A35,'US Regions'!$B$23:$E$73,4,FALSE)=N$11,$F35,NA())","v":{"$error":"#N/A"}}]
["Rhode Island",13.5,1.2,13.7,1.4,13.6,1.4,-0.1,1.7,"RI",{"$f":"IF(VLOOKUP($A36,'US Regions'!$B$23:$E$73,4,FALSE)=K$11,$F36,NA())","v":13.6},{"$f":"IF(VLOOKUP($A36,'US Regions'!$B$23:$E$73,4,FALSE)=L$11,$F36,NA())","v":{"$error":"#N/A"}},{"$f":"IF(VLOOKUP($A36,'US Regions'!$B$23:$E$73,4,FALSE)=M$11,$F36,NA())","v":{"$error":"#N/A"}},{"$f":"IF(VLOOKUP($A36,'US Regions'!$B$23:$E$73,4,FALSE)=N$11,$F36,NA())","v":{"$error":"#N/A"}}]
["Delaware",13.7,1.2,12.9,1.3,13.7,1.5,0.8,2,"DE",{"$f":"IF(VLOOKUP($A37,'US Regions'!$B$23:$E$73,4,FALSE)=K$11,$F37,NA())","v":{"$error":"#N/A"}},{"$f":"IF(VLOOKUP($A37,'US Regions'!$B$23:$E$73,4,FALSE)=L$11,$F37,NA())","v":{"$error":"#N/A"}},{"$f":"IF(VLOOKUP($A37,'US Regions'!$B$23:$E$73,4,FALSE)=M$11,$F37,NA())","v":13.7},{"$f":"IF(VLOOKUP($A37,'US Regions'!$B$23:$E$73,4,FALSE)=N$11,$F37,NA())","v":{"$error":"#N/A"}}]
["Idaho",14.4,2,14.8,2.2999999999999998,13.7,2.2000000000000002,-1.1000000000000001,2.7,"ID",{"$f":"IF(VLOOKUP($A38,'US Regions'!$B$23:$E$73,4,FALSE)=K$11,$F38,NA())","v":{"$error":"#N/A"}},{"$f":"IF(VLOOKUP($A38,'US Regions'!$B$23:$E$73,4,FALSE)=L$11,$F38,NA())","v":{"$error":"#N/A"}},{"$f":"IF(VLOOKUP($A38,'US Regions'!$B$23:$E$73,4,FALSE)=M$11,$F38,NA())","v":{"$error":"#N/A"}},{"$f":"IF(VLOOKUP($A38,'US Regions'!$B$23:$E$73,4,FALSE)=N$11,$F38,NA())","v":13.7}]
["Montana",14.8,2,15.5,2.4,14,2.2000000000000002,-1.5,2.2999999999999998,"MT",{"$f":"IF(VLOOKUP($A39,'US Regions'!$B$23:$E$73,4,FALSE)=K$11,$F39,NA())","v":{"$error":"#N/A"}},{"$f":"IF(VLOOKUP($A39,'US Regions'!$B$23:$E$73,4,FALSE)=L$11,$F39,NA())","v":{"$error":"#N/A"}},{"$f":"IF(VLOOKUP($A39,'US Regions'!$B$23:$E$73,4,FALSE)=M$11,$F39,NA())","v":{"$error":"#N/A"}},{"$f":"IF(VLOOKUP($A39,'US Regions'!$B$23:$E$73,4,FALSE)=N$11,$F39,NA())","v":14}]
["Michigan",14.4,1.2,15.3,1.4,14.1,1.4,-1.2,1.9,"MI",{"$f":"IF(VLOOKUP($A40,'US Regions'!$B$23:$E$73,4,FALSE)=K$11,$F40,NA())","v":{"$error":"#N/A"}},{"$f":"IF(VLOOKUP($A40,'US Regions'!$B$23:$E$73,4,FALSE)=L$11,$F40,NA())","v":14.1},{"$f":"IF(VLOOKUP($A40,'US Regions'!$B$23:$E$73,4,FALSE)=M$11,$F40,NA())","v":{"$error":"#N/A"}},{"$f":"IF(VLOOKUP($A40,'US Regions'!$B$23:$E$73,4,FALSE)=N$11,$F40,NA())","v":{"$error":"#N/A"}}]
["Oregon",14.3,1.4,14.3,1.7,14.3,1.5,-0.1,1.8,"OR",{"$f":"IF(VLOOKUP($A41,'US Regions'!$B$23:$E$73,4,FALSE)=K$11,$F41,NA())","v":{"$error":"#N/A"}},{"$f":"IF(VLOOKUP($A41,'US Regions'!$B$23:$E$73,4,FALSE)=L$11,$F41,NA())","v":{"$error":"#N/A"}},{"$f":"IF(VLOOKUP($A41,'US Regions'!$B$23:$E$73,4,FALSE)=M$11,$F41,NA())","v":{"$error":"#N/A"}},{"$f":"IF(VLOOKUP($A41,'US Regions'!$B$23:$E$73,4,FALSE)=N$11,$F41,NA())","v":14.3}]
["Missouri",14.8,1.9,15.2,2.2000000000000002,14.5,2.1,-0.7,2.2000000000000002,"MO",{"$f":"IF(VLOOKUP($A42,'US Regions'!$B$23:$E$73,4,FALSE)=K$11,$F42,NA())","v":{"$error":"#N/A"}},{"$f":"IF(VLOOKUP($A42,'US Regions'!$B$23:$E$73,4,FALSE)=L$11,$F42,NA())","v":14.5},{"$f":"IF(VLOOKUP($A42,'US Regions'!$B$23:$E$73,4,FALSE)=M$11,$F42,NA())","v":{"$error":"#N/A"}},{"$f":"IF(VLOOKUP($A42,'US Regions'!$B$23:$E$73,4,FALSE)=N$11,$F42,NA())","v":{"$error":"#N/A"}}]
["Ohio",14.7,1.3,15.2,1.6,14.5,1.4,-0.7,1.5,"OH",{"$f":"IF(VLOOKUP($A43,'US Regions'!$B$23:$E$73,4,FALSE)=K$11,$F43,NA())","v":{"$error":"#N/A"}},{"$f":"IF(VLOOKUP($A43,'US Regions'!$B$23:$E$73,4,FALSE)=L$11,$F43,NA())","v":14.5},{"$f":"IF(VLOOKUP($A43,'US Regions'!$B$23:$E$73,4,FALSE)=M$11,$F43,NA())","v":{"$error":"#N/A"}},{"$f":"IF(VLOOKUP($A43,'US Regions'!$B$23:$E$73,4,FALSE)=N$11,$F43,NA())","v":{"$error":"#N/A"}}]
["Florida",15,0.8,15.4,0.9,15.1,0.9,-0.4,1.1000000000000001,"FL",{"$f":"IF(VLOOKUP($A44,'US Regions'!$B$23:$E$73,4,FALSE)=K$11,$F44,NA())","v":{"$error":"#N/A"}},{"$f":"IF(VLOOKUP($A44,'US Regions'!$B$23:$E$73,4,FALSE)=L$11,$F44,NA())","v":{"$error":"#N/A"}},{"$f":"IF(VLOOKUP($A44,'US Regions'!$B$23:$E$73,4,FALSE)=M$11,$F44,NA())","v":15.1},{"$f":"IF(VLOOKUP($A44,'US Regions'!$B$23:$E$73,4,FALSE)=N$11,$F44,NA())","v":{"$error":"#N/A"}}]
["California",15.9,0.5,16.600000000000001,0.7,15.4,0.6,"*-1.2",0.8,"CA",{"$f":"IF(VLOOKUP($A45,'US Regions'!$B$23:$E$73,4,FALSE)=K$11,$F45,NA())","v":{"$error":"#N/A"}},{"$f":"IF(VLOOKUP($A45,'US Regions'!$B$23:$E$73,4,FALSE)=L$11,$F45,NA())","v":{"$error":"#N/A"}},{"$f":"IF(VLOOKUP($A45,'US Regions'!$B$23:$E$73,4,FALSE)=M$11,$F45,NA())","v":{"$error":"#N/A"}},{"$f":"IF(VLOOKUP($A45,'US Regions'!$B$23:$E$73,4,FALSE)=N$11,$F45,NA())","v":15.4}]
["New York",15.9,0.7,16,1,15.9,0.9,-0.1,1.3,"NY",{"$f":"IF(VLOOKUP($A46,'US Regions'!$B$23:$E$73,4,FALSE)=K$11,$F46,NA())","v":15.9},{"$f":"IF(VLOOKUP($A46,'US Regions'!$B$23:$E$73,4,FALSE)=L$11,$F46,NA())","v":{"$error":"#N/A"}},{"$f":"IF(VLOOKUP($A46,'US Regions'!$B$23:$E$73,4,FALSE)=M$11,$F46,NA())","v":{"$error":"#N/A"}},{"$f":"IF(VLOOKUP($A46,'US Regions'!$B$23:$E$73,4,FALSE)=N$11,$F46,NA())","v":{"$error":"#N/A"}}]
["Oklahoma",15.3,1.5,15.1,2,16,2.1,0.9,2.8,"OK",{"$f":"IF(VLOOKUP($A47,'US Regions'!$B$23:$E$73,4,FALSE)=K$11,$F47,NA())","v":{"$error":"#N/A"}},{"$f":"IF(VLOOKUP($A47,'US Regions'!$B$23:$E$73,4,FALSE)=L$11,$F47,NA())","v":{"$error":"#N/A"}},{"$f":"IF(VLOOKUP($A47,'US Regions'!$B$23:$E$73,4,FALSE)=M$11,$F47,NA())","v":16},{"$f":"IF(VLOOKUP($A47,'US Regions'!$B$23:$E$73,4,FALSE)=N$11,$F47,NA())","v":{"$error":"#N/A"}}]
["South Carolina",17.2,1.4,18,1.6,16.3,1.5,-1.7,2,"SC",{"$f":"IF(VLOOKUP($A48,'US Regions'!$B$23:$E$73,4,FALSE)=K$11,$F48,NA())","v":{"$error":"#N/A"}},{"$f":"IF(VLOOKUP($A48,'US Regions'!$B$23:$E$73,4,FALSE)=L$11,$F48,NA())","v":{"$error":"#N/A"}},{"$f":"IF(VLOOKUP($A48,'US Regions'!$B$23:$E$73,4,FALSE)=M$11,$F48,NA())","v":16.3},{"$f":"IF(VLOOKUP($A48,'US Regions'!$B$23:$E$73,4,FALSE)=N$11,$F48,NA())","v":{"$error":"#N/A"}}]
["Alabama",16.100000000000001,1.2,16.3,2.1,16.399999999999999,1.3,0.2,2.2999999999999998,"AL",{"$f":"IF(VLOOKUP($A49,'US Regions'!$B$23:$E$73,4,FALSE)=K$11,$F49,NA())","v":{"$error":"#N/A"}},{"$f":"IF(VLOOKUP($A49,'US Regions'!$B$23:$E$73,4,FALSE)=L$11,$F49,NA())","v":{"$error":"#N/A"}},{"$f":"IF(VLOOKUP($A49,'US Regions'!$B$23:$E$73,4,FALSE)=M$11,$F49,NA())","v":16.399999999999999},{"$f":"IF(VLOOKUP($A49,'US Regions'!$B$23:$E$73,4,FALSE)=N$11,$F49,NA())","v":{"$error":"#N/A"}}]
["Nevada",16.2,1.4,16,1.8,16.600000000000001,1.8,0.6,2.5,"NV",{"$f":"IF(VLOOKUP($A50,'US Regions'!$B$23:$E$73,4,FALSE)=K$11,$F50,NA())","v":{"$error":"#N/A"}},{"$f":"IF(VLOOKUP($A50,'US Regions'!$B$23:$E$73,4,FALSE)=L$11,$F50,NA())","v":{"$error":"#N/A"}},{"$f":"IF(VLOOKUP($A50,'US Regions'!$B$23:$E$73,4,FALSE)=M$11,$F50,NA())","v":{"$error":"#N/A"}},{"$f":"IF(VLOOKUP($A50,'US Regions'!$B$23:$E$73,4,FALSE)=N$11,$F50,NA())","v":16.600000000000001},null,null,"Source: U.S. Census Bureau"]
["Texas",17.100000000000001,0.9,17.899999999999999,1.1000000000000001,16.899999999999999,1,-1,1.3,"TX",{"$f":"IF(VLOOKUP($A51,'US Regions'!$B$23:$E$73,4,FALSE)=K$11,$F51,NA())","v":{"$error":"#N/A"}},{"$f":"IF(VLOOKUP($A51,'US Regions'!$B$23:$E$73,4,FALSE)=L$11,$F51,NA())","v":{"$error":"#N/A"}},{"$f":"IF(VLOOKUP($A51,'US Regions'!$B$23:$E$73,4,FALSE)=M$11,$F51,NA())","v":16.899999999999999},{"$f":"IF(VLOOKUP($A51,'US Regions'!$B$23:$E$73,4,FALSE)=N$11,$F51,NA())","v":{"$error":"#N/A"}}]
["West Virginia",17.2,2.7,17.2,2.1,17,2.9,-0.1,2.5,"WV",{"$f":"IF(VLOOKUP($A52,'US Regions'!$B$23:$E$73,4,FALSE)=K$11,$F52,NA())","v":{"$error":"#N/A"}},{"$f":"IF(VLOOKUP($A52,'US Regions'!$B$23:$E$73,4,FALSE)=L$11,$F52,NA())","v":{"$error":"#N/A"}},{"$f":"IF(VLOOKUP($A52,'US Regions'!$B$23:$E$73,4,FALSE)=M$11,$F52,NA())","v":17},{"$f":"IF(VLOOKUP($A52,'US Regions'!$B$23:$E$73,4,FALSE)=N$11,$F52,NA())","v":{"$error":"#N/A"}}]
["Georgia",17.600000000000001,1.2,18.600000000000001,1.5,17.2,1.5,-1.4,2.1,"GA",{"$f":"IF(VLOOKUP($A53,'US Regions'!$B$23:$E$73,4,FALSE)=K$11,$F53,NA())","v":{"$error":"#N/A"}},{"$f":"IF(VLOOKUP($A53,'US Regions'!$B$23:$E$73,4,FALSE)=L$11,$F53,NA())","v":{"$error":"#N/A"}},{"$f":"IF(VLOOKUP($A53,'US Regions'!$B$23:$E$73,4,FALSE)=M$11,$F53,NA())","v":17.2},{"$f":"IF(VLOOKUP($A53,'US Regions'!$B$23:$E$73,4,FALSE)=N$11,$F53,NA())","v":{"$error":"#N/A"}}]
["North Carolina",17,1.7,16.399999999999999,1.6,17.899999999999999,2,1.5,2,"NC",{"$f":"IF(VLOOKUP($A54,'US Regions'!$B$23:$E$73,4,FALSE)=K$11,$F54,NA())","v":{"$error":"#N/A"}},{"$f":"IF(VLOOKUP($A54,'US Regions'!$B$23:$E$73,4,FALSE)=L$11,$F54,NA())","v":{"$error":"#N/A"}},{"$f":"IF(VLOOKUP($A54,'US Regions'!$B$23:$E$73,4,FALSE)=M$11,$F54,NA())","v":17.899999999999999},{"$f":"IF(VLOOKUP($A54,'US Regions'!$B$23:$E$73,4,FALSE)=N$11,$F54,NA())","v":{"$error":"#N/A"}}]
["Tennessee",17.7,2,16.5,2.1,18.399999999999999,2.2999999999999998,1.9,2.5,"TN",{"$f":"IF(VLOOKUP($A55,'US Regions'!$B$23:$E$73,4,FALSE)=K$11,$F55,NA())","v":{"$error":"#N/A"}},{"$f":"IF(VLOOKUP($A55,'US Regions'!$B$23:$E$73,4,FALSE)=L$11,$F55,NA())","v":{"$error":"#N/A"}},{"$f":"IF(VLOOKUP($A55,'US Regions'!$B$23:$E$73,4,FALSE)=M$11,$F55,NA())","v":18.399999999999999},{"$f":"IF(VLOOKUP($A55,'US Regions'!$B$23:$E$73,4,FALSE)=N$11,$F55,NA())","v":{"$error":"#N/A"}}]
["Arkansas",18.7,2.2999999999999998,17,2.1,18.600000000000001,2.7,1.6,2.2999999999999998,"AR",{"$f":"IF(VLOOKUP($A56,'US Regions'!$B$23:$E$73,4,FALSE)=K$11,$F56,NA())","v":{"$error":"#N/A"}},{"$f":"IF(VLOOKUP($A56,'US Regions'!$B$23:$E$73,4,FALSE)=L$11,$F56,NA())","v":{"$error":"#N/A"}},{"$f":"IF(VLOOKUP($A56,'US Regions'!$B$23:$E$73,4,FALSE)=M$11,$F56,NA())","v":18.600000000000001},{"$f":"IF(VLOOKUP($A56,'US Regions'!$B$23:$E$73,4,FALSE)=N$11,$F56,NA())","v":{"$error":"#N/A"}}]
["Kentucky",18,1.6,16.8,2,18.899999999999999,1.8,2.1,2.2999999999999998,"KY",{"$f":"IF(VLOOKUP($A57,'US Regions'!$B$23:$E$73,4,FALSE)=K$11,$F57,NA())","v":{"$error":"#N/A"}},{"$f":"IF(VLOOKUP($A57,'US Regions'!$B$23:$E$73,4,FALSE)=L$11,$F57,NA())","v":{"$error":"#N/A"}},{"$f":"IF(VLOOKUP($A57,'US Regions'!$B$23:$E$73,4,FALSE)=M$11,$F57,NA())","v":18.899999999999999},{"$f":"IF(VLOOKUP($A57,'US Regions'!$B$23:$E$73,4,FALSE)=N$11,$F57,NA())","v":{"$error":"#N/A"}}]
["Arizona",18.8,1.9,18,2.2999999999999998,19.600000000000001,2.1,1.6,2.1,"AZ",{"$f":"IF(VLOOKUP($A58,'US Regions'!$B$23:$E$73,4,FALSE)=K$11,$F58,NA())","v":{"$error":"#N/A"}},{"$f":"IF(VLOOKUP($A58,'US Regions'!$B$23:$E$73,4,FALSE)=L$11,$F58,NA())","v":{"$error":"#N/A"}},{"$f":"IF(VLOOKUP($A58,'US Regions'!$B$23:$E$73,4,FALSE)=M$11,$F58,NA())","v":{"$error":"#N/A"}},{"$f":"IF(VLOOKUP($A58,'US Regions'!$B$23:$E$73,4,FALSE)=N$11,$F58,NA())","v":19.600000000000001}]
["District of Columbia",19.899999999999999,1.5,19.7,1.8,19.899999999999999,1.8,0.2,2.2999999999999998,"DC",{"$f":"IF(VLOOKUP($A59,'US Regions'!$B$23:$E$73,4,FALSE)=K$11,$F59,NA())","v":{"$error":"#N/A"}},{"$f":"IF(VLOOKUP($A59,'US Regions'!$B$23:$E$73,4,FALSE)=L$11,$F59,NA())","v":{"$error":"#N/A"}},{"$f":"IF(VLOOKUP($A59,'US Regions'!$B$23:$E$73,4,FALSE)=M$11,$F59,NA())","v":19.899999999999999},{"$f":"IF(VLOOKUP($A59,'US Regions'!$B$23:$E$73,4,FALSE)=N$11,$F59,NA())","v":{"$error":"#N/A"}}]
["Louisiana",20.5,2.6,21.3,2.1,20.2,2.9,-1.1000000000000001,2.4,"LA",{"$f":"IF(VLOOKUP($A60,'US Regions'!$B$23:$E$73,4,FALSE)=K$11,$F60,NA())","v":{"$error":"#N/A"}},{"$f":"IF(VLOOKUP($A60,'US Regions'!$B$23:$E$73,4,FALSE)=L$11,$F60,NA())","v":{"$error":"#N/A"}},{"$f":"IF(VLOOKUP($A60,'US Regions'!$B$23:$E$73,4,FALSE)=M$11,$F60,NA())","v":20.2},{"$f":"IF(VLOOKUP($A60,'US Regions'!$B$23:$E$73,4,FALSE)=N$11,$F60,NA())","v":{"$error":"#N/A"}}]
["New Mexico",21.4,2.2000000000000002,20.2,2.2000000000000002,21,2.8,0.8,3.4,"NM",{"$f":"IF(VLOOKUP($A61,'US Regions'!$B$23:$E$73,4,FALSE)=K$11,$F61,NA())","v":{"$error":"#N/A"}},{"$f":"IF(VLOOKUP($A61,'US Regions'!$B$23:$E$73,4,FALSE)=L$11,$F61,NA())","v":{"$error":"#N/A"}},{"$f":"IF(VLOOKUP($A61,'US Regions'!$B$23:$E$73,4,FALSE)=M$11,$F61,NA())","v":{"$error":"#N/A"}},{"$f":"IF(VLOOKUP($A61,'US Regions'!$B$23:$E$73,4,FALSE)=N$11,$F61,NA())","v":21}]
["Mississippi",20.6,2.1,20,1.7,22.2,2.4,"*2.3",2.1,"MS",{"$f":"IF(VLOOKUP($A62,'US Regions'!$B$23:$E$73,4,FALSE)=K$11,$F62,NA())","v":{"$error":"#N/A"}},{"$f":"IF(VLOOKUP($A62,'US Regions'!$B$23:$E$73,4,FALSE)=L$11,$F62,NA())","v":{"$error":"#N/A"}},{"$f":"IF(VLOOKUP($A62,'US Regions'!$B$23:$E$73,4,FALSE)=M$11,$F62,NA())","v":22.2},{"$f":"IF(VLOOKUP($A62,'US Regions'!$B$23:$E$73,4,FALSE)=N$11,$F62,NA())","v":{"$error":"#N/A"}}]
["*An asterisk preceding an estimate indicates change is statistically different from zero at the 90 percent confidence level"]
[]
["1Data are based on the CPS ASEC sample of 68,000 addresses. The 2014 CPS ASEC included redesigned questions for income and health insurance coverage. All of the approximately 98,000 addresses were eligible to receive the redesigned set of health insurance coverage questions. The redesigned income questions were implemented to a subsample of these 98,000 addresses using a probability split panel design. Approximately 68,000 addresses were eligible to receive a set of income questions similar to those used in the 2013 CPS ASEC and the remaining 30,000 addresses were eligible to receive the redesigned income questions. The source of the 2013 data for this table is the portion of the CPS ASEC sample which received the income questions consistent with the 2013 CPS ASEC, approximately 68,000 addresses"]
["2A 90 percent confidence interval is a measure of an estimate's variability.  The larger the confidence interval in relation to the size of the estimate, the less reliable the estimate.  Confidence interval shown in this table are based on standard errors calculated using replicate weights.  Fore more information, see \"Standard Errors and Their Use\" at <ftp://ftp2.census.gov/library/publications/2014/demo/p60-249sa.pdf>."]
["3Details may not sum to totals because of rounding."]
[]
["Source:  U.S. Census Bureau, Current Population Survey, 2011 to 2014 Annual Social and Economic Supplements."]

{"sheet":"8.5","index":3,"n_rows":56,"n_cols":28,"rows_kept":56,"cut":false,"hidden":false,"merged":[]}
[]
[]
[null,null,null,null,null,null,null,null,null,null,null,null,"Alphanumeric"]
["State or Region",2010,null,null,null,null,null,null,null,null,null,null,null,null,null,null,null,"Geo",null,null,null,null,null,null,"Rank"]
[null,"Population",null,null,"Area",null,null,null,null,"Alpha",null,"Population","Density"]
["Alaska",710231,1.2,{"$f":"VLOOKUP(A6,'8.4'!$A$12:$J$62,10,FALSE)","v":"AK"},570640.94999999995,{"$f":"TRIM(MID(VLOOKUP(A6,'US Regions'!$B$23:$D$73,3,FALSE),13,500))","v":"Pacific"},{"$f":"B6/E6","v":1.2446197560830503},0,null,"Central","West South Central",36346202,{"$f":"L6/SUMIF($F$6:$F$56,K6,$E$6:$E$56)","v":85.507194517858537},"W-S",{"$f":"TRIM(Q6&\" \"&P6)","v":"Pacific"}," ","Pacific",{"$f":"VLOOKUP(Q6,$K$6:$M$14,3,FALSE)","v":55.714133376748869},593.20000000000005,"Pac",null," ","Mountain",22065451,{"$f":"VLOOKUP(W6,$K$6:$M$14,3,FALSE)","v":25.784415051863771},"Mountain ",{"$f":"VLOOKUP(W6,$Q$6:$T$14,4,FALSE)","v":"Mnt"},{"$f":"TRIM(W6&\" \"&V6)","v":"Mountain"}]
["Wyoming",563626,5.8,{"$f":"VLOOKUP(A7,'8.4'!$A$12:$J$62,10,FALSE)","v":"WY"},97093.14,{"$f":"TRIM(MID(VLOOKUP(A7,'US Regions'!$B$23:$D$73,3,FALSE),13,500))","v":"Mountain"},5.8050033194930144,1,null,"Central","West North Central",20505437,40.395244017927745,"W-N",{"$f":"TRIM(Q7&\" \"&P7)","v":"Mountain"}," ","Mountain",25.784415051863771,211.6,"Mnt",null,"Central","West North Central",20505437,40.395244017927745,{"$f":"W7&\" \"&V7","v":"West North Central Central"},"W-N","West North Central Central"]
["Montana",989415,6.8,{"$f":"VLOOKUP(A8,'8.4'!$A$12:$J$62,10,FALSE)","v":"MT"},145545.79999999999,{"$f":"TRIM(MID(VLOOKUP(A8,'US Regions'!$B$23:$D$73,3,FALSE),13,500))","v":"Mountain"},6.7979632528042728,2,null,"Atlantic ","South Atlantic",59777037,225.52096964185623,"S","West North Central Central","Central","West North Central",40.395244017927745,287.29999999999995,"W-N",null," ","Pacific",49880102,55.714133376748869,"Pacific ","Pac","Pacific"]
["North Dakota",672591,9.6999999999999993,{"$f":"VLOOKUP(A9,'8.4'!$A$12:$J$62,10,FALSE)","v":"ND"},69000.800000000003,{"$f":"TRIM(MID(VLOOKUP(A9,'US Regions'!$B$23:$D$73,3,FALSE),13,500))","v":"West North Central"},9.7475826367230525,3,null," ","Pacific",49880102,55.714133376748869,"Pac","West South Central Central","Central","West South Central",85.507194517858537,311.90000000000003,"W-S",null,"Central","West South Central",36346202,85.507194517858537,{"$f":"W9&\" \"&V9","v":"West South Central Central"},"W-S","West South Central Central"]
["South Dakota",814180,10.7,{"$f":"VLOOKUP(A10,'8.4'!$A$12:$J$62,10,FALSE)","v":"SD"},75811,{"$f":"TRIM(MID(VLOOKUP(A10,'US Regions'!$B$23:$D$73,3,FALSE),13,500))","v":"West North Central"},10.739602432364697,4,null,"England","New England",14444865,230.42303160741227,"N.Eng","East North Central Central","Central","East North Central",191.11197858333489,974.2,"E-N",null,"Central","East South Central",18432505,103.38505548044689,"East South Central Central","E-S","East South Central Central"]
["New Mexico",2059179,17,{"$f":"VLOOKUP(A11,'8.4'!$A$12:$J$62,10,FALSE)","v":"NM"},121298.15,{"$f":"TRIM(MID(VLOOKUP(A11,'US Regions'!$B$23:$D$73,3,FALSE),13,500))","v":"Mountain"},16.976178119781711,5,null," ","Mountain",22065451,25.784415051863771,"Mnt","East South Central Central","Central","East South Central",103.38505548044689,421.4,"E-S",null,"Central","East North Central",46421564,191.11197858333489,"East North Central Central","E-N","East North Central Central"]
["Idaho",1567582,19,{"$f":"VLOOKUP(A12,'8.4'!$A$12:$J$62,10,FALSE)","v":"ID"},82643.12,{"$f":"TRIM(MID(VLOOKUP(A12,'US Regions'!$B$23:$D$73,3,FALSE),13,500))","v":"Mountain"},18.96808832967584,6,null,"Atlantic","Mid-Atlantic",40872375,411.92307413216969,"Mid-At","South Atlantic Atlantic","Atlantic ","South Atlantic",225.52096964185623,2204.2999999999997,"S",null,"Atlantic ","South Atlantic",59777037,225.52096964185623,"South Atlantic Atlantic ","S","South Atlantic Atlantic"]
["Nebraska",1826341,23.8,{"$f":"VLOOKUP(A13,'8.4'!$A$12:$J$62,10,FALSE)","v":"NE"},76824.17,{"$f":"TRIM(MID(VLOOKUP(A13,'US Regions'!$B$23:$D$73,3,FALSE),13,500))","v":"West North Central"},23.773000085780296,7,null,"Central","East South Central",18432505,103.38505548044689,"E-S","Mid-Atlantic Atlantic","Atlantic","Mid-Atlantic",411.92307413216969,1890.6,"Mid-At",null,"England","New England",14444865,230.42303160741227,"New England England","N.Eng","New England England"]
["Nevada",2700551,24.6,{"$f":"VLOOKUP(A14,'8.4'!$A$12:$J$62,10,FALSE)","v":"NV"},109781.18,{"$f":"TRIM(MID(VLOOKUP(A14,'US Regions'!$B$23:$D$73,3,FALSE),13,500))","v":"Mountain"},24.599398549004484,8,null,"Central","East North Central",46421564,191.11197858333489,"E-N","New England England","England","New England",230.42303160741227,2853.6,"N.Eng",null,"Atlantic","Mid-Atlantic",40872375,411.92307413216969,"Mid-Atlantic Atlantic","Mid-At","Mid-Atlantic Atlantic"]
["Utah",2763885,33.6,{"$f":"VLOOKUP(A15,'8.4'!$A$12:$J$62,10,FALSE)","v":"UT"},82169.62,{"$f":"TRIM(MID(VLOOKUP(A15,'US Regions'!$B$23:$D$73,3,FALSE),13,500))","v":"Mountain"},33.636336641206327,9]
["Kansas",2853118,34.9,{"$f":"VLOOKUP(A16,'8.4'!$A$12:$J$62,10,FALSE)","v":"KS"},81758.720000000001,{"$f":"TRIM(MID(VLOOKUP(A16,'US Regions'!$B$23:$D$73,3,FALSE),13,500))","v":"West North Central"},34.896803668159187,10]
["Oregon",3831074,39.9,{"$f":"VLOOKUP(A17,'8.4'!$A$12:$J$62,10,FALSE)","v":"OR"},95988.01,{"$f":"TRIM(MID(VLOOKUP(A17,'US Regions'!$B$23:$D$73,3,FALSE),13,500))","v":"Pacific"},39.912005676542314,11]
["Maine",1328361,43.1,{"$f":"VLOOKUP(A18,'8.4'!$A$12:$J$62,10,FALSE)","v":"ME"},30842.92,{"$f":"TRIM(MID(VLOOKUP(A18,'US Regions'!$B$23:$D$73,3,FALSE),13,500))","v":"New England"},43.06858753970117,12]
["Colorado",5029196,48.5,{"$f":"VLOOKUP(A19,'8.4'!$A$12:$J$62,10,FALSE)","v":"CO"},103641.89,{"$f":"TRIM(MID(VLOOKUP(A19,'US Regions'!$B$23:$D$73,3,FALSE),13,500))","v":"Mountain"},48.524742263962956,13]
["Iowa",3046355,54.5,{"$f":"VLOOKUP(A20,'8.4'!$A$12:$J$62,10,FALSE)","v":"IA"},55857.13,{"$f":"TRIM(MID(VLOOKUP(A20,'US Regions'!$B$23:$D$73,3,FALSE),13,500))","v":"West North Central"},54.538337361765635,14,null,null,null,null,null,null,null,null,null,null,null,null,"POPULATION DENSITY BY DIVISION"]
["Oklahoma",3751351,54.7,{"$f":"VLOOKUP(A21,'8.4'!$A$12:$J$62,10,FALSE)","v":"OK"},68594.92,{"$f":"TRIM(MID(VLOOKUP(A21,'US Regions'!$B$23:$D$73,3,FALSE),13,500))","v":"West South Central"},54.688466726107414,15]
["Arkansas",2915918,56,{"$f":"VLOOKUP(A22,'8.4'!$A$12:$J$62,10,FALSE)","v":"AR"},52035.48,{"$f":"TRIM(MID(VLOOKUP(A22,'US Regions'!$B$23:$D$73,3,FALSE),13,500))","v":"West South Central"},56.03711160154571,16]
["Arizona",6392017,56.3,{"$f":"VLOOKUP(A23,'8.4'!$A$12:$J$62,10,FALSE)","v":"AZ"},113594.08,{"$f":"TRIM(MID(VLOOKUP(A23,'US Regions'!$B$23:$D$73,3,FALSE),13,500))","v":"Mountain"},56.270687697809606,17]
["Mississippi",2967297,63.2,{"$f":"VLOOKUP(A24,'8.4'!$A$12:$J$62,10,FALSE)","v":"MS"},46923.27,{"$f":"TRIM(MID(VLOOKUP(A24,'US Regions'!$B$23:$D$73,3,FALSE),13,500))","v":"East South Central"},63.237216843583155,18]
["Minnesota",5303925,66.599999999999994,{"$f":"VLOOKUP(A25,'8.4'!$A$12:$J$62,10,FALSE)","v":"MN"},79626.740000000005,{"$f":"TRIM(MID(VLOOKUP(A25,'US Regions'!$B$23:$D$73,3,FALSE),13,500))","v":"West North Central"},66.609847395485488,19]
["Vermont",625741,67.900000000000006,{"$f":"VLOOKUP(A26,'8.4'!$A$12:$J$62,10,FALSE)","v":"VT"},9216.66,{"$f":"TRIM(MID(VLOOKUP(A26,'US Regions'!$B$23:$D$73,3,FALSE),13,500))","v":"New England"},67.892381838974202,20]
["West Virginia",1852994,77.099999999999994,{"$f":"VLOOKUP(A27,'8.4'!$A$12:$J$62,10,FALSE)","v":"WV"},24038.21,{"$f":"TRIM(MID(VLOOKUP(A27,'US Regions'!$B$23:$D$73,3,FALSE),13,500))","v":"South Atlantic"},77.085357021175867,21]
["Missouri",5988927,87.1,{"$f":"VLOOKUP(A28,'8.4'!$A$12:$J$62,10,FALSE)","v":"MO"},68741.52,{"$f":"TRIM(MID(VLOOKUP(A28,'US Regions'!$B$23:$D$73,3,FALSE),13,500))","v":"West North Central"},87.122411608006331,22]
["Alabama",4779736,94.4,{"$f":"VLOOKUP(A29,'8.4'!$A$12:$J$62,10,FALSE)","v":"AL"},50645.33,{"$f":"TRIM(MID(VLOOKUP(A29,'US Regions'!$B$23:$D$73,3,FALSE),13,500))","v":"East South Central"},94.376638477822141,23]
["Texas",25145561,96.3,{"$f":"VLOOKUP(A30,'8.4'!$A$12:$J$62,10,FALSE)","v":"TX"},261231.71,{"$f":"TRIM(MID(VLOOKUP(A30,'US Regions'!$B$23:$D$73,3,FALSE),13,500))","v":"West South Central"},96.257690155609367,24]
["Washington",6724540,101.2,{"$f":"VLOOKUP(A31,'8.4'!$A$12:$J$62,10,FALSE)","v":"WA"},66455.520000000004,{"$f":"TRIM(MID(VLOOKUP(A31,'US Regions'!$B$23:$D$73,3,FALSE),13,500))","v":"Pacific"},101.18858448478019,25]
["Louisiana",4533372,104.9,{"$f":"VLOOKUP(A32,'8.4'!$A$12:$J$62,10,FALSE)","v":"LA"},43203.9,{"$f":"TRIM(MID(VLOOKUP(A32,'US Regions'!$B$23:$D$73,3,FALSE),13,500))","v":"West South Central"},104.92969384708324,26]
["Wisconsin",5686986,105,{"$f":"VLOOKUP(A33,'8.4'!$A$12:$J$62,10,FALSE)","v":"WI"},54157.8,{"$f":"TRIM(MID(VLOOKUP(A33,'US Regions'!$B$23:$D$73,3,FALSE),13,500))","v":"East North Central"},105.0076997219237,27]
["Kentucky",4339367,109.9,{"$f":"VLOOKUP(A34,'8.4'!$A$12:$J$62,10,FALSE)","v":"KY"},39486.339999999997,{"$f":"TRIM(MID(VLOOKUP(A34,'US Regions'!$B$23:$D$73,3,FALSE),13,500))","v":"East South Central"},109.89539673720077,28]
["New Hampshire",1316470,147,{"$f":"VLOOKUP(A35,'8.4'!$A$12:$J$62,10,FALSE)","v":"NH"},8952.65,{"$f":"TRIM(MID(VLOOKUP(A35,'US Regions'!$B$23:$D$73,3,FALSE),13,500))","v":"New England"},147.04808073587151,29]
["South Carolina",4625364,153.9,{"$f":"VLOOKUP(A36,'8.4'!$A$12:$J$62,10,FALSE)","v":"SC"},30060.7,{"$f":"TRIM(MID(VLOOKUP(A36,'US Regions'!$B$23:$D$73,3,FALSE),13,500))","v":"South Atlantic"},153.86747480930251,30]
["Tennessee",6346105,153.9,{"$f":"VLOOKUP(A37,'8.4'!$A$12:$J$62,10,FALSE)","v":"TN"},41234.9,{"$f":"TRIM(MID(VLOOKUP(A37,'US Regions'!$B$23:$D$73,3,FALSE),13,500))","v":"East South Central"},153.901306902648,31]
["Georgia",9687653,168.4,{"$f":"VLOOKUP(A38,'8.4'!$A$12:$J$62,10,FALSE)","v":"GA"},57513.49,{"$f":"TRIM(MID(VLOOKUP(A38,'US Regions'!$B$23:$D$73,3,FALSE),13,500))","v":"South Atlantic"},{"$f":"B38/E38","v":168.44140392106269},32]
["Michigan",9883640,174.8,{"$f":"VLOOKUP(A39,'8.4'!$A$12:$J$62,10,FALSE)","v":"MI"},56538.9,{"$f":"TRIM(MID(VLOOKUP(A39,'US Regions'!$B$23:$D$73,3,FALSE),13,500))","v":"East North Central"},174.81132459244873,33]
["Indiana",6483802,181,{"$f":"VLOOKUP(A40,'8.4'!$A$12:$J$62,10,FALSE)","v":"IN"},35826.11,{"$f":"TRIM(MID(VLOOKUP(A40,'US Regions'!$B$23:$D$73,3,FALSE),13,500))","v":"East North Central"},180.97979378726856,34]
["North Carolina",9535483,196.1,{"$f":"VLOOKUP(A41,'8.4'!$A$12:$J$62,10,FALSE)","v":"NC"},48617.91,{"$f":"TRIM(MID(VLOOKUP(A41,'US Regions'!$B$23:$D$73,3,FALSE),13,500))","v":"South Atlantic"},196.13107597591093,35]
["Virginia",8001024,202.6,{"$f":"VLOOKUP(A42,'8.4'!$A$12:$J$62,10,FALSE)","v":"VA"},39490.089999999997,{"$f":"TRIM(MID(VLOOKUP(A42,'US Regions'!$B$23:$D$73,3,FALSE),13,500))","v":"South Atlantic"},202.60840124699641,36]
["Hawaii",1360301,211.8,{"$f":"VLOOKUP(A43,'8.4'!$A$12:$J$62,10,FALSE)","v":"HI"},6422.63,{"$f":"TRIM(MID(VLOOKUP(A43,'US Regions'!$B$23:$D$73,3,FALSE),13,500))","v":"Pacific"},211.79812631274103,37]
["Illinois",12830632,231.1,{"$f":"VLOOKUP(A44,'8.4'!$A$12:$J$62,10,FALSE)","v":"IL"},55518.93,{"$f":"TRIM(MID(VLOOKUP(A44,'US Regions'!$B$23:$D$73,3,FALSE),13,500))","v":"East North Central"},231.10373344731246,38]
["California",37253956,239.1,{"$f":"VLOOKUP(A45,'8.4'!$A$12:$J$62,10,FALSE)","v":"CA"},155779.22,{"$f":"TRIM(MID(VLOOKUP(A45,'US Regions'!$B$23:$D$73,3,FALSE),13,500))","v":"Pacific"},239.14586297196763,39]
["Ohio",11536504,282.3,{"$f":"VLOOKUP(A46,'8.4'!$A$12:$J$62,10,FALSE)","v":"OH"},40860.69,{"$f":"TRIM(MID(VLOOKUP(A46,'US Regions'!$B$23:$D$73,3,FALSE),13,500))","v":"East North Central"},282.33747398783521,40]
["Pennsylvania",12702379,283.89999999999998,{"$f":"VLOOKUP(A47,'8.4'!$A$12:$J$62,10,FALSE)","v":"PA"},44742.7,{"$f":"TRIM(MID(VLOOKUP(A47,'US Regions'!$B$23:$D$73,3,FALSE),13,500))","v":"Mid-Atlantic"},283.89835660342362,41,null,null,null,null,null,null,null,null,null,null,null,null,"Source: U.S. Census Bureau"]
["Florida",18801310,350.6,{"$f":"VLOOKUP(A48,'8.4'!$A$12:$J$62,10,FALSE)","v":"FL"},53624.76,{"$f":"TRIM(MID(VLOOKUP(A48,'US Regions'!$B$23:$D$73,3,FALSE),13,500))","v":"South Atlantic"},350.60874864521537,42]
["New York",19378102,411.2,{"$f":"VLOOKUP(A49,'8.4'!$A$12:$J$62,10,FALSE)","v":"NY"},47126.400000000001,{"$f":"TRIM(MID(VLOOKUP(A49,'US Regions'!$B$23:$D$73,3,FALSE),13,500))","v":"Mid-Atlantic"},411.19419263936987,43]
["Delaware",897934,460.8,{"$f":"VLOOKUP(A50,'8.4'!$A$12:$J$62,10,FALSE)","v":"DE"},1948.54,{"$f":"TRIM(MID(VLOOKUP(A50,'US Regions'!$B$23:$D$73,3,FALSE),13,500))","v":"South Atlantic"},460.82400156014245,44]
["Maryland",5773552,594.79999999999995,{"$f":"VLOOKUP(A51,'8.4'!$A$12:$J$62,10,FALSE)","v":"MD"},9707.24,{"$f":"TRIM(MID(VLOOKUP(A51,'US Regions'!$B$23:$D$73,3,FALSE),13,500))","v":"South Atlantic"},594.76761674791192,45]
["Connecticut",3574097,738.1,{"$f":"VLOOKUP(A52,'8.4'!$A$12:$J$62,10,FALSE)","v":"CT"},4842.3599999999997,{"$f":"TRIM(MID(VLOOKUP(A52,'US Regions'!$B$23:$D$73,3,FALSE),13,500))","v":"New England"},738.08989831404529,46]
["Massachusetts",6547629,839.4,{"$f":"VLOOKUP(A53,'8.4'!$A$12:$J$62,10,FALSE)","v":"MA"},7800.06,{"$f":"TRIM(MID(VLOOKUP(A53,'US Regions'!$B$23:$D$73,3,FALSE),13,500))","v":"New England"},839.43315820647524,47]
["Rhode Island",1052567,1018.1,{"$f":"VLOOKUP(A54,'8.4'!$A$12:$J$62,10,FALSE)","v":"RI"},1033.81,{"$f":"TRIM(MID(VLOOKUP(A54,'US Regions'!$B$23:$D$73,3,FALSE),13,500))","v":"New England"},1018.1435660324431,48]
["New Jersey",8791894,1195.5,{"$f":"VLOOKUP(A55,'8.4'!$A$12:$J$62,10,FALSE)","v":"NJ"},7354.22,{"$f":"TRIM(MID(VLOOKUP(A55,'US Regions'!$B$23:$D$73,3,FALSE),13,500))","v":"Mid-Atlantic"},1195.489664437561,49]
["District of Columbia",601723,0,{"$f":"VLOOKUP(A56,'8.4'!$A$12:$J$62,10,FALSE)","v":"DC"},61.05,{"$f":"TRIM(MID(VLOOKUP(A56,'US Regions'!$B$23:$D$73,3,FALSE),13,500))","v":"South Atlantic"},9856.2325962325958,50]

{"sheet":"8.6","index":4,"n_rows":149,"n_cols":18,"rows_kept":149,"cut":false,"hidden":false,"merged":[]}
["GDP and main components - volumes [nama_gdp_k]",null,null,null,"Percentage change over previous period",null,"Get the data:","http://goo.gl/ad4wQh"]
[null,null,null,null,"Gross domestic product at market prices"]
["Last update",null,null,null,"2015-06-29T14:20:21",null,null,null,null,"UNIT"]
["Extracted on",null,null,null,"2015-08-31T17:28:37.683",null,null,null,null,"INDIC_NA"]
["Source of data",null,null,null,"Eurostat"]
[]
["UNIT",null,null,null,"Million euro, chain-linked volumes, reference year 2005 (at 2005 exchange rates)"]
["INDIC_NA",null,null,null,"Gross domestic product at market prices"]
[]
["GEO/TIME",null,null,null,"2000","2001","2002","2003","2004","2005","WE SPEND MUCH MORE ON TRANSPORTATION THAN ON FOOD. OR MAYBE NOT?","2007","2008","2009","2010","2011","2012","2013"]
["EU28",null,null,null,10128408.4,10331500.4,10463177.800000001,10618859.800000001,10892654.1,11128703,11503494.9,11872177.1,11917008.800000001,11379655.300000001,11608573.5,11799895.9,11754459.300000001,11765333.6]
["Belgium",null,null,null,280340.40000000002,282604.5,286447,288758.09999999998,298213,303435,311526.2,320508.2,323665.7,314601.2,321956.09999999998,327604,327132.90000000002,327776.09999999998]
["Bulgaria",null,null,null,17812.3,18551.7,19414.400000000001,20483.3,21865.599999999999,23255.8,24769.9,26367.200000000001,27999.4,26466.1,26570,27059.200000000001,27217.8,27452.3]
["Czech Republic",null,null,null,85627.199999999997,88279.3,90176.7,93572.9,98010.7,104628.8,111974.2,118396,122065.1,116563.5,119441.8,121614,120372.2,119247.7]
["Denmark",null,null,null,194829.6,196202.8,197116.79999999999,197873.4,202417.5,207366.9,214406.5,217801.1,216093.8,203849.3,206676.4,208890.5,208141.1,209009.2]
["Germany",null,null,null,2159225.1,2191923.7999999998,2192146.2000000002,2183915.9,2209274.1,2224400,2306702.7999999998,2382110,2407913,2284013.9,2375659.2000000002,2454847.7999999998,2471753.2999999998,2482430.4]
["Estonia",null,null,null,7932.1,8425.1,8950.6,9674.7000000000007,10276.299999999999,11189.1,12332,13228.4,12680.6,10896.6,11258.2,12234.2,12786,13073.4]
["Ireland",null,null,null,128371.4,134770.79999999999,142071.5,147370.4,153559.6,162896.79999999999,171864.6,180406.6,176509.1,165240,163483.20000000001,167028.6,167290.9,166723.4]
["Greece",null,null,null,158378.29999999999,165025.70000000001,170701.6,180847.7,188746.4,193049.7,203681.9,210884.5,210430.8,203830.39999999999,193753.60000000001,179985.8,167436.1,160981.20000000001]
["Spain",null,null,null,774475.1,802893.9,824653.8,850131,877839.3,909298,946363,979288.7,988021,950156.4,948244.1,948721.1,933148.3,921738.7]
["France",null,null,null,1586559.1,1615684.1,1630691.8,1645359.9,1687230,1718047,1760429.6,1800662.7,1799210.2,1742588.1,1772645.2,1808574.8,1808825.8,1812687]
["Croatia",null,null,null,28966.400000000001,30025.4,31490.1,33181.5,34551.4,36030.1,37808.300000000003,39721.300000000003,40549.300000000003,37732.199999999997,36874.800000000003,36788.199999999997,35982.1,35653.9]
["Italy",null,null,null,1367800.9,1393277.9,1399567.7,1398915.8,1423126.4,1436379.5,1467964.4,1492671.1,1475412.4,1394347.2,1418375.8,1424751.5,1391018,1365226.8]
["Cyprus",null,null,null,11606.7,12073.7,12330.7,12561,13093,13598.2,14159.7,14881,15414.6,15128.7,15326.7,15394.2,15022.8,14209.9]
["Latvia",null,null,null,8715,9355.4,10022.299999999999,10789.6,11742.1,12927.8,14348.3,15781.3,15344,12628.2,12463.2,13124.6,13809.3,14376.8]
["Lithuania",null,null,null,14412.8,15378.4,16429.900000000001,18118.3,19453.400000000001,20969.099999999999,22606.5,24821.1,25544,21751.5,22098.7,23435.5,24293,25102.5]
["Luxembourg",null,null,null,25398.6,26038.1,27103.1,27554.5,28758.799999999999,30269.5,31763.599999999999,33856.199999999997,33607.5,31740.2,32724.6,33348,33289.4,34000.699999999997]
["Hungary",null,null,null,72381.899999999994,75068.899999999994,78451.600000000006,81472.3,85380.6,88765.5,92221.8,92323.6,93148.2,86844.5,87759.8,89138.4,87654.7,88618.4]
["Malta",null,null,null,4627.5,4627.3999999999996,4740,4774,4760.3,4930.8999999999996,5058.2,5264.1,5468.5,5314.7,5541.5,5618.6,5680.2,5843.1]
["Netherlands",null,null,null,480825.2,490084.8,490459.2,492104.9,503110.9,513407,530833,551645.1,561597,541000.1,549264.6,554453.19999999995,547538.30000000005,543033]
["Austria",null,null,null,225655,227589.7,231444.5,233448.6,239493.9,245243.4,254243.3,263665.5,267452.40000000002,257230.6,261781.5,269201.3,271544.7,272410.5]
["Poland",null,null,null,209984.3,212515.20000000001,215582.9,223919.8,235887.9,244420.1,259641.3,277258.7,291472.5,296218.5,307696.2,321606.5,328018.3,333111.09999999998]
["Portugal",null,null,null,148038.9,150962.29999999999,152116.29999999999,150730.29999999999,153082.20000000001,154268.70000000001,156503,160204.79999999999,160191.20000000001,155532.29999999999,158544,156561.4,151503.70000000001,149374]
["Romania",null,null,null,60434.5,63866.5,67109,70623.3,76619.399999999994,79801.899999999994,86086.1,91524.3,98250.3,91789.3,90734.7,92847.7,93364.3,96655.3]
["Slovenia",null,null,null,24051.5,24758.6,25706,26459.200000000001,27623.9,28730.9,30411.5,32528.2,33628.800000000003,30957.599999999999,31347.200000000001,31569.4,30766.6,30426.1]
["Slovakia",null,null,null,30293.1,31347.9,32784.6,34350,36087.4,38489.1,41701.199999999997,46077.3,48726.9,46321.9,48371.8,49814.9,50712.2,51189.3]
["Finland",null,null,null,138259.20000000001,141416.70000000001,144010.4,146908.6,152968.4,157429,164372.6,173142.2,173650.5,158823.1,164164.4,168801.8,167100.20000000001,164795.1]
["Sweden",null,null,null,261261,264558.90000000002,271129,277461.8,289211.90000000002,298353.3,311174.09999999998,321487.09999999998,319515.09999999998,303450.7,323347.5,332829.90000000002,335919.2,341419.4]
["United Kingdom",null,null,null,1613316.9,1648566,1686403.9,1752998.6,1808623.9,1867129.3,1918568.7,1984322.7,1969053.7,1867245.6,1898237.2,1919447.8,1924778.5,1958337.2]
["Iceland",null,null,null,10637.3,11054.4,11069.8,11339.3,12227.8,13111.9,13729.3,14551,14723.9,13757.7,13193.8,13544.1,13742.3,14190.7]
["Norway",null,null,null,219372.2,223738,227098.6,229326.1,238409.8,244582.1,250204.5,256842.5,257016.2,252814.1,254022.9,257429.8,264885.8,266598.8]
["Switzerland",null,null,null,289974.59999999998,293579.40000000002,294123.59999999998,294185.59999999998,301308.3,309428.40000000002,321036.79999999999,333382.90000000002,340598.2,334001.40000000002,343865.2,350021.3,353693.4,360511.7]
["Montenegro",null,null,null,1437.3,1597.5,1627.9,1668.3,1742.2,1815,1970.5,2180.5,2331.4,2199.5,2253.6999999999998,2326.5,2267.3000000000002,":"]
["FYR Macedonia",null,null,null,4453.1000000000004,4251.5,4287.8999999999996,4408.7,4612.7,4813.5,5055.6000000000004,5366.5,5632.2,5580.4,5741.9,5901,5878.3,6049.4]
["Serbia",null,null,null,":",16458.2,17172.7,17602.7,19245.400000000001,20285.3,21006.7,22137.3,22982.799999999999,22177.1,22400.3,22751.4,22404.9,22964.400000000001]
["Turkey",null,null,null,314170.2,296270.40000000002,314532,331093,362092.6,392514.2,419572.1,439160.2,442053.5,420720.6,458608.9,":",":",":"]
["United States",null,null,null,9286526.4000000004,9377101.8000000007,9544647.6999999993,9812529,10183998.9,10524636.300000001,10805309,10997476.699999999,10965461.1,10661053.9,10931005.5,11106093.199999999,11363844.800000001,11616051]
["Japan",null,null,null,3469837,3482171,3492253.6,3551101.9,3634933.9,3682287.2,3744624.8,3826713.9,3786853.5,3577555,3743983.9,3727034,3792394.6,3853579.8]
[]
[]
[]
[]
["UNIT",null,null,null,"Index, 2005=100"]
["INDIC_NA",null,null,null,"Gross domestic product at market prices"]
[]
["GEO/TIME",null,null,null,"2000","2001","2002","2003","2004","2005","2006","2007","2008","2009","2010","2011","2012","2013"]
["European Union (28 countries)",null,null,null,91,92.8,94,95.4,97.9,100,103.4,106.7,107.1,102.3,104.3,106,105.6,105.7]
["European Union (27 countries)",null,null,null,91,92.9,94,95.4,97.9,100,103.4,106.7,107.1,102.2,104.3,106,105.6,105.7]
["European Union (15 countries)",null,null,null,91.6,93.4,94.5,95.7,98,100,103.2,106.3,106.3,101.5,103.5,105.1,104.6,104.6]
["Euro area (EA11-2000, EA12-2006, EA13-2007, EA15-2008, EA16-2010, EA17-2013, EA18-2014, EA19)",null,null,null,93.2,94.8,95.6,96.3,98.4,100,103.2,106.2,106.6,102,104,105.6,104.9,104.5]
["Euro area (18 countries)",null,null,null,92.8,94.6,95.5,96.2,98.3,100,103.3,106.4,106.8,102,104,105.6,104.9,104.5]
["Euro area (17 countries)",null,null,null,92.8,94.7,95.5,96.2,98.3,100,103.3,106.3,106.7,102,104,105.6,104.9,104.5]
["Euro area (12 countries)",null,null,null,93,94.8,95.6,96.3,98.4,100,103.2,106.2,106.6,101.9,103.9,105.5,104.8,104.3]
["Belgium",null,null,null,92.4,93.1,94.4,95.2,98.3,100,102.7,105.6,106.7,103.7,106.1,108,107.8,108]
["Bulgaria",null,null,null,76.599999999999994,79.8,83.5,88.1,94,100,106.5,113.4,120.4,113.8,114.3,116.4,117,118]
["Czech Republic",null,null,null,81.8,84.4,86.2,89.4,93.7,100,107,113.2,116.7,111.4,114.2,116.2,115,114]
["Denmark",null,null,null,94,94.6,95.1,95.4,97.6,100,103.4,105,104.2,98.3,99.7,100.7,100.4,100.8]
["Germany (until 1990 former territory of the FRG)",null,null,null,97.1,98.5,98.6,98.2,99.3,100,103.7,107.1,108.3,102.7,106.8,110.4,111.1,111.6]
["Estonia",null,null,null,70.900000000000006,75.3,80,86.5,91.8,100,110.2,118.2,113.3,97.4,100.6,109.3,114.3,116.8]
["Ireland",null,null,null,78.8,82.7,87.2,90.5,94.3,100,105.5,110.7,108.4,101.4,100.4,102.5,102.7,102.3]
["Greece",null,null,null,82,85.5,88.4,93.7,97.8,100,105.5,109.2,109,105.6,100.4,93.2,86.7,83.4]
["Spain",null,null,null,85.2,88.3,90.7,93.5,96.5,100,104.1,107.7,108.7,104.5,104.3,104.3,102.6,101.4]
["France",null,null,null,92.3,94,94.9,95.8,98.2,100,102.5,104.8,104.7,101.4,103.2,105.3,105.3,105.5]
["Croatia",null,null,null,80.400000000000006,83.3,87.4,92.1,95.9,100,104.9,110.2,112.5,104.7,102.3,102.1,99.9,99]
["Italy",null,null,null,95.2,97,97.4,97.4,99.1,100,102.2,103.9,102.7,97.1,98.7,99.2,96.8,95]
["Cyprus",null,null,null,85.4,88.8,90.7,92.4,96.3,100,104.1,109.4,113.4,111.3,112.7,113.2,110.5,104.5]
["Latvia",null,null,null,67.400000000000006,72.400000000000006,77.5,83.5,90.8,100,111,122.1,118.7,97.7,96.4,101.5,106.8,111.2]
["Lithuania",null,null,null,68.7,73.3,78.400000000000006,86.4,92.8,100,107.8,118.4,121.8,103.7,105.4,111.8,115.9,119.7]
["Luxembourg",null,null,null,83.9,86,89.5,91,95,100,104.9,111.8,111,104.9,108.1,110.2,110,112.3]
["Hungary",null,null,null,81.5,84.6,88.4,91.8,96.2,100,103.9,104,104.9,97.8,98.9,100.4,98.7,99.8]
["Malta",null,null,null,93.8,93.8,96.1,96.8,96.5,100,102.6,106.8,110.9,107.8,112.4,113.9,115.2,118.5]
["Netherlands",null,null,null,93.7,95.5,95.5,95.9,98,100,103.4,107.4,109.4,105.4,107,108,106.6,105.8]
["Austria",null,null,null,92,92.8,94.4,95.2,97.7,100,103.7,107.5,109.1,104.9,106.7,109.8,110.7,111.1]
["Poland",null,null,null,85.9,86.9,88.2,91.6,96.5,100,106.2,113.4,119.3,121.2,125.9,131.6,134.19999999999999,136.30000000000001]
["Portugal",null,null,null,96,97.9,98.6,97.7,99.2,100,101.4,103.8,103.8,100.8,102.8,101.5,98.2,96.8]
["Romania",null,null,null,75.7,80,84.1,88.5,96,100,107.9,114.7,123.1,115,113.7,116.3,117,121.1]
["Slovenia",null,null,null,83.7,86.2,89.5,92.1,96.1,100,105.8,113.2,117,107.8,109.1,109.9,107.1,105.9]
["Slovakia",null,null,null,78.7,81.400000000000006,85.2,89.2,93.8,100,108.3,119.7,126.6,120.4,125.7,129.4,131.80000000000001,133]
["Finland",null,null,null,87.8,89.8,91.5,93.3,97.2,100,104.4,110,110.3,100.9,104.3,107.2,106.1,104.7]
["Sweden",null,null,null,87.6,88.7,90.9,93,96.9,100,104.3,107.8,107.1,101.7,108.4,111.6,112.6,114.4]
["United Kingdom",null,null,null,86.4,88.3,90.3,93.9,96.9,100,102.8,106.3,105.5,100,101.7,102.8,103.1,104.9]
["Iceland",null,null,null,81.099999999999994,84.3,84.4,86.5,93.3,100,104.7,111,112.3,104.9,100.6,103.3,104.8,108.2]
["Norway",null,null,null,89.7,91.5,92.9,93.8,97.5,100,102.3,105,105.1,103.4,103.9,105.3,108.3,109]
["Switzerland",null,null,null,93.7,94.9,95.1,95.1,97.4,100,103.8,107.7,110.1,107.9,111.1,113.1,114.3,116.5]
["Montenegro",null,null,null,79.2,88,89.7,91.9,96,100,108.6,120.1,128.5,121.2,124.2,128.19999999999999,124.9,":"]
["Former Yugoslav Republic of Macedonia, the",null,null,null,92.5,88.3,89.1,91.6,95.8,100,105,111.5,117,115.9,119.3,122.6,122.1,125.7]
["Serbia",null,null,null,":",81.099999999999994,84.7,86.8,94.9,100,103.6,109.1,113.3,109.3,110.4,112.2,110.4,113.2]
["Turkey",null,null,null,80,75.5,80.099999999999994,84.4,92.2,100,106.9,111.9,112.6,107.2,116.8,":",":",":"]
["United States",null,null,null,88.2,89.1,90.7,93.2,96.8,100,102.7,104.5,104.2,101.3,103.9,105.5,108,110.4]
["Japan",null,null,null,94.2,94.6,94.8,96.4,98.7,100,101.7,103.9,102.8,97.2,101.7,101.2,103,104.7]
[]
["Special value:"]
[":",null,null,null,"not available"]
[]
[]
[{"$f":"UPPER(E2)","v":"GROSS DOMESTIC PRODUCT AT MARKET PRICES"}]
[{"$f":"E1&\", 2000–2013\"","v":"Percentage change over previous period, 2000–2013"}]
[]
["Country","Same y-axis range",null,"Country-specific range","2000","2001","2002","2003","2004","2005","2006","2007","2008","2009","2010","2011","2012","2013"]
["United States",null,null,null,4.0999999999999996,1,1.8,2.8,3.8,3.3,2.7,1.8,-0.3,-2.8,2.5,1.6,2.2999999999999998,2.2000000000000002]
["EU-28",null,null,null,3.9,2,1.3,1.5,2.6,2.2000000000000002,3.4,3.2,0.4,-4.5,2,1.6,-0.4,0.1]
["Latvia",null,null,null,5.3,7.3,7.1,7.7,8.8000000000000007,10.1,11,10,-2.8,-17.7,-1.3,5.3,5.2,4.0999999999999996]
["Estonia",null,null,null,9.9,6.2,6.2,8.1,6.2,8.9,10.199999999999999,7.3,-4.0999999999999996,-14.1,3.3,8.6999999999999993,4.5,2.2000000000000002]
["Lithuania",null,null,null,3.6,6.7,6.8,10.3,7.4,7.8,7.8,9.8000000000000007,2.9,-14.8,1.6,6,3.7,3.3]
["Turkey",null,null,null,6.8,-5.7,6.2,5.3,9.4,8.4,6.9,4.7,0.7,-4.8,9,":",":",":"]
["Romania",null,null,null,2.4,5.7,5.0999999999999996,5.2,8.5,4.2,7.9,6.3,7.3,-6.6,-1.1000000000000001,2.2999999999999998,0.6,3.5]
["Slovakia",null,null,null,1.4,3.5,4.5999999999999996,4.8,5.0999999999999996,6.7,8.3000000000000007,10.5,5.8,-4.9000000000000004,4.4000000000000004,3,1.8,0.9]
["Montenegro",null,null,null,":",11.1,1.9,2.5,4.4000000000000004,4.2,8.6,10.7,6.9,-5.7,2.5,3.2,-2.5,":"]
["Bulgaria",null,null,null,5.7,4.2,4.7,5.5,6.7,6.4,6.5,6.4,6.2,-5.5,0.4,1.8,0.6,0.9]
["Greece",null,null,null,4.5,4.2,3.4,5.9,4.4000000000000004,2.2999999999999998,5.5,3.5,-0.2,-3.1,-4.9000000000000004,-7.1,-7,-3.9]
["Ireland",null,null,null,10.6,5,5.4,3.7,4.2,6.1,5.5,5,-2.2000000000000002,-6.4,-1.1000000000000001,2.2000000000000002,0.2,-0.3]
["Iceland",null,null,null,4.3,3.9,0.1,2.4,7.8,7.2,4.7,6,1.2,-6.6,-4.0999999999999996,2.7,1.5,3.3]
["Slovenia",null,null,null,4.3,2.9,3.8,2.9,4.4000000000000004,4,5.8,7,3.4,-7.9,1.3,0.7,-2.5,-1.1000000000000001]
["Luxembourg",null,null,null,8.4,2.5,4.0999999999999996,1.7,4.4000000000000004,5.3,4.9000000000000004,6.6,-0.7,-5.6,3.1,1.9,-0.2,2.1]
["Poland",null,null,null,4.3,1.2,1.4,3.9,5.3,3.6,6.2,6.8,5.0999999999999996,1.6,3.9,4.5,2,1.6]
["Czech Republic",null,null,null,4.2,3.1,2.1,3.8,4.7,6.8,7,5.7,3.1,-4.5,2.5,1.8,-1,-0.9]
["Croatia",null,null,null,3.8,3.7,4.9000000000000004,5.4,4.0999999999999996,4.3,4.9000000000000004,5.0999999999999996,2.1,-6.9,-2.2999999999999998,-0.2,-2.2000000000000002,-0.9]
["FYR of Macedonia",null,null,null,4.5,-4.5,0.9,2.8,4.5999999999999996,4.4000000000000004,5,6.1,5,-0.9,2.9,2.8,-0.4,2.9]
["Finland",null,null,null,5.3,2.2999999999999998,1.8,2,4.0999999999999996,2.9,4.4000000000000004,5.3,0.3,-8.5,3.4,2.8,-1,-1.4]
["Cyprus",null,null,null,5,4,2.1,1.9,4.2,3.9,4.0999999999999996,5.0999999999999996,3.6,-1.9,1.3,0.4,-2.4,-5.4]
["Serbia",null,null,null,":",":",4.3,2.5,9.3000000000000007,5.4,3.6,5.4,3.8,-3.5,1,1.6,-1.5,2.5]
["Sweden",null,null,null,4.5,1.3,2.5,2.2999999999999998,4.2,3.2,4.3,3.3,-0.6,-5,6.6,2.9,0.9,1.6]
["Hungary",null,null,null,4.2,3.7,4.5,3.9,4.8,4,3.9,0.1,0.9,-6.8,1.1000000000000001,1.6,-1.7,1.1000000000000001]
["Spain",null,null,null,5,3.7,2.7,3.1,3.3,3.6,4.0999999999999996,3.5,0.9,-3.8,-0.2,0.1,-1.6,-1.2]
["United Kingdom",null,null,null,4.4000000000000004,2.2000000000000002,2.2999999999999998,3.9,3.2,3.2,2.8,3.4,-0.8,-5.2,1.7,1.1000000000000001,0.3,1.7]
["Austria",null,null,null,3.7,0.9,1.7,0.9,2.6,2.4,3.7,3.7,1.4,-3.8,1.8,2.8,0.9,0.3]
["Malta",null,null,null,":",0,2.4,0.7,-0.3,3.6,2.6,4.0999999999999996,3.9,-2.8,4.3,1.4,1.1000000000000001,2.9]
["Switzerland",null,null,null,3.7,1.2,0.2,0,2.4,2.7,3.8,3.8,2.2000000000000002,-1.9,3,1.8,1,1.9]
["Germany",null,null,null,3.1,1.5,0,-0.4,1.2,0.7,3.7,3.3,1.1000000000000001,-5.0999999999999996,4,3.3,0.7,0.4]
["Netherlands",null,null,null,3.9,1.9,0.1,0.3,2.2000000000000002,2,3.4,3.9,1.8,-3.7,1.5,0.9,-1.2,-0.8]
["Japan",null,null,null,2.2999999999999998,0.4,0.3,1.7,2.4,1.3,1.7,2.2000000000000002,-1,-5.5,4.7,-0.5,1.8,1.6]
["Norway",null,null,null,3.3,2,1.5,1,4,2.6,2.2999999999999998,2.7,0.1,-1.6,0.5,1.3,2.9,0.6]
["Italy",null,null,null,3.7,1.9,0.5,0,1.7,0.9,2.2000000000000002,1.7,-1.2,-5.5,1.7,0.4,-2.4,-1.9]
["Belgium",null,null,null,3.7,0.8,1.4,0.8,3.3,1.8,2.7,2.9,1,-2.8,2.2999999999999998,1.8,-0.1,0.2]
["Denmark",null,null,null,3.5,0.7,0.5,0.4,2.2999999999999998,2.4,3.4,1.6,-0.8,-5.7,1.4,1.1000000000000001,-0.4,0.4]
["Portugal",null,null,null,3.9,2,0.8,-0.9,1.6,0.8,1.4,2.4,0,-2.9,1.9,-1.3,-3.2,-1.4]
["France",null,null,null,3.7,1.8,0.9,0.9,2.5,1.8,2.5,2.2999999999999998,-0.1,-3.1,1.7,2,0,0.2]
[]
["Source: Eurostat"]

{"sheet":"8.8","index":5,"n_rows":38,"n_cols":20,"rows_kept":38,"cut":false,"hidden":false,"merged":[]}
["GDP and main components - Current prices [nama_gdp_c]"]
[]
["Last update","2014-09-12T20:15:27"]
["Extracted on","2014-09-13T10:37:36.367"]
["Source of data","Eurostat"]
[]
["UNIT","Million euro"]
["INDIC_NA","Gross domestic product at market prices"]
[]
["Get the data:",null,"http://goo.gl/o8uaRY"]
[]
[null,{"$f":"RIGHT(B13,2)","v":"95"},{"$f":"RIGHT(C13,2)","v":"96"},"97","98","99","00","01","02","03","04","05","06","07","08","09","10","11","12","13"]
["GEO/TIME","1995","1996","1997","1998","1999","2000","2001","2002","2003","2004","2005","2006","2007","2008","2009","2010","2011","2012","2013"]
["Ireland",53775200000,59016000000,68073399999.999992,78626100000,90654500000,105643600000,117523700000,130717100000,140635100000,150024500000,162896800000,177573500000,189654700000,180249500000,162283500000,158096700000,162599700000,163938700000,164049800000]
[]
["Special value:"]
[":","not available"]
[]
[]
[{"$f":"\"IRELAND: \"&UPPER(B8)","v":"IRELAND: GROSS DOMESTIC PRODUCT AT MARKET PRICES"}]
[]
[]
[]
[]
[]
[]
[]
[]
[]
[]
[]
[]
[]
[]
[]
[]
[]
["Source: Eurostat"]

{"sheet":"8.9","index":6,"n_rows":39,"n_cols":22,"rows_kept":39,"cut":false,"hidden":false,"merged":[]}
["GDP and main components - Price indices [nama_gdp_p]"]
[]
["Last update","2014-09-08T20:15:17"]
["Extracted on","2014-09-13T10:44:29.306"]
["Source of data","Eurostat"]
[null,"Change over previous period, based on 2005=100 and the euro"]
["UNIT","Price index - percentage change over previous period, based on 2005=100 and the euro"]
["INDIC_NA","Gross domestic product at market prices"]
[]
["Get the data:",null,"http://goo.gl/zJ0pue"]
[]
[null,{"$f":"RIGHT(B13,2)","v":"95"},"96","97","98","99","00","01","02","03","04","05","06","07","08","09","10","11","12",{"$f":"RIGHT(T13,2)","v":"13"}]
["GEO/TIME","1995","1996","1997","1998","1999","2000","2001","2002","2003","2004","2005","2006","2007","2008","2009","2010","2011","2012","2013","2014","2015"]
["European Union (28 countries)",":",3.2,2.7,1.7,2,3.2,2.1,2.4,0.2,2.4,2.2000000000000002,2.2999999999999998,2.7,0.2,-1.4,2.4,1.4,2.2999999999999998,0.7,":",":"]
["Ireland",":",2.8,10,0.8,3.7,5.3,6,5.5,3.7,2.4,2.4,3.3,1.7,-2.9,-3.8,-1.5,0.7,0.7,0.4,":",":"]
[null,null,{"$f":"NA()","v":{"$error":"#N/A"}},{"$f":"NA()","v":{"$error":"#N/A"}},{"$f":"NA()","v":{"$error":"#N/A"}},{"$f":"NA()","v":{"$error":"#N/A"}},{"$f":"NA()","v":{"$error":"#N/A"}},{"$f":"NA()","v":{"$error":"#N/A"}},6,6,6,6,6,6,6,6,6,6,6,6]
[null,null,{"$f":"NA()","v":{"$error":"#N/A"}},{"$f":"NA()","v":{"$error":"#N/A"}},{"$f":"NA()","v":{"$error":"#N/A"}},{"$f":"NA()","v":{"$error":"#N/A"}},{"$f":"NA()","v":{"$error":"#N/A"}},{"$f":"NA()","v":{"$error":"#N/A"}},-6,-6,-6,-6,-6,-6,-6,-6,-6,-6,-6,-6]
[]
[]
["IRELAND: GROSS DOMESTIC PRODUCT AT MARKET PRICES"]
[{"$f":"+B6","v":"Change over previous period, based on 2005=100 and the euro"}]
[]
[]
[]
[]
[]
[]
[]
[]
[]
[]
[]
[]
[]
[]
[]
[]
[]
["Source: Eurostat"]

{"sheet":"8.10","index":7,"n_rows":48,"n_cols":22,"rows_kept":48,"cut":false,"hidden":false,"merged":[]}
["Country","United States of America"]
["Notes"]
[]
[null,"Base values",null,null,null,null,null,null,"Percentages",null,null,null,null,null,null,null,"Folded axis"]
[]
[null,"Male",null,null,"Female",null,null,null,"Male",null,null,"Female",null,null,null,null,"Male",null,null,"Female"]
["Year",1960,2010,2100,1960,2010,2100,null,1960,2010,null,1960,2010,null,null,null,1960,2010,2100,1960,2010,2100]
["00-04",10582.308000000001,10292.737999999999,12421.134,10161.953,9885.1229999999996,11854.909,null,{"$f":"-B8/SUM(B$8:B$28)","v":-0.11462547886454671},{"$f":"-C8/SUM(C$8:C$28)","v":-6.7144790888622435E-2},{"$f":"-D8/SUM(D$8:D$28)","v":-5.5006867857307851E-2},{"$f":"E8/SUM(E$8:E$28)","v":0.10827198487364545},{"$f":"F8/SUM(F$8:F$28)","v":6.3129644509420671E-2},{"$f":"G8/SUM(G$8:G$28)","v":5.2788378826385325E-2},0,null,{"$f":"ABS(I8)","v":0.11462547886454671},{"$f":"ABS(J8)","v":6.7144790888622435E-2},{"$f":"D8/SUM(D$8:D$28)","v":5.5006867857307851E-2},{"$f":"ABS(L8)","v":0.10827198487364545},{"$f":"ABS(M8)","v":6.3129644509420671E-2},{"$f":"G8/SUM(G$8:G$28)","v":5.2788378826385325E-2}]
["05-09",9839.482,10373.171,12522.746999999999,9455.89,9948.8259999999991,11961.02,null,-0.10657933373599481,-6.7669496459243639E-2,-5.5456860012902065E-2,0.10074913543162965,6.3536472805253055E-2,5.3260877406142167E-2,5,null,{"$f":"ABS(I9)","v":0.10657933373599481},{"$f":"ABS(J9)","v":6.7669496459243639E-2},5.5456860012902065E-2,0.10074913543162965,6.3536472805253055E-2,5.3260877406142167E-2]
["10-14",8846.0910000000003,10625.965,12650.291999999999,8462.1550000000007,10085.42,12095.145,null,-9.5819117810061555E-2,-6.9318600931532595E-2,-5.6021691771488705E-2,9.0161243430120511E-2,6.4408806984819655E-2,5.3858118710152933E-2,10,null,9.5819117810061555E-2,6.9318600931532595E-2,5.6021691771488705E-2,9.0161243430120511E-2,6.4408806984819655E-2,5.3858118710152933E-2]
["15-19",6950.5709999999999,11249.795,12770.655000000001,6770.9740000000002,10589.147000000001,12229.353999999999,null,-7.5287217992240557E-2,-7.3388162878999755E-2,-5.6554718114808826E-2,7.2142313048273954E-2,6.7625773171259312E-2,5.4455734055315876E-2,15,null,7.5287217992240557E-2,7.3388162878999755E-2,5.6554718114808826E-2,7.2142313048273954E-2,6.7625773171259312E-2,5.4455734055315876E-2]
["20-24",5733.3990000000003,11104.951999999999,12869.901,5806.3739999999998,10539.001,12355.847,null,-6.2103050288889079E-2,-7.2443277956573793E-2,-5.6994228034544521E-2,6.1864844080535331E-2,6.7305524333326858E-2,5.5018991048928052E-2,20,null,6.2103050288889079E-2,7.2443277956573793E-2,5.6994228034544521E-2,6.1864844080535331E-2,6.7305524333326858E-2,5.5018991048928052E-2]
["25-29",5773.81,10735.382,12963.317999999999,5670.6459999999997,10464.355,12483.798000000001,null,-6.254077429261258E-2,-7.0032383948710364E-2,-5.7407924285999994E-2,6.0418710649005967E-2,6.6828810442761177E-2,5.5588740328253172E-2,25,null,6.254077429261258E-2,7.0032383948710364E-2,5.7407924285999994E-2,6.0418710649005967E-2,6.6828810442761177E-2,5.5588740328253172E-2]
["30-34",6208.6790000000001,10252.411,13062.011,6219.0889999999999,10041.957,12613.255999999999,null,-6.7251189767983971E-2,-6.6881717255332096E-2,-5.7844985250759033E-2,6.6262175207448301E-2,6.4131237981448333E-2,5.6165200083963328E-2,30,null,6.7251189767983971E-2,6.6881717255332096E-2,5.7844985250759033E-2,6.6262175207448301E-2,6.4131237981448333E-2,5.6165200083963328E-2]
["35-39",6420.3549999999996,10187.57,13150.226000000001,6476.3090000000002,10111.861999999999,12725.498,null,-6.9544022566285793E-2,-6.6458726270230847E-2,-5.8235644497171835E-2,6.9002762567889661E-2,6.45776742877473E-2,5.6664999214958864E-2,35,null,6.9544022566285793E-2,6.6458726270230847E-2,5.8235644497171835E-2,6.9002762567889661E-2,6.45776742877473E-2,5.6664999214958864E-2]
["40-44",5956.6689999999999,10731.714,13196.433999999999,6033.3339999999998,10513.200999999999,12791.562,null,-6.452146701481383E-2,-7.0008455709890005E-2,-5.8440276163648538E-2,6.4283021933446344E-2,6.7140757053411049E-2,5.6959173675411187E-2,40,null,6.452146701481383E-2,7.0008455709890005E-2,5.8440276163648538E-2,6.4283021933446344E-2,6.7140757053411049E-2,5.6959173675411187E-2]
["45-49",5575.95,11387.888999999999,13135.913,5707.6350000000002,11403.056,12755.056,null,-6.0397593688897466E-2,-7.428902062481757E-2,-5.8172259519629392E-2,6.0812815251584947E-2,7.2823663559979629E-2,5.6796617171819636E-2,45,null,6.0397593688897466E-2,7.428902062481757E-2,5.8172259519629392E-2,6.0812815251584947E-2,7.2823663559979629E-2,5.6796617171819636E-2]
["50-54",5046.9250000000002,11125.289000000001,12973.421,5313.9030000000002,11280.753000000001,12626.227000000001,null,-5.4667298940689724E-2,-7.2575946602399813E-2,-5.7452665320591713E-2,5.6617741219234068E-2,7.2042596403563294E-2,5.6222958271880008E-2,50,null,5.4667298940689724E-2,7.2575946602399813E-2,5.7452665320591713E-2,5.6617741219234068E-2,7.2042596403563294E-2,5.6222958271880008E-2]
["55-59",4207.8389999999999,9707.0540000000001,12773.011,4323.0709999999999,10153.655000000001,12477.007,null,-4.5578484425128747E-2,-6.3324074796673735E-2,-5.6565151637277211E-2,4.606077964734686E-2,6.4844578122224855E-2,5.55585008822473E-2,55,null,4.5578484425128747E-2,6.3324074796673735E-2,5.6565151637277211E-2,4.606077964734686E-2,6.4844578122224855E-2,5.55585008822473E-2]
["60-64",3580.0729999999999,8032.0950000000003,12546.351000000001,4025.4450000000002,8731.3680000000004,12325.63,null,-3.8778646585889795E-2,-5.2397461119922592E-2,-5.5561390091146447E-2,4.2889680768026753E-2,5.5761385864488623E-2,5.4884438650170973E-2,60,null,3.8778646585889795E-2,5.2397461119922592E-2,5.5561390091146447E-2,4.2889680768026753E-2,5.5761385864488623E-2,5.4884438650170973E-2]
["65-69",2993.1410000000001,5770.8770000000004,12224.427,3406.7289999999998,6569.7879999999996,12106.835999999999,null,-3.242111460317619E-2,-3.7646380332323703E-2,-5.413575287250795E-2,3.6297482458008741E-2,4.1956825518737376E-2,5.3910177223369625E-2,65,null,3.242111460317619E-2,3.7646380332323703E-2,5.413575287250795E-2,3.6297482458008741E-2,4.1956825518737376E-2,5.3910177223369625E-2]
["70-74",2146.5569999999998,4397.7129999999997,11770.913,2590.364,5045.1139999999996,11796.584000000001,null,-2.325108322636657E-2,-2.8688529696682886E-2,-5.2127370653184089E-2,2.7599404546078472E-2,3.2219756226553917E-2,5.252866513351355E-2,70,null,2.325108322636657E-2,2.8688529696682886E-2,5.2127370653184089E-2,2.7599404546078472E-2,3.2219756226553917E-2,5.252866513351355E-2]
["75-79",1402.9880000000001,3195.5160000000001,10956.915999999999,1862.635,4109.6360000000004,11192.905000000001,null,-1.5196890067952346E-2,-2.08459841881963E-2,-4.8522593068847181E-2,1.9845711601413882E-2,2.6245486246667598E-2,4.9840560506009997E-2,75,null,1.5196890067952346E-2,2.08459841881963E-2,4.8522593068847181E-2,1.9845711601413882E-2,2.6245486246667598E-2,4.9840560506009997E-2]
["80-84",678.75099999999998,2339.0160000000001,9459.6550000000007,904.88699999999994,3478.547,9995.3209999999999,null,-7.3520973312050583E-3,-1.5258596906395762E-2,-4.1891987684918419E-2,9.6412482498549647E-3,2.2215144467025019E-2,4.450787361078222E-2,80,null,7.3520973312050583E-3,1.5258596906395762E-2,4.1891987684918419E-2,9.6412482498549647E-3,2.2215144467025019E-2,4.450787361078222E-2]
["85-89",281.82100000000003,1252.636,7164.6350000000002,456.45299999999997,2257.7170000000001,8063.9359999999997,null,-3.0526296417648607E-3,-8.1715848863111503E-3,-3.1728514537468382E-2,4.8633439174074209E-3,1.4418522825955299E-2,3.5907665626090116E-2,85,null,3.0526296417648607E-3,8.1715848863111503E-3,3.1728514537468382E-2,4.8633439174074209E-3,1.4418522825955299E-2,3.5907665626090116E-2]
["90-94",79.566999999999993,436.10500000000002,4636.085,164.56299999999999,1040.6479999999999,5862.16,null,-8.6185409428788003E-4,-2.844935820816841E-3,-2.0530856117504815E-2,1.7533600722972954E-3,6.6459201670469445E-3,2.6103441436866617E-2,90,null,8.6185409428788003E-4,2.844935820816841E-3,2.0530856117504815E-2,1.7533600722972954E-3,6.6459201670469445E-3,2.6103441436866617E-2]
["95-99",14.182,84.224999999999994,2006.34,38.04,284.12900000000002,3078.739,null,-1.5361663459965456E-4,-5.4944272482154157E-4,-8.8850566507720653E-3,4.0530263273147135E-4,1.8145411812090944E-3,1.370922717665456E-2,95,null,1.5361663459965456E-4,5.4944272482154157E-4,8.8850566507720653E-3,4.0530263273147135E-4,1.8145411812090944E-3,1.370922717665456E-2]
["100+",1.573,9.57,556.21799999999996,5.3440000000000003,51.183999999999997,1183.43,null,-1.7038426612978185E-5,-6.2430001502429837E-5,-2.4632058575212259E-3,5.6938414019899659E-5,3.2687784710116276E-4,5.2696609610844913E-3,100,null,1.7038426612978185E-5,6.2430001502429837E-5,2.4632058575212259E-3,5.6938414019899659E-5,3.2687784710116276E-4,5.2696609610844913E-3]
[]
[]
[]
[]
[null,null,null,null,"POPULATION AGE STRUCTURE IN THE U.S.: 1960 VS. 2010 VS. 2100",null,null,null,null,null,null,"FOLDED POPULATION PYRAMID"]
[]
[]
[]
[]
[]
[]
[]
[]
[]
[]
[]
[]
[]
[]
[null,null,null,null,"Source: United States Population Division"]

{"sheet":"8.12","index":8,"n_rows":59,"n_cols":12,"rows_kept":59,"cut":false,"hidden":false,"merged":[]}
["State or Region",2010,null,null,null,null,null,null,"Series for labels"]
[null,"Population","Density","StateCode","Area","Region","Density","Lollipop","Y","X"]
["Alaska",710231,1.2,{"$f":"VLOOKUP(A3,'8.4'!$A$12:$J$62,10,FALSE)","v":"AK"},570640.94999999995,{"$f":"TRIM(MID(VLOOKUP(A3,'US Regions'!$B$23:$D$73,3,FALSE),13,500))","v":"Pacific"},{"$f":"B3/E3","v":1.2446197560830503},{"$f":"NA()","v":{"$error":"#N/A"}},0,1250,null,"POPULATION DENSITY PER STATE, 2010"]
["Wyoming",563626,5.8,{"$f":"VLOOKUP(A4,'8.4'!$A$12:$J$62,10,FALSE)","v":"WY"},97093.14,{"$f":"TRIM(MID(VLOOKUP(A4,'US Regions'!$B$23:$D$73,3,FALSE),13,500))","v":"Mountain"},5.8050033194930144,{"$f":"NA()","v":{"$error":"#N/A"}},1,1250]
["Montana",989415,6.8,{"$f":"VLOOKUP(A5,'8.4'!$A$12:$J$62,10,FALSE)","v":"MT"},145545.79999999999,{"$f":"TRIM(MID(VLOOKUP(A5,'US Regions'!$B$23:$D$73,3,FALSE),13,500))","v":"Mountain"},6.7979632528042728,{"$f":"NA()","v":{"$error":"#N/A"}},2,1250]
["North Dakota",672591,9.6999999999999993,{"$f":"VLOOKUP(A6,'8.4'!$A$12:$J$62,10,FALSE)","v":"ND"},69000.800000000003,{"$f":"TRIM(MID(VLOOKUP(A6,'US Regions'!$B$23:$D$73,3,FALSE),13,500))","v":"West North Central"},9.7475826367230525,{"$f":"NA()","v":{"$error":"#N/A"}},3,1250]
["South Dakota",814180,10.7,{"$f":"VLOOKUP(A7,'8.4'!$A$12:$J$62,10,FALSE)","v":"SD"},75811,{"$f":"TRIM(MID(VLOOKUP(A7,'US Regions'!$B$23:$D$73,3,FALSE),13,500))","v":"West North Central"},10.739602432364697,{"$f":"NA()","v":{"$error":"#N/A"}},4,1250]
["New Mexico",2059179,17,{"$f":"VLOOKUP(A8,'8.4'!$A$12:$J$62,10,FALSE)","v":"NM"},121298.15,{"$f":"TRIM(MID(VLOOKUP(A8,'US Regions'!$B$23:$D$73,3,FALSE),13,500))","v":"Mountain"},16.976178119781711,{"$f":"NA()","v":{"$error":"#N/A"}},5,1250]
["Idaho",1567582,19,{"$f":"VLOOKUP(A9,'8.4'!$A$12:$J$62,10,FALSE)","v":"ID"},82643.12,{"$f":"TRIM(MID(VLOOKUP(A9,'US Regions'!$B$23:$D$73,3,FALSE),13,500))","v":"Mountain"},18.96808832967584,{"$f":"NA()","v":{"$error":"#N/A"}},6,1250]
["Nebraska",1826341,23.8,{"$f":"VLOOKUP(A10,'8.4'!$A$12:$J$62,10,FALSE)","v":"NE"},76824.17,{"$f":"TRIM(MID(VLOOKUP(A10,'US Regions'!$B$23:$D$73,3,FALSE),13,500))","v":"West North Central"},23.773000085780296,{"$f":"NA()","v":{"$error":"#N/A"}},7,1250]
["Nevada",2700551,24.6,{"$f":"VLOOKUP(A11,'8.4'!$A$12:$J$62,10,FALSE)","v":"NV"},109781.18,{"$f":"TRIM(MID(VLOOKUP(A11,'US Regions'!$B$23:$D$73,3,FALSE),13,500))","v":"Mountain"},24.599398549004484,{"$f":"NA()","v":{"$error":"#N/A"}},8,1250]
["Utah",2763885,33.6,{"$f":"VLOOKUP(A12,'8.4'!$A$12:$J$62,10,FALSE)","v":"UT"},82169.62,{"$f":"TRIM(MID(VLOOKUP(A12,'US Regions'!$B$23:$D$73,3,FALSE),13,500))","v":"Mountain"},33.636336641206327,{"$f":"NA()","v":{"$error":"#N/A"}},9,1250]
["Kansas",2853118,34.9,{"$f":"VLOOKUP(A13,'8.4'!$A$12:$J$62,10,FALSE)","v":"KS"},81758.720000000001,{"$f":"TRIM(MID(VLOOKUP(A13,'US Regions'!$B$23:$D$73,3,FALSE),13,500))","v":"West North Central"},34.896803668159187,{"$f":"NA()","v":{"$error":"#N/A"}},10,1250]
["Oregon",3831074,39.9,{"$f":"VLOOKUP(A14,'8.4'!$A$12:$J$62,10,FALSE)","v":"OR"},95988.01,{"$f":"TRIM(MID(VLOOKUP(A14,'US Regions'!$B$23:$D$73,3,FALSE),13,500))","v":"Pacific"},39.912005676542314,{"$f":"NA()","v":{"$error":"#N/A"}},11,1250]
["Maine",1328361,43.1,{"$f":"VLOOKUP(A15,'8.4'!$A$12:$J$62,10,FALSE)","v":"ME"},30842.92,{"$f":"TRIM(MID(VLOOKUP(A15,'US Regions'!$B$23:$D$73,3,FALSE),13,500))","v":"New England"},43.06858753970117,{"$f":"NA()","v":{"$error":"#N/A"}},12,1250]
["Colorado",5029196,48.5,{"$f":"VLOOKUP(A16,'8.4'!$A$12:$J$62,10,FALSE)","v":"CO"},103641.89,{"$f":"TRIM(MID(VLOOKUP(A16,'US Regions'!$B$23:$D$73,3,FALSE),13,500))","v":"Mountain"},48.524742263962956,{"$f":"NA()","v":{"$error":"#N/A"}},13,1250]
["Iowa",3046355,54.5,{"$f":"VLOOKUP(A17,'8.4'!$A$12:$J$62,10,FALSE)","v":"IA"},55857.13,{"$f":"TRIM(MID(VLOOKUP(A17,'US Regions'!$B$23:$D$73,3,FALSE),13,500))","v":"West North Central"},54.538337361765635,{"$f":"NA()","v":{"$error":"#N/A"}},14,1250]
["Oklahoma",3751351,54.7,{"$f":"VLOOKUP(A18,'8.4'!$A$12:$J$62,10,FALSE)","v":"OK"},68594.92,{"$f":"TRIM(MID(VLOOKUP(A18,'US Regions'!$B$23:$D$73,3,FALSE),13,500))","v":"West South Central"},54.688466726107414,{"$f":"NA()","v":{"$error":"#N/A"}},15,1250]
["Arkansas",2915918,56,{"$f":"VLOOKUP(A19,'8.4'!$A$12:$J$62,10,FALSE)","v":"AR"},52035.48,{"$f":"TRIM(MID(VLOOKUP(A19,'US Regions'!$B$23:$D$73,3,FALSE),13,500))","v":"West South Central"},56.03711160154571,{"$f":"NA()","v":{"$error":"#N/A"}},16,1250]
["Arizona",6392017,56.3,{"$f":"VLOOKUP(A20,'8.4'!$A$12:$J$62,10,FALSE)","v":"AZ"},113594.08,{"$f":"TRIM(MID(VLOOKUP(A20,'US Regions'!$B$23:$D$73,3,FALSE),13,500))","v":"Mountain"},56.270687697809606,{"$f":"NA()","v":{"$error":"#N/A"}},17,1250]
["Mississippi",2967297,63.2,{"$f":"VLOOKUP(A21,'8.4'!$A$12:$J$62,10,FALSE)","v":"MS"},46923.27,{"$f":"TRIM(MID(VLOOKUP(A21,'US Regions'!$B$23:$D$73,3,FALSE),13,500))","v":"East South Central"},63.237216843583155,{"$f":"NA()","v":{"$error":"#N/A"}},18,1250]
["Minnesota",5303925,66.599999999999994,{"$f":"VLOOKUP(A22,'8.4'!$A$12:$J$62,10,FALSE)","v":"MN"},79626.740000000005,{"$f":"TRIM(MID(VLOOKUP(A22,'US Regions'!$B$23:$D$73,3,FALSE),13,500))","v":"West North Central"},66.609847395485488,{"$f":"NA()","v":{"$error":"#N/A"}},19,1250]
["Vermont",625741,67.900000000000006,{"$f":"VLOOKUP(A23,'8.4'!$A$12:$J$62,10,FALSE)","v":"VT"},9216.66,{"$f":"TRIM(MID(VLOOKUP(A23,'US Regions'!$B$23:$D$73,3,FALSE),13,500))","v":"New England"},67.892381838974202,{"$f":"NA()","v":{"$error":"#N/A"}},20,1250]
["West Virginia",1852994,77.099999999999994,{"$f":"VLOOKUP(A24,'8.4'!$A$12:$J$62,10,FALSE)","v":"WV"},24038.21,{"$f":"TRIM(MID(VLOOKUP(A24,'US Regions'!$B$23:$D$73,3,FALSE),13,500))","v":"South Atlantic"},77.085357021175867,{"$f":"NA()","v":{"$error":"#N/A"}},21,1250]
["Missouri",5988927,87.1,{"$f":"VLOOKUP(A25,'8.4'!$A$12:$J$62,10,FALSE)","v":"MO"},68741.52,{"$f":"TRIM(MID(VLOOKUP(A25,'US Regions'!$B$23:$D$73,3,FALSE),13,500))","v":"West North Central"},87.122411608006331,{"$f":"NA()","v":{"$error":"#N/A"}},22,1250]
["Alabama",4779736,94.4,{"$f":"VLOOKUP(A26,'8.4'!$A$12:$J$62,10,FALSE)","v":"AL"},50645.33,{"$f":"TRIM(MID(VLOOKUP(A26,'US Regions'!$B$23:$D$73,3,FALSE),13,500))","v":"East South Central"},94.376638477822141,{"$f":"NA()","v":{"$error":"#N/A"}},23,1250]
["Texas",25145561,96.3,{"$f":"VLOOKUP(A27,'8.4'!$A$12:$J$62,10,FALSE)","v":"TX"},261231.71,{"$f":"TRIM(MID(VLOOKUP(A27,'US Regions'!$B$23:$D$73,3,FALSE),13,500))","v":"West South Central"},96.257690155609367,{"$f":"NA()","v":{"$error":"#N/A"}},24,1250]
["Washington",6724540,101.2,{"$f":"VLOOKUP(A28,'8.4'!$A$12:$J$62,10,FALSE)","v":"WA"},66455.520000000004,{"$f":"TRIM(MID(VLOOKUP(A28,'US Regions'!$B$23:$D$73,3,FALSE),13,500))","v":"Pacific"},101.18858448478019,{"$f":"NA()","v":{"$error":"#N/A"}},25,1250]
["Louisiana",4533372,104.9,{"$f":"VLOOKUP(A29,'8.4'!$A$12:$J$62,10,FALSE)","v":"LA"},43203.9,{"$f":"TRIM(MID(VLOOKUP(A29,'US Regions'!$B$23:$D$73,3,FALSE),13,500))","v":"West South Central"},104.92969384708324,{"$f":"NA()","v":{"$error":"#N/A"}},26,1250]
["Wisconsin",5686986,105,{"$f":"VLOOKUP(A30,'8.4'!$A$12:$J$62,10,FALSE)","v":"WI"},54157.8,{"$f":"TRIM(MID(VLOOKUP(A30,'US Regions'!$B$23:$D$73,3,FALSE),13,500))","v":"East North Central"},105.0076997219237,{"$f":"NA()","v":{"$error":"#N/A"}},27,1250]
["Kentucky",4339367,109.9,{"$f":"VLOOKUP(A31,'8.4'!$A$12:$J$62,10,FALSE)","v":"KY"},39486.339999999997,{"$f":"TRIM(MID(VLOOKUP(A31,'US Regions'!$B$23:$D$73,3,FALSE),13,500))","v":"East South Central"},109.89539673720077,{"$f":"NA()","v":{"$error":"#N/A"}},28,1250]
["New Hampshire",1316470,147,{"$f":"VLOOKUP(A32,'8.4'!$A$12:$J$62,10,FALSE)","v":"NH"},8952.65,{"$f":"TRIM(MID(VLOOKUP(A32,'US Regions'!$B$23:$D$73,3,FALSE),13,500))","v":"New England"},147.04808073587151,{"$f":"NA()","v":{"$error":"#N/A"}},29,1250]
["South Carolina",4625364,153.9,{"$f":"VLOOKUP(A33,'8.4'!$A$12:$J$62,10,FALSE)","v":"SC"},30060.7,{"$f":"TRIM(MID(VLOOKUP(A33,'US Regions'!$B$23:$D$73,3,FALSE),13,500))","v":"South Atlantic"},153.86747480930251,{"$f":"NA()","v":{"$error":"#N/A"}},30,1250]
["Tennessee",6346105,153.9,{"$f":"VLOOKUP(A34,'8.4'!$A$12:$J$62,10,FALSE)","v":"TN"},41234.9,{"$f":"TRIM(MID(VLOOKUP(A34,'US Regions'!$B$23:$D$73,3,FALSE),13,500))","v":"East South Central"},153.901306902648,{"$f":"NA()","v":{"$error":"#N/A"}},31,1250]
["Georgia",9687653,168.4,{"$f":"VLOOKUP(A35,'8.4'!$A$12:$J$62,10,FALSE)","v":"GA"},57513.49,{"$f":"TRIM(MID(VLOOKUP(A35,'US Regions'!$B$23:$D$73,3,FALSE),13,500))","v":"South Atlantic"},168.44140392106269,{"$f":"NA()","v":{"$error":"#N/A"}},32,1250]
["Michigan",9883640,174.8,{"$f":"VLOOKUP(A36,'8.4'!$A$12:$J$62,10,FALSE)","v":"MI"},56538.9,{"$f":"TRIM(MID(VLOOKUP(A36,'US Regions'!$B$23:$D$73,3,FALSE),13,500))","v":"East North Central"},174.81132459244873,{"$f":"NA()","v":{"$error":"#N/A"}},33,1250]
["Indiana",6483802,181,{"$f":"VLOOKUP(A37,'8.4'!$A$12:$J$62,10,FALSE)","v":"IN"},35826.11,{"$f":"TRIM(MID(VLOOKUP(A37,'US Regions'!$B$23:$D$73,3,FALSE),13,500))","v":"East North Central"},180.97979378726856,{"$f":"NA()","v":{"$error":"#N/A"}},34,1250]
["North Carolina",9535483,196.1,{"$f":"VLOOKUP(A38,'8.4'!$A$12:$J$62,10,FALSE)","v":"NC"},48617.91,{"$f":"TRIM(MID(VLOOKUP(A38,'US Regions'!$B$23:$D$73,3,FALSE),13,500))","v":"South Atlantic"},196.13107597591093,{"$f":"NA()","v":{"$error":"#N/A"}},35,1250]
["Virginia",8001024,202.6,{"$f":"VLOOKUP(A39,'8.4'!$A$12:$J$62,10,FALSE)","v":"VA"},39490.089999999997,{"$f":"TRIM(MID(VLOOKUP(A39,'US Regions'!$B$23:$D$73,3,FALSE),13,500))","v":"South Atlantic"},202.60840124699641,{"$f":"NA()","v":{"$error":"#N/A"}},36,1250]
["Hawaii",1360301,211.8,{"$f":"VLOOKUP(A40,'8.4'!$A$12:$J$62,10,FALSE)","v":"HI"},6422.63,{"$f":"TRIM(MID(VLOOKUP(A40,'US Regions'!$B$23:$D$73,3,FALSE),13,500))","v":"Pacific"},211.79812631274103,{"$f":"NA()","v":{"$error":"#N/A"}},37,1250]
["Illinois",12830632,231.1,{"$f":"VLOOKUP(A41,'8.4'!$A$12:$J$62,10,FALSE)","v":"IL"},55518.93,{"$f":"TRIM(MID(VLOOKUP(A41,'US Regions'!$B$23:$D$73,3,FALSE),13,500))","v":"East North Central"},231.10373344731246,{"$f":"NA()","v":{"$error":"#N/A"}},38,1250]
["California",37253956,239.1,{"$f":"VLOOKUP(A42,'8.4'!$A$12:$J$62,10,FALSE)","v":"CA"},155779.22,{"$f":"TRIM(MID(VLOOKUP(A42,'US Regions'!$B$23:$D$73,3,FALSE),13,500))","v":"Pacific"},239.14586297196763,{"$f":"NA()","v":{"$error":"#N/A"}},39,1250]
["Ohio",11536504,282.3,{"$f":"VLOOKUP(A43,'8.4'!$A$12:$J$62,10,FALSE)","v":"OH"},40860.69,{"$f":"TRIM(MID(VLOOKUP(A43,'US Regions'!$B$23:$D$73,3,FALSE),13,500))","v":"East North Central"},282.33747398783521,{"$f":"NA()","v":{"$error":"#N/A"}},40,1250]
["Pennsylvania",12702379,283.89999999999998,{"$f":"VLOOKUP(A44,'8.4'!$A$12:$J$62,10,FALSE)","v":"PA"},44742.7,{"$f":"TRIM(MID(VLOOKUP(A44,'US Regions'!$B$23:$D$73,3,FALSE),13,500))","v":"Mid-Atlantic"},283.89835660342362,{"$f":"NA()","v":{"$error":"#N/A"}},41,1250]
["Florida",18801310,350.6,{"$f":"VLOOKUP(A45,'8.4'!$A$12:$J$62,10,FALSE)","v":"FL"},53624.76,{"$f":"TRIM(MID(VLOOKUP(A45,'US Regions'!$B$23:$D$73,3,FALSE),13,500))","v":"South Atlantic"},350.60874864521537,{"$f":"NA()","v":{"$error":"#N/A"}},42,1250]
["New York",19378102,411.2,{"$f":"VLOOKUP(A46,'8.4'!$A$12:$J$62,10,FALSE)","v":"NY"},47126.400000000001,{"$f":"TRIM(MID(VLOOKUP(A46,'US Regions'!$B$23:$D$73,3,FALSE),13,500))","v":"Mid-Atlantic"},411.19419263936987,{"$f":"NA()","v":{"$error":"#N/A"}},43,1250]
["Delaware",897934,460.8,{"$f":"VLOOKUP(A47,'8.4'!$A$12:$J$62,10,FALSE)","v":"DE"},1948.54,{"$f":"TRIM(MID(VLOOKUP(A47,'US Regions'!$B$23:$D$73,3,FALSE),13,500))","v":"South Atlantic"},460.82400156014245,{"$f":"NA()","v":{"$error":"#N/A"}},44,1250]
["Maryland",5773552,594.79999999999995,{"$f":"VLOOKUP(A48,'8.4'!$A$12:$J$62,10,FALSE)","v":"MD"},9707.24,{"$f":"TRIM(MID(VLOOKUP(A48,'US Regions'!$B$23:$D$73,3,FALSE),13,500))","v":"South Atlantic"},594.76761674791192,{"$f":"+G48","v":594.76761674791192},45,1250]
["Connecticut",3574097,738.1,{"$f":"VLOOKUP(A49,'8.4'!$A$12:$J$62,10,FALSE)","v":"CT"},4842.3599999999997,{"$f":"TRIM(MID(VLOOKUP(A49,'US Regions'!$B$23:$D$73,3,FALSE),13,500))","v":"New England"},738.08989831404529,{"$f":"NA()","v":{"$error":"#N/A"}},46,1250]
["Massachusetts",6547629,839.4,{"$f":"VLOOKUP(A50,'8.4'!$A$12:$J$62,10,FALSE)","v":"MA"},7800.06,{"$f":"TRIM(MID(VLOOKUP(A50,'US Regions'!$B$23:$D$73,3,FALSE),13,500))","v":"New England"},839.43315820647524,{"$f":"NA()","v":{"$error":"#N/A"}},47,1250]
["Rhode Island",1052567,1018.1,{"$f":"VLOOKUP(A51,'8.4'!$A$12:$J$62,10,FALSE)","v":"RI"},1033.81,{"$f":"TRIM(MID(VLOOKUP(A51,'US Regions'!$B$23:$D$73,3,FALSE),13,500))","v":"New England"},1018.1435660324431,{"$f":"NA()","v":{"$error":"#N/A"}},48,1250]
["New Jersey",8791894,1195.5,{"$f":"VLOOKUP(A52,'8.4'!$A$12:$J$62,10,FALSE)","v":"NJ"},7354.22,{"$f":"TRIM(MID(VLOOKUP(A52,'US Regions'!$B$23:$D$73,3,FALSE),13,500))","v":"Mid-Atlantic"},1195.489664437561,{"$f":"NA()","v":{"$error":"#N/A"}},49,1250]
["District of Columbia",601723,0,{"$f":"VLOOKUP(A53,'8.4'!$A$12:$J$62,10,FALSE)","v":"DC"},61.05,{"$f":"TRIM(MID(VLOOKUP(A53,'US Regions'!$B$23:$D$73,3,FALSE),13,500))","v":"South Atlantic"},9856.2325962325958,{"$f":"NA()","v":{"$error":"#N/A"}},50,1250]
[]
[]
[]
[]
[]
[null,null,null,null,null,null,null,null,null,null,null,"Source: U.S. Census Bureau"]

{"sheet":"8.13-8.14","index":9,"n_rows":801,"n_cols":52,"rows_kept":801,"cut":false,"hidden":false,"merged":[[0,0,0,6],[789,0,789,6],[790,0,790,6],[794,0,794,6]]}
["Table 1101. Quintiles of income before taxes: Annual expenditure means, shares, standard errors, and coefficient of variation, Consumer Expenditure Survey, 3rd quarter 2013 through 2nd quarter 2014",null,null,null,null,null,null,null,"Get the data (PDF):",null,null,"http://goo.gl/6PW6vT"]
[null,null,null,null,null,null,null,null,null,null,null,null,null,null,null,null,null,null,null,null,null,null,null,null,"WEIGHT OF MAJOR EXPENDITURE ITEMS BY LEVEL OF INCOME",null,null,null,null,null,null,null,"ANNUAL MEAN EXPENDITURE"]
["Item","All\nconsumer\nunits","Lowest\n20\npercent","Second\n20\npercent","Third\n20\npercent","Fourth\n20\npercent","Highest\n20\npercent",null,null,null,null,null,null,null,"Bubbles",null,null,null,"Slope",null,null,null,null,null,"Consumer Expenditure Survey, 3rd quarter 2013 through 2nd quarter 2014",null,null,null,null,null,null,null,"Consumer Expenditure Survey, "]
["Number of consumer units (in thousands)",126420,25206,25337,25323,25341,25212,null,null,null,null,null,null,null,null,null,null,null,null,null,null,null,null,null,null,null,null,null,null,null,null,null,"3rd quarter 2013 through 2nd quarter 2014"]
["Lower limit","n.a.","n.a.",17890,35073,57829,96074,null,null,null,null,null,null,null,null,null,null,null,"Lowest 20%","Highest 20%","Lowest 20%","Highest 20%"]
["",null,null,null,null,null,null,null,null,null,null,null,null,null,"Y","Label","X","Size",{"$f":"SUM(S7:S20)","v":22982},{"$f":"SUM(T7:T20)","v":100979},{"$f":"SUM(U7:U20)","v":100.00000000000001},99.999999999999986]
["Consumer unit characteristics:",null,null,null,null,null,null,null,null,null,null,null,null,null,6665,"Food",0,1,3685,11261,{"$f":"S7/S$6*100","v":16.03428770342007},{"$f":"T7/T$6*100","v":11.151823646500759}]
["",null,null,null,null,null,null,null,null,null,null,null,null,null,450,"Alcoholic beverages",0,1,181,970,0.78757288312592455,0.96059576743679387]
["Income before taxes",null,null,null,null,null,null,null,null,null,null,null,null,null,17377,"Housing",0,1,9319,31034,40.549125402488905,30.733122728488098]
["Mean",64432,9818,26369,45724,74410,166048,null,null,null,null,null,null,null,1674,"Apparel and services",0,1,732,3339,3.1851013836915847,3.3066281107953137]
["SE",1002.97,193.95,268.66000000000003,400.74,437.8,3118.6,null,null,null,null,null,null,null,9104,"Transportation",0,1,3365,17033,14.641893655904619,16.867863615207121]
["CV(%)",1.56,1.98,1.02,0.88,0.59,1.88,null,null,null,null,null,null,null,3919,"Healthcare",0,1,1912,6402,8.3195544339047949,6.3399320650828388]
["Income after taxes",null,null,null,null,null,null,null,null,null,null,null,null,null,2560,"Entertainment",0,1,1028,5420,4.4730658776433732,5.3674526386674453]
["Mean",56437,10254,26901,43389,66824,134959,null,null,null,null,null,null,null,602,"Personal care",0,1,260,1138,1.1313201636063006,1.1269669931371871]
["SE",774.9,187.73,275.27,410.92,436.54,2196.67,null,null,null,null,null,null,null,101,"Reading",0,1,42,203,0.18275171873640242,0.20103189772130839]
["CV(%)",1.37,1.83,1.02,0.95,0.65,1.63,null,null,null,null,null,null,null,1143,"Education",0,1,818,2946,3.5593072839613611,2.9174382792461802]
["",null,null,null,null,null,null,null,null,null,null,null,null,null,315,"Tobacco products",0,1,274,271,1.1922374031851015,0.26837263193337224]
["Age of reference person",50.2,51.4,53.4,49.2,48.1,48.7,null,null,null,null,null,null,null,683,"Miscellaneous",0,1,286,1352,1.2444521799669306,1.3388922449222116]
["",null,null,null,null,null,null,null,null,null,null,null,null,null,1790,"Cash contributions",0,1,591,3900,2.571577756505091,3.862189168044841]
["Average number in consumer unit:",null,null,null,null,null,null,null,null,null,null,null,null,null,5551,"Insurance and pensions",0,1,489,15710,2.1277521538595421,15.557690212816528]
["People",2.5,1.7,2.1,2.5,2.8,3.2]
["Children under 18",0.6,0.4,0.5,0.6,0.7,0.8]
["Adults 65 and older",0.4,0.4,0.5,0.4,0.3,0.2]
["Earners",1.3,0.5,0.8,1.3,1.7,2.1]
["Vehicles",1.8,0.9,1.4,1.9,2.2999999999999998,2.8]
[""]
["Percent distribution:"]
[""]
["Reference person:"]
["Men",48,38,44,49,53,55]
["Women",52,62,56,51,47,45]
[""]
["Housing tenure:"]
["Homeowner",63,40,54,61,75,87]
["With mortgage",37,13,21,33,52,67]
["Without mortgage",26,27,33,28,23,20]
["Renter",37,60,46,39,25,13]
[""]
["Race of reference person:"]
["Black or African-American",13,20,15,13,9,6]
["White, Asian, and all other races",87,80,85,87,91,94,null,null,null,null,null,null,null,null,null,null,null,null,null,null,null,null,null,"Source: Bureau of Labor Statistics"]
[""]
["Hispanic or Latino origin of reference person:",null,null,null,null,null,null,null,null,null,null,null,null,null,null,null,null,null,null,null,null,null,null,null,null,null,null,null,null,null,null,null,"Source: Bureau of Labor Statistics"]
["Hispanic or Latino",13,13,16,15,11,7]
["Not Hispanic or Latino",87,87,84,85,89,93]
[""]
["Education of reference person:"]
["Elementary (1-8)",4,8,6,4,2,1]
["High school (9-12)",33,43,44,36,26,15]
["College",63,48,50,60,71,84]
["Never attended and other","a/",1,"a/","a/","a/","a/"]
[""]
["At least one vehicle owned or leased",87,63,85,93,97,97]
[""]
["Average annual expenditures"]
["Mean",51933,22981,32778,43739,59250,100979]
["SE",555.65,507.34,444.47,415.95,681.52,1187.8800000000001]
["CV(%)",1.07,2.21,1.36,0.95,1.1499999999999999,1.18]
[""]
["Food",null,null,null,null,null,null,null,null,null,null,null,null,null,null,null,null,null,null,null,null,null,null,null,null,null,null,null,null,null,null,null,null,null,null,null,null,null,null,null,null,null,null,null,null,{"$f":"+J60","v":0},{"$f":"IF($I60=1,B61,\"\")","v":""},{"$f":"IF($I60=1,C61,\"\")","v":""},"","","",""]
["Mean",6665,3685,4683,5850,7841,11261,null,null,null,null,null,null,null,null,null,null,null,null,null,null,null,null,null,null,null,null,null,null,null,null,null,null,null,null,null,null,null,null,null,null,null,null,null,null,{"$f":"+J61","v":0},{"$f":"IF($I61=1,B62,\"\")","v":""},{"$f":"IF($I61=1,C62,\"\")","v":""},{"$f":"IF($I61=1,D62,\"\")","v":""},{"$f":"IF($I61=1,E62,\"\")","v":""},{"$f":"IF($I61=1,F62,\"\")","v":""},{"$f":"IF($I61=1,G62,\"\")","v":""}]
["Share",12.8,16,14.3,13.4,13.2,11.2,null,null,null,null,null,null,null,null,null,null,null,null,null,null,null,null,null,null,null,null,null,null,null,null,null,null,null,null,null,null,null,null,null,null,null,null,null,null,0,"","","","","",""]
["SE",97.31,87,147.16999999999999,164.64,174.11,217.29,null,null,null,null,null,null,null,null,null,null,null,null,null,null,null,null,null,null,null,null,null,null,null,null,null,null,null,null,null,null,null,null,null,null,null,null,null,null,0,"","","","","",""]
["CV(%)",1.46,2.36,3.14,2.81,2.2200000000000002,1.93,null,null,null,null,null,null,null,null,null,null,null,null,null,null,null,null,null,null,null,null,null,null,null,null,null,null,null,null,null,null,null,null,null,null,null,null,null,null,0,"","","","","",""]
["Food at home",null,null,null,null,null,null,null,null,null,null,null,null,null,null,null,null,null,null,null,null,null,null,null,null,null,null,null,null,null,null,null,null,null,null,null,null,null,null,null,null,null,null,null,null,0,"","","","","",""]
["Mean",4003,2531,3075,3637,4658,6113,null,null,null,null,null,null,null,null,null,null,null,null,null,null,null,null,null,null,null,null,null,null,null,null,null,null,null,null,null,null,null,null,null,null,null,null,null,null,0,"","","","","",""]
["Share",7.7,11,9.4,8.3000000000000007,7.9,6.1,null,null,null,null,null,null,null,null,null,null,null,null,null,null,null,null,null,null,null,null,null,null,null,null,null,null,null,null,null,null,null,null,null,null,null,null,null,null,0,"","","","","",""]
["SE",66.83,70.81,109.54,110.01,109.4,139.83000000000001,null,null,null,null,null,null,null,null,null,null,null,null,null,null,null,null,null,null,null,null,null,null,null,null,null,null,null,null,null,null,null,null,null,null,null,null,null,null,0,"","","","","",""]
["CV(%)",1.67,2.8,3.56,3.02,2.35,2.29,null,null,null,null,null,null,null,null,null,null,null,null,null,null,null,null,null,null,null,null,null,null,null,null,null,null,null,null,null,null,null,null,null,null,null,null,null,null,0,"","","","","",""]
["Cereals and bakery products",null,null,null,null,null,null,null,null,null,null,null,null,null,null,null,null,null,null,null,null,null,null,null,null,null,null,null,null,null,null,null,null,null,null,null,null,null,null,null,null,null,null,null,null,0,"","","","","",""]
["Mean",534,344,409,489,614,812,null,null,null,null,null,null,null,null,null,null,null,null,null,null,null,null,null,null,null,null,null,null,null,null,null,null,null,null,null,null,null,null,null,null,null,null,null,null,0,"","","","","",""]
["Share",1,1.5,1.2,1.1000000000000001,1,0.8,null,null,null,null,null,null,null,null,null,null,null,null,null,null,null,null,null,null,null,null,null,null,null,null,null,null,null,null,null,null,null,null,null,null,null,null,null,null,0,"","","","","",""]
["SE",10.210000000000001,12.2,18.28,15.89,18.78,26.73,null,null,null,null,null,null,null,null,null,null,null,null,null,null,null,null,null,null,null,null,null,null,null,null,null,null,null,null,null,null,null,null,null,null,null,null,null,null,0,"","","","","",""]
["CV(%)",1.91,3.55,4.47,3.25,3.06,3.29,null,null,null,null,null,null,null,null,null,null,null,null,null,null,null,null,null,null,null,null,null,null,null,null,null,null,null,null,null,null,null,null,null,null,null,null,null,null,0,"","","","","",""]
["Cereals and cereal products",null,null,null,null,null,null,null,null,null,null,null,null,null,null,null,null,null,null,null,null,null,null,null,null,null,null,null,null,null,null,null,null,null,null,null,null,null,null,null,null,null,null,null,null,0,"","","","","",""]
["Mean",180,122,141,160,212,263,null,null,null,null,null,null,null,null,null,null,null,null,null,null,null,null,null,null,null,null,null,null,null,null,null,null,null,null,null,null,null,null,null,null,null,null,null,null,0,"","","","","",""]
["Share",0.3,0.5,0.4,0.4,0.4,0.3,null,null,null,null,null,null,null,null,null,null,null,null,null,null,null,null,null,null,null,null,null,null,null,null,null,null,null,null,null,null,null,null,null,null,null,null,null,null,0,"","","","","",""]
["SE",3.83,5.3,7.86,7.17,9.5399999999999991,9.69,null,null,null,null,null,null,null,null,null,null,null,null,null,null,null,null,null,null,null,null,null,null,null,null,null,null,null,null,null,null,null,null,null,null,null,null,null,null,0,"","","","","",""]
["CV(%)",2.13,4.33,5.57,4.49,4.5,3.68,null,null,null,null,null,null,null,null,null,null,null,null,null,null,null,null,null,null,null,null,null,null,null,null,null,null,null,null,null,null,null,null,null,null,null,null,null,null,0,"","","","","",""]
["Bakery products",null,null,null,null,null,null,null,null,null,null,null,null,null,null,null,null,null,null,null,null,null,null,null,null,null,null,null,null,null,null,null,null,null,null,null,null,null,null,null,null,null,null,null,null,0,"","","","","",""]
["Mean",354,221,268,329,402,549,null,null,null,null,null,null,null,null,null,null,null,null,null,null,null,null,null,null,null,null,null,null,null,null,null,null,null,null,null,null,null,null,null,null,null,null,null,null,0,"","","","","",""]
["Share",0.7,1,0.8,0.8,0.7,0.5,null,null,null,null,null,null,null,null,null,null,null,null,null,null,null,null,null,null,null,null,null,null,null,null,null,null,null,null,null,null,null,null,null,null,null,null,null,null,0,"","","","","",""]
["SE",7.47,8.75,12.16,10.99,12.68,19.96,null,null,null,null,null,null,null,null,null,null,null,null,null,null,null,null,null,null,null,null,null,null,null,null,null,null,null,null,null,null,null,null,null,null,null,null,null,null,0,"","","","","",""]
["CV(%)",2.11,3.95,4.54,3.34,3.15,3.64,null,null,null,null,null,null,null,null,null,null,null,null,null,null,null,null,null,null,null,null,null,null,null,null,null,null,null,null,null,null,null,null,null,null,null,null,null,null,0,"","","","","",""]
["Meats, poultry, fish, and eggs",null,null,null,null,null,null,null,null,null,null,null,null,null,null,null,null,null,null,null,null,null,null,null,null,null,null,null,null,null,null,null,null,null,null,null,null,null,null,null,null,null,null,null,null,0,"","","","","",""]
["Mean",883,583,713,805,1018,1295,null,null,null,null,null,null,null,null,null,null,null,null,null,null,null,null,null,null,null,null,null,null,null,null,null,null,null,null,null,null,null,null,null,null,null,null,null,null,0,"","","","","",""]
["Share",1.7,2.5,2.2000000000000002,1.8,1.7,1.3,null,null,null,null,null,null,null,null,null,null,null,null,null,null,null,null,null,null,null,null,null,null,null,null,null,null,null,null,null,null,null,null,null,null,null,null,null,null,0,"","","","","",""]
["SE",16.850000000000001,23.59,34.86,29.23,31.67,37.450000000000003,null,null,null,null,null,null,null,null,null,null,null,null,null,null,null,null,null,null,null,null,null,null,null,null,null,null,null,null,null,null,null,null,null,null,null,null,null,null,0,"","","","","",""]
["CV(%)",1.91,4.04,4.8899999999999997,3.63,3.11,2.89,null,null,null,null,null,null,null,null,null,null,null,null,null,null,null,null,null,null,null,null,null,null,null,null,null,null,null,null,null,null,null,null,null,null,null,null,null,null,0,"","","","","",""]
["Beef",null,null,null,null,null,null,null,null,null,null,null,null,null,null,null,null,null,null,null,null,null,null,null,null,null,null,null,null,null,null,null,null,null,null,null,null,null,null,null,null,null,null,null,null,0,"","","","","",""]
["Mean",225,137,186,212,263,328,null,null,null,null,null,null,null,null,null,null,null,null,null,null,null,null,null,null,null,null,null,null,null,null,null,null,null,null,null,null,null,null,null,null,null,null,null,null,0,"","","","","",""]
["Share",0.4,0.6,0.6,0.5,0.4,0.3,null,null,null,null,null,null,null,null,null,null,null,null,null,null,null,null,null,null,null,null,null,null,null,null,null,null,null,null,null,null,null,null,null,null,null,null,null,null,0,"","","","","",""]
["SE",5.41,8.0399999999999991,12.21,12.32,10.199999999999999,17.59,null,null,null,null,null,null,null,null,null,null,null,null,null,null,null,null,null,null,null,null,null,null,null,null,null,null,null,null,null,null,null,null,null,null,null,null,null,null,0,"","","","","",""]
["CV(%)",2.4,5.85,6.58,5.81,3.88,5.36,null,null,null,null,null,null,null,null,null,null,null,null,null,null,null,null,null,null,null,null,null,null,null,null,null,null,null,null,null,null,null,null,null,null,null,null,null,null,0,"","","","","",""]
["Pork",null,null,null,null,null,null,null,null,null,null,null,null,null,null,null,null,null,null,null,null,null,null,null,null,null,null,null,null,null,null,null,null,null,null,null,null,null,null,null,null,null,null,null,null,0,"","","","","",""]
["Mean",175,117,138,156,216,247,null,null,null,null,null,null,null,null,null,null,null,null,null,null,null,null,null,null,null,null,null,null,null,null,null,null,null,null,null,null,null,null,null,null,null,null,null,null,0,"","","","","",""]
["Share",0.3,0.5,0.4,0.4,0.4,0.2,null,null,null,null,null,null,null,null,null,null,null,null,null,null,null,null,null,null,null,null,null,null,null,null,null,null,null,null,null,null,null,null,null,null,null,null,null,null,0,"","","","","",""]
["SE",5.04,7.83,8.7100000000000009,9.27,11.33,11.49,null,null,null,null,null,null,null,null,null,null,null,null,null,null,null,null,null,null,null,null,null,null,null,null,null,null,null,null,null,null,null,null,null,null,null,null,null,null,0,"","","","","",""]
["CV(%)",2.88,6.7,6.3,5.93,5.23,4.6500000000000004,null,null,null,null,null,null,null,null,null,null,null,null,null,null,null,null,null,null,null,null,null,null,null,null,null,null,null,null,null,null,null,null,null,null,null,null,null,null,0,"","","","","",""]
["Other meats",null,null,null,null,null,null,null,null,null,null,null,null,null,null,null,null,null,null,null,null,null,null,null,null,null,null,null,null,null,null,null,null,null,null,null,null,null,null,null,null,null,null,null,null,0,"","","","","",""]
["Mean",122,76,90,114,149,181,null,null,null,null,null,null,null,null,null,null,null,null,null,null,null,null,null,null,null,null,null,null,null,null,null,null,null,null,null,null,null,null,null,null,null,null,null,null,0,"","","","","",""]
["Share",0.2,0.3,0.3,0.3,0.3,0.2,null,null,null,null,null,null,null,null,null,null,null,null,null,null,null,null,null,null,null,null,null,null,null,null,null,null,null,null,null,null,null,null,null,null,null,null,null,null,0,"","","","","",""]
["SE",3.53,4.07,6.19,5.26,8.2200000000000006,8.85,null,null,null,null,null,null,null,null,null,null,null,null,null,null,null,null,null,null,null,null,null,null,null,null,null,null,null,null,null,null,null,null,null,null,null,null,null,null,0,"","","","","",""]
["CV(%)",2.9,5.36,6.91,4.6100000000000003,5.52,4.88,null,null,null,null,null,null,null,null,null,null,null,null,null,null,null,null,null,null,null,null,null,null,null,null,null,null,null,null,null,null,null,null,null,null,null,null,null,null,0,"","","","","",""]
["Poultry",null,null,null,null,null,null,null,null,null,null,null,null,null,null,null,null,null,null,null,null,null,null,null,null,null,null,null,null,null,null,null,null,null,null,null,null,null,null,null,null,null,null,null,null,0,"","","","","",""]
["Mean",176,132,150,152,193,253,null,null,null,null,null,null,null,null,null,null,null,null,null,null,null,null,null,null,null,null,null,null,null,null,null,null,null,null,null,null,null,null,null,null,null,null,null,null,0,"","","","","",""]
["Share",0.3,0.6,0.5,0.3,0.3,0.3,null,null,null,null,null,null,null,null,null,null,null,null,null,null,null,null,null,null,null,null,null,null,null,null,null,null,null,null,null,null,null,null,null,null,null,null,null,null,0,"","","","","",""]
["SE",4.24,6.6,10.4,9.3000000000000007,8.5,12.22,null,null,null,null,null,null,null,null,null,null,null,null,null,null,null,null,null,null,null,null,null,null,null,null,null,null,null,null,null,null,null,null,null,null,null,null,null,null,0,"","","","","",""]
["CV(%)",2.41,5.01,6.92,6.12,4.41,4.83,null,null,null,null,null,null,null,null,null,null,null,null,null,null,null,null,null,null,null,null,null,null,null,null,null,null,null,null,null,null,null,null,null,null,null,null,null,null,0,"","","","","",""]
["Fish and seafood",null,null,null,null,null,null,null,null,null,null,null,null,null,null,null,null,null,null,null,null,null,null,null,null,null,null,null,null,null,null,null,null,null,null,null,null,null,null,null,null,null,null,null,null,0,"","","","","",""]
["Mean",127,80,99,115,134,209,null,null,null,null,null,null,null,null,null,null,null,null,null,null,null,null,null,null,null,null,null,null,null,null,null,null,null,null,null,null,null,null,null,null,null,null,null,null,0,"","","","","",""]
["Share",0.2,0.3,0.3,0.3,0.2,0.2,null,null,null,null,null,null,null,null,null,null,null,null,null,null,null,null,null,null,null,null,null,null,null,null,null,null,null,null,null,null,null,null,null,null,null,null,null,null,0,"","","","","",""]
["SE",4.09,5.6,7.23,8.68,10.75,10.039999999999999,null,null,null,null,null,null,null,null,null,null,null,null,null,null,null,null,null,null,null,null,null,null,null,null,null,null,null,null,null,null,null,null,null,null,null,null,null,null,0,"","","","","",""]
["CV(%)",3.21,6.97,7.33,7.52,8.0299999999999994,4.8099999999999996,null,null,null,null,null,null,null,null,null,null,null,null,null,null,null,null,null,null,null,null,null,null,null,null,null,null,null,null,null,null,null,null,null,null,null,null,null,null,0,"","","","","",""]
["Eggs",null,null,null,null,null,null,null,null,null,null,null,null,null,null,null,null,null,null,null,null,null,null,null,null,null,null,null,null,null,null,null,null,null,null,null,null,null,null,null,null,null,null,null,null,0,"","","","","",""]
["Mean",57,41,50,55,63,77,null,null,null,null,null,null,null,null,null,null,null,null,null,null,null,null,null,null,null,null,null,null,null,null,null,null,null,null,null,null,null,null,null,null,null,null,null,null,0,"","","","","",""]
["Share",0.1,0.2,0.2,0.1,0.1,0.1,null,null,null,null,null,null,null,null,null,null,null,null,null,null,null,null,null,null,null,null,null,null,null,null,null,null,null,null,null,null,null,null,null,null,null,null,null,null,0,"","","","","",""]
["SE",1.19,1.89,2.76,2.8,2.9,3.19,null,null,null,null,null,null,null,null,null,null,null,null,null,null,null,null,null,null,null,null,null,null,null,null,null,null,null,null,null,null,null,null,null,null,null,null,null,null,0,"","","","","",""]
["CV(%)",2.0699999999999998,4.6399999999999997,5.49,5.07,4.62,4.1399999999999997,null,null,null,null,null,null,null,null,null,null,null,null,null,null,null,null,null,null,null,null,null,null,null,null,null,null,null,null,null,null,null,null,null,null,null,null,null,null,0,"","","","","",""]
["Dairy products",null,null,null,null,null,null,null,null,null,null,null,null,null,null,null,null,null,null,null,null,null,null,null,null,null,null,null,null,null,null,null,null,null,null,null,null,null,null,null,null,null,null,null,null,0,"","","","","",""]
["Mean",420,266,323,386,494,630,null,null,null,null,null,null,null,null,null,null,null,null,null,null,null,null,null,null,null,null,null,null,null,null,null,null,null,null,null,null,null,null,null,null,null,null,null,null,0,"","","","","",""]
["Share",0.8,1.2,1,0.9,0.8,0.6,null,null,null,null,null,null,null,null,null,null,null,null,null,null,null,null,null,null,null,null,null,null,null,null,null,null,null,null,null,null,null,null,null,null,null,null,null,null,0,"","","","","",""]
["SE",7.97,7.43,12.48,13.47,18.07,17.84,null,null,null,null,null,null,null,null,null,null,null,null,null,null,null,null,null,null,null,null,null,null,null,null,null,null,null,null,null,null,null,null,null,null,null,null,null,null,0,"","","","","",""]
["CV(%)",1.9,2.79,3.86,3.49,3.65,2.83,null,null,null,null,null,null,null,null,null,null,null,null,null,null,null,null,null,null,null,null,null,null,null,null,null,null,null,null,null,null,null,null,null,null,null,null,null,null,0,"","","","","",""]
["Fresh milk and cream",null,null,null,null,null,null,null,null,null,null,null,null,null,null,null,null,null,null,null,null,null,null,null,null,null,null,null,null,null,null,null,null,null,null,null,null,null,null,null,null,null,null,null,null,{"$f":"+J125","v":0},{"$f":"IF($I125=1,B126,\"\")","v":""},{"$f":"IF($I125=1,C126,\"\")","v":""},{"$f":"IF($I125=1,D126,\"\")","v":""},{"$f":"IF($I125=1,E126,\"\")","v":""},{"$f":"IF($I125=1,F126,\"\")","v":""},{"$f":"IF($I125=1,G126,\"\")","v":""}]
["Mean",148,102,122,146,167,204,null,null,null,null,null,null,null,null,null,null,null,null,null,null,null,null,null,null,null,null,null,null,null,null,null,null,null,null,null,null,null,null,null,null,null,null,null,null,0,"","","","","",""]
["Share",0.3,0.4,0.4,0.3,0.3,0.2,null,null,null,null,null,null,null,null,null,null,null,null,null,null,null,null,null,null,null,null,null,null,null,null,null,null,null,null,null,null,null,null,null,null,null,null,null,null,0,"","","","","",""]
["SE",3.24,3.87,5.28,7.62,6.21,6.54,null,null,null,null,null,null,null,null,null,null,null,null,null,null,null,null,null,null,null,null,null,null,null,null,null,null,null,null,null,null,null,null,null,null,null,null,null,null,0,"","","","","",""]
["CV(%)",2.19,3.78,4.34,5.24,3.72,3.2,null,null,null,null,null,null,null,null,null,null,null,null,null,null,null,null,null,null,null,null,null,null,null,null,null,null,null,null,null,null,null,null,null,null,null,null,null,null,0,"","","","","",""]
["Other dairy products",null,null,null,null,null,null,null,null,null,null,null,null,null,null,null,null,null,null,null,null,null,null,null,null,null,null,null,null,null,null,null,null,null,null,null,null,null,null,null,null,null,null,null,null,0,"","","","","",""]
["Mean",272,164,202,240,327,426,null,null,null,null,null,null,null,null,null,null,null,null,null,null,null,null,null,null,null,null,null,null,null,null,null,null,null,null,null,null,null,null,null,null,null,null,null,null,0,"","","","","",""]
["Share",0.5,0.7,0.6,0.5,0.6,0.4,null,null,null,null,null,null,null,null,null,null,null,null,null,null,null,null,null,null,null,null,null,null,null,null,null,null,null,null,null,null,null,null,null,null,null,null,null,null,0,"","","","","",""]
["SE",6.2,6,10.77,9.27,14.41,13.16,null,null,null,null,null,null,null,null,null,null,null,null,null,null,null,null,null,null,null,null,null,null,null,null,null,null,null,null,null,null,null,null,null,null,null,null,null,null,0,"","","","","",""]
["CV(%)",2.2799999999999998,3.66,5.34,3.86,4.4000000000000004,3.09,null,null,null,null,null,null,null,null,null,null,null,null,null,null,null,null,null,null,null,null,null,null,null,null,null,null,null,null,null,null,null,null,null,null,null,null,null,null,0,"","","","","",""]
["Fruits and vegetables",null,null,null,null,null,null,null,null,null,null,null,null,null,null,null,null,null,null,null,null,null,null,null,null,null,null,null,null,null,null,null,null,null,null,null,null,null,null,null,null,null,null,null,null,0,"","","","","",""]
["Mean",770,471,578,700,896,1203,null,null,null,null,null,null,null,null,null,null,null,null,null,null,null,null,null,null,null,null,null,null,null,null,null,null,null,null,null,null,null,null,null,null,null,null,null,null,0,"","","","","",""]
["Share",1.5,2,1.8,1.6,1.5,1.2,null,null,null,null,null,null,null,null,null,null,null,null,null,null,null,null,null,null,null,null,null,null,null,null,null,null,null,null,null,null,null,null,null,null,null,null,null,null,0,"","","","","",""]
["SE",15.01,16.86,21.03,25.28,28.06,32.28,null,null,null,null,null,null,null,null,null,null,null,null,null,null,null,null,null,null,null,null,null,null,null,null,null,null,null,null,null,null,null,null,null,null,null,null,null,null,0,"","","","","",""]
["CV(%)",1.95,3.58,3.64,3.61,3.13,2.68,null,null,null,null,null,null,null,null,null,null,null,null,null,null,null,null,null,null,null,null,null,null,null,null,null,null,null,null,null,null,null,null,null,null,null,null,null,null,0,"","","","","",""]
["Fresh fruits",null,null,null,null,null,null,null,null,null,null,null,null,null,null,null,null,null,null,null,null,null,null,null,null,null,null,null,null,null,null,null,null,null,null,null,null,null,null,null,null,null,null,null,null,0,"","","","","",""]
["Mean",278,159,203,251,323,453,null,null,null,null,null,null,null,null,null,null,null,null,null,null,null,null,null,null,null,null,null,null,null,null,null,null,null,null,null,null,null,null,null,null,null,null,null,null,0,"","","","","",""]
["Share",0.5,0.7,0.6,0.6,0.5,0.4,null,null,null,null,null,null,null,null,null,null,null,null,null,null,null,null,null,null,null,null,null,null,null,null,null,null,null,null,null,null,null,null,null,null,null,null,null,null,0,"","","","","",""]
["SE",5.58,7.53,8.93,10.99,14.07,13.49,null,null,null,null,null,null,null,null,null,null,null,null,null,null,null,null,null,null,null,null,null,null,null,null,null,null,null,null,null,null,null,null,null,null,null,null,null,null,0,"","","","","",""]
["CV(%)",2.0099999999999998,4.7300000000000004,4.4000000000000004,4.3899999999999997,4.3499999999999996,2.98,null,null,null,null,null,null,null,null,null,null,null,null,null,null,null,null,null,null,null,null,null,null,null,null,null,null,null,null,null,null,null,null,null,null,null,null,null,null,0,"","","","","",""]
["Fresh vegetables",null,null,null,null,null,null,null,null,null,null,null,null,null,null,null,null,null,null,null,null,null,null,null,null,null,null,null,null,null,null,null,null,null,null,null,null,null,null,null,null,null,null,null,null,0,"","","","","",""]
["Mean",244,150,179,219,283,386,null,null,null,null,null,null,null,null,null,null,null,null,null,null,null,null,null,null,null,null,null,null,null,null,null,null,null,null,null,null,null,null,null,null,null,null,null,null,0,"","","","","",""]
["Share",0.5,0.7,0.5,0.5,0.5,0.4,null,null,null,null,null,null,null,null,null,null,null,null,null,null,null,null,null,null,null,null,null,null,null,null,null,null,null,null,null,null,null,null,null,null,null,null,null,null,0,"","","","","",""]
["SE",4.88,6.5,6.56,9.61,8.1,11.26,null,null,null,null,null,null,null,null,null,null,null,null,null,null,null,null,null,null,null,null,null,null,null,null,null,null,null,null,null,null,null,null,null,null,null,null,null,null,0,"","","","","",""]
["CV(%)",2,4.34,3.66,4.38,2.86,2.92,null,null,null,null,null,null,null,null,null,null,null,null,null,null,null,null,null,null,null,null,null,null,null,null,null,null,null,null,null,null,null,null,null,null,null,null,null,null,0,"","","","","",""]
["Processed fruits",null,null,null,null,null,null,null,null,null,null,null,null,null,null,null,null,null,null,null,null,null,null,null,null,null,null,null,null,null,null,null,null,null,null,null,null,null,null,null,null,null,null,null,null,0,"","","","","",""]
["Mean",115,74,89,104,136,170,null,null,null,null,null,null,null,null,null,null,null,null,null,null,null,null,null,null,null,null,null,null,null,null,null,null,null,null,null,null,null,null,null,null,null,null,null,null,0,"","","","","",""]
["Share",0.2,0.3,0.3,0.2,0.2,0.2,null,null,null,null,null,null,null,null,null,null,null,null,null,null,null,null,null,null,null,null,null,null,null,null,null,null,null,null,null,null,null,null,null,null,null,null,null,null,0,"","","","","",""]
["SE",3.46,3.68,5.05,5.43,8,6.92,null,null,null,null,null,null,null,null,null,null,null,null,null,null,null,null,null,null,null,null,null,null,null,null,null,null,null,null,null,null,null,null,null,null,null,null,null,null,0,"","","","","",""]
["CV(%)",3.01,5,5.65,5.21,5.87,4.07,null,null,null,null,null,null,null,null,null,null,null,null,null,null,null,null,null,null,null,null,null,null,null,null,null,null,null,null,null,null,null,null,null,null,null,null,null,null,0,"","","","","",""]
["Processed vegetables",null,null,null,null,null,null,null,null,null,null,null,null,null,null,null,null,null,null,null,null,null,null,null,null,null,null,null,null,null,null,null,null,null,null,null,null,null,null,null,null,null,null,null,null,0,"","","","","",""]
["Mean",133,88,106,126,154,194,null,null,null,null,null,null,null,null,null,null,null,null,null,null,null,null,null,null,null,null,null,null,null,null,null,null,null,null,null,null,null,null,null,null,null,null,null,null,0,"","","","","",""]
["Share",0.3,0.4,0.3,0.3,0.3,0.2,null,null,null,null,null,null,null,null,null,null,null,null,null,null,null,null,null,null,null,null,null,null,null,null,null,null,null,null,null,null,null,null,null,null,null,null,null,null,0,"","","","","",""]
["SE",3.71,5.33,5.85,6.68,6.97,10.38,null,null,null,null,null,null,null,null,null,null,null,null,null,null,null,null,null,null,null,null,null,null,null,null,null,null,null,null,null,null,null,null,null,null,null,null,null,null,0,"","","","","",""]
["CV(%)",2.78,6.07,5.52,5.3,4.54,5.36,null,null,null,null,null,null,null,null,null,null,null,null,null,null,null,null,null,null,null,null,null,null,null,null,null,null,null,null,null,null,null,null,null,null,null,null,null,null,0,"","","","","",""]
["Other food at home",null,null,null,null,null,null,null,null,null,null,null,null,null,null,null,null,null,null,null,null,null,null,null,null,null,null,null,null,null,null,null,null,null,null,null,null,null,null,null,null,null,null,null,null,0,"","","","","",""]
["Mean",1397,867,1052,1257,1636,2174,null,null,null,null,null,null,null,null,null,null,null,null,null,null,null,null,null,null,null,null,null,null,null,null,null,null,null,null,null,null,null,null,null,null,null,null,null,null,0,"","","","","",""]
["Share",2.7,3.8,3.2,2.9,2.8,2.2000000000000002,null,null,null,null,null,null,null,null,null,null,null,null,null,null,null,null,null,null,null,null,null,null,null,null,null,null,null,null,null,null,null,null,null,null,null,null,null,null,0,"","","","","",""]
["SE",27.46,29.05,40.159999999999997,48.06,45.03,59.37,null,null,null,null,null,null,null,null,null,null,null,null,null,null,null,null,null,null,null,null,null,null,null,null,null,null,null,null,null,null,null,null,null,null,null,null,null,null,0,"","","","","",""]
["CV(%)",1.97,3.35,3.82,3.82,2.75,2.73,null,null,null,null,null,null,null,null,null,null,null,null,null,null,null,null,null,null,null,null,null,null,null,null,null,null,null,null,null,null,null,null,null,null,null,null,null,null,0,"","","","","",""]
["Sugar and other sweets",null,null,null,null,null,null,null,null,null,null,null,null,null,null,null,null,null,null,null,null,null,null,null,null,null,null,null,null,null,null,null,null,null,null,null,null,null,null,null,null,null,null,null,null,0,"","","","","",""]
["Mean",142,86,114,124,160,226,null,null,null,null,null,null,null,null,null,null,null,null,null,null,null,null,null,null,null,null,null,null,null,null,null,null,null,null,null,null,null,null,null,null,null,null,null,null,0,"","","","","",""]
["Share",0.3,0.4,0.3,0.3,0.3,0.2,null,null,null,null,null,null,null,null,null,null,null,null,null,null,null,null,null,null,null,null,null,null,null,null,null,null,null,null,null,null,null,null,null,null,null,null,null,null,0,"","","","","",""]
["SE",3.7,5.44,6.01,5.85,5.52,12.87,null,null,null,null,null,null,null,null,null,null,null,null,null,null,null,null,null,null,null,null,null,null,null,null,null,null,null,null,null,null,null,null,null,null,null,null,null,null,0,"","","","","",""]
["CV(%)",2.6,6.29,5.28,4.72,3.44,5.69,null,null,null,null,null,null,null,null,null,null,null,null,null,null,null,null,null,null,null,null,null,null,null,null,null,null,null,null,null,null,null,null,null,null,null,null,null,null,0,"","","","","",""]
["Fats and oils",null,null,null,null,null,null,null,null,null,null,null,null,null,null,null,null,null,null,null,null,null,null,null,null,null,null,null,null,null,null,null,null,null,null,null,null,null,null,null,null,null,null,null,null,0,"","","","","",""]
["Mean",117,79,94,109,130,175,null,null,null,null,null,null,null,null,null,null,null,null,null,null,null,null,null,null,null,null,null,null,null,null,null,null,null,null,null,null,null,null,null,null,null,null,null,null,0,"","","","","",""]
["Share",0.2,0.3,0.3,0.2,0.2,0.2,null,null,null,null,null,null,null,null,null,null,null,null,null,null,null,null,null,null,null,null,null,null,null,null,null,null,null,null,null,null,null,null,null,null,null,null,null,null,0,"","","","","",""]
["SE",3.71,4.33,6.23,5.38,5.17,8.4,null,null,null,null,null,null,null,null,null,null,null,null,null,null,null,null,null,null,null,null,null,null,null,null,null,null,null,null,null,null,null,null,null,null,null,null,null,null,0,"","","","","",""]
["CV(%)",3.16,5.48,6.6,4.95,3.99,4.8,null,null,null,null,null,null,null,null,null,null,null,null,null,null,null,null,null,null,null,null,null,null,null,null,null,null,null,null,null,null,null,null,null,null,null,null,null,null,0,"","","","","",""]
["Miscellaneous foods",null,null,null,null,null,null,null,null,null,null,null,null,null,null,null,null,null,null,null,null,null,null,null,null,null,null,null,null,null,null,null,null,null,null,null,null,null,null,null,null,null,null,null,null,0,"","","","","",""]
["Mean",712,429,526,637,857,1111,null,null,null,null,null,null,null,null,null,null,null,null,null,null,null,null,null,null,null,null,null,null,null,null,null,null,null,null,null,null,null,null,null,null,null,null,null,null,0,"","","","","",""]
["Share",1.4,1.9,1.6,1.5,1.4,1.1000000000000001,null,null,null,null,null,null,null,null,null,null,null,null,null,null,null,null,null,null,null,null,null,null,null,null,null,null,null,null,null,null,null,null,null,null,null,null,null,null,0,"","","","","",""]
["SE",15.23,17.97,20.81,28.97,29.48,39.64,null,null,null,null,null,null,null,null,null,null,null,null,null,null,null,null,null,null,null,null,null,null,null,null,null,null,null,null,null,null,null,null,null,null,null,null,null,null,0,"","","","","",""]
["CV(%)",2.14,4.1900000000000004,3.96,4.55,3.44,3.57,null,null,null,null,null,null,null,null,null,null,null,null,null,null,null,null,null,null,null,null,null,null,null,null,null,null,null,null,null,null,null,null,null,null,null,null,null,null,0,"","","","","",""]
["Nonalcoholic beverages",null,null,null,null,null,null,null,null,null,null,null,null,null,null,null,null,null,null,null,null,null,null,null,null,null,null,null,null,null,null,null,null,null,null,null,null,null,null,null,null,null,null,null,null,0,"","","","","",""]
["Mean",377,259,292,352,442,540,null,null,null,null,null,null,null,null,null,null,null,null,null,null,null,null,null,null,null,null,null,null,null,null,null,null,null,null,null,null,null,null,null,null,null,null,null,null,0,"","","","","",""]
["Share",0.7,1.1000000000000001,0.9,0.8,0.7,0.5,null,null,null,null,null,null,null,null,null,null,null,null,null,null,null,null,null,null,null,null,null,null,null,null,null,null,null,null,null,null,null,null,null,null,null,null,null,null,0,"","","","","",""]
["SE",8.67,10.4,14.82,20.36,17.18,21.13,null,null,null,null,null,null,null,null,null,null,null,null,null,null,null,null,null,null,null,null,null,null,null,null,null,null,null,null,null,null,null,null,null,null,null,null,null,null,0,"","","","","",""]
["CV(%)",2.2999999999999998,4.01,5.08,5.78,3.89,3.91,null,null,null,null,null,null,null,null,null,null,null,null,null,null,null,null,null,null,null,null,null,null,null,null,null,null,null,null,null,null,null,null,null,null,null,null,null,null,0,"","","","","",""]
["Food prepared by consumer unit on out-of-town trips",null,null,null,null,null,null,null,null,null,null,null,null,null,null,null,null,null,null,null,null,null,null,null,null,null,null,null,null,null,null,null,null,null,null,null,null,null,null,null,null,null,null,null,null,0,"","","","","",""]
["Mean",48,13,25,35,48,122,null,null,null,null,null,null,null,null,null,null,null,null,null,null,null,null,null,null,null,null,null,null,null,null,null,null,null,null,null,null,null,null,null,null,null,null,null,null,0,"","","","","",""]
["Share",0.1,0.1,0.1,0.1,0.1,0.1,null,null,null,null,null,null,null,null,null,null,null,null,null,null,null,null,null,null,null,null,null,null,null,null,null,null,null,null,null,null,null,null,null,null,null,null,null,null,0,"","","","","",""]
["SE",2.96,1.71,3.85,5.58,3.77,8.4700000000000006,null,null,null,null,null,null,null,null,null,null,null,null,null,null,null,null,null,null,null,null,null,null,null,null,null,null,null,null,null,null,null,null,null,null,null,null,null,null,0,"","","","","",""]
["CV(%)",6.11,13.69,15.17,15.89,7.92,6.96,null,null,null,null,null,null,null,null,null,null,null,null,null,null,null,null,null,null,null,null,null,null,null,null,null,null,null,null,null,null,null,null,null,null,null,null,null,null,{"$f":"+J189","v":0},{"$f":"IF($I189=1,B190,\"\")","v":""},{"$f":"IF($I189=1,C190,\"\")","v":""},{"$f":"IF($I189=1,D190,\"\")","v":""},{"$f":"IF($I189=1,E190,\"\")","v":""},{"$f":"IF($I189=1,F190,\"\")","v":""},{"$f":"IF($I189=1,G190,\"\")","v":""}]
["Food away from home",null,null,null,null,null,null,null,null,null,null,null,null,null,null,null,null,null,null,null,null,null,null,null,null,null,null,null,null,null,null,null,null,null,null,null,null,null,null,null,null,null,null,null,null,0,"","","","","",""]
["Mean",2661,1154,1609,2212,3182,5148,null,null,null,null,null,null,null,null,null,null,null,null,null,null,null,null,null,null,null,null,null,null,null,null,null,null,null,null,null,null,null,null,null,null,null,null,null,null,0,"","","","","",""]
["Share",5.0999999999999996,5,4.9000000000000004,5.0999999999999996,5.4,5.0999999999999996,null,null,null,null,null,null,null,null,null,null,null,null,null,null,null,null,null,null,null,null,null,null,null,null,null,null,null,null,null,null,null,null,null,null,null,null,null,null,0,"","","","","",""]
["SE",43.47,59.39,69.2,94.99,87.77,120.61,null,null,null,null,null,null,null,null,null,null,null,null,null,null,null,null,null,null,null,null,null,null,null,null,null,null,null,null,null,null,null,null,null,null,null,null,null,null,0,"","","","","",""]
["CV(%)",1.63,5.15,4.3,4.29,2.76,2.34,null,null,null,null,null,null,null,null,null,null,null,null,null,null,null,null,null,null,null,null,null,null,null,null,null,null,null,null,null,null,null,null,null,null,null,null,null,null,0,"","","","","",""]
["",null,null,null,null,null,null,null,null,null,null,null,null,null,null,null,null,null,null,null,null,null,null,null,null,null,null,null,null,null,null,null,null,null,null,null,null,null,null,null,null,null,null,null,null,0,"","","","","",""]
["Alcoholic beverages",null,null,null,null,null,null,null,null,null,null,null,null,null,null,null,null,null,null,null,null,null,null,null,null,null,null,null,null,null,null,null,null,null,null,null,null,null,null,null,null,null,null,null,null,0,"","","","","",""]
["Mean",450,181,241,354,503,970,null,null,null,null,null,null,null,null,null,null,null,null,null,null,null,null,null,null,null,null,null,null,null,null,null,null,null,null,null,null,null,null,null,null,null,null,null,null,0,"","","","","",""]
["Share",0.9,0.8,0.7,0.8,0.8,1,null,null,null,null,null,null,null,null,null,null,null,null,null,null,null,null,null,null,null,null,null,null,null,null,null,null,null,null,null,null,null,null,null,null,null,null,null,null,0,"","","","","",""]
["SE",17.78,22.02,20.09,28.4,28.59,55.76,null,null,null,null,null,null,null,null,null,null,null,null,null,null,null,null,null,null,null,null,null,null,null,null,null,null,null,null,null,null,null,null,null,null,null,null,null,null,0,"","","","","",""]
["CV(%)",3.95,12.18,8.35,8.02,5.68,5.75,null,null,null,null,null,null,null,null,null,null,null,null,null,null,null,null,null,null,null,null,null,null,null,null,null,null,null,null,null,null,null,null,null,null,null,null,null,null,0,"","","","","",""]
["",null,null,null,null,null,null,null,null,null,null,null,null,null,null,null,null,null,null,null,null,null,null,null,null,null,null,null,null,null,null,null,null,null,null,null,null,null,null,null,null,null,null,null,null,0,"","","","","",""]
["Housing",null,null,null,null,null,null,null,null,null,null,null,null,null,null,null,null,null,null,null,null,null,null,null,null,null,null,null,null,null,null,null,null,null,null,null,null,null,null,null,null,null,null,null,null,0,"","","","","",""]
["Mean",17377,9319,12336,15120,19099,31034,null,null,null,null,null,null,null,null,null,null,null,null,null,null,null,null,null,null,null,null,null,null,null,null,null,null,null,null,null,null,null,null,null,null,null,null,null,null,0,"","","","","",""]
["Share",33.5,40.6,37.6,34.6,32.200000000000003,30.7,null,null,null,null,null,null,null,null,null,null,null,null,null,null,null,null,null,null,null,null,null,null,null,null,null,null,null,null,null,null,null,null,null,null,null,null,null,null,0,"","","","","",""]
["SE",194.33,210.99,171.57,177.9,267.14999999999998,378.78,null,null,null,null,null,null,null,null,null,null,null,null,null,null,null,null,null,null,null,null,null,null,null,null,null,null,null,null,null,null,null,null,null,null,null,null,null,null,0,"","","","","",""]
["CV(%)",1.1200000000000001,2.2599999999999998,1.39,1.18,1.4,1.22,null,null,null,null,null,null,null,null,null,null,null,null,null,null,null,null,null,null,null,null,null,null,null,null,null,null,null,null,null,null,null,null,null,null,null,null,null,null,0,"","","","","",""]
["Shelter",null,null,null,null,null,null,null,null,null,null,null,null,null,null,null,null,null,null,null,null,null,null,null,null,null,null,null,null,null,null,null,null,null,null,null,null,null,null,null,null,null,null,null,null,0,"","","","","",""]
["Mean",10275,5673,7195,8779,11043,18703,null,null,null,null,null,null,null,null,null,null,null,null,null,null,null,null,null,null,null,null,null,null,null,null,null,null,null,null,null,null,null,null,null,null,null,null,null,null,0,"","","","","",""]
["Share",19.8,24.7,21.9,20.100000000000001,18.600000000000001,18.5,null,null,null,null,null,null,null,null,null,null,null,null,null,null,null,null,null,null,null,null,null,null,null,null,null,null,null,null,null,null,null,null,null,null,null,null,null,null,0,"","","","","",""]
["SE",135.88,175.21,149.75,126.82,186.59,265.43,null,null,null,null,null,null,null,null,null,null,null,null,null,null,null,null,null,null,null,null,null,null,null,null,null,null,null,null,null,null,null,null,null,null,null,null,null,null,0,"","","","","",""]
["CV(%)",1.32,3.09,2.08,1.44,1.69,1.42,null,null,null,null,null,null,null,null,null,null,null,null,null,null,null,null,null,null,null,null,null,null,null,null,null,null,null,null,null,null,null,null,null,null,null,null,null,null,0,"","","","","",""]
["Owned dwellings",null,null,null,null,null,null,null,null,null,null,null,null,null,null,null,null,null,null,null,null,null,null,null,null,null,null,null,null,null,null,null,null,null,null,null,null,null,null,null,null,null,null,null,null,0,"","","","","",""]
["Mean",6138,1908,3128,4383,7164,14125,null,null,null,null,null,null,null,null,null,null,null,null,null,null,null,null,null,null,null,null,null,null,null,null,null,null,null,null,null,null,null,null,null,null,null,null,null,null,0,"","","","","",""]
["Share",11.8,8.3000000000000007,9.5,10,12.1,14,null,null,null,null,null,null,null,null,null,null,null,null,null,null,null,null,null,null,null,null,null,null,null,null,null,null,null,null,null,null,null,null,null,null,null,null,null,null,0,"","","","","",""]
["SE",96.79,100.43,137.51,126.71,167.53,223.55,null,null,null,null,null,null,null,null,null,null,null,null,null,null,null,null,null,null,null,null,null,null,null,null,null,null,null,null,null,null,null,null,null,null,null,null,null,null,0,"","","","","",""]
["CV(%)",1.58,5.26,4.4000000000000004,2.89,2.34,1.58,null,null,null,null,null,null,null,null,null,null,null,null,null,null,null,null,null,null,null,null,null,null,null,null,null,null,null,null,null,null,null,null,null,null,null,null,null,null,0,"","","","","",""]
["Mortgage interest and charges",null,null,null,null,null,null,null,null,null,null,null,null,null,null,null,null,null,null,null,null,null,null,null,null,null,null,null,null,null,null,null,null,null,null,null,null,null,null,null,null,null,null,null,null,0,"","","","","",""]
["Mean",3033,679,1174,2051,3804,7467,null,null,null,null,null,null,null,null,null,null,null,null,null,null,null,null,null,null,null,null,null,null,null,null,null,null,null,null,null,null,null,null,null,null,null,null,null,null,0,"","","","","",""]
["Share",5.8,3,3.6,4.7,6.4,7.4,null,null,null,null,null,null,null,null,null,null,null,null,null,null,null,null,null,null,null,null,null,null,null,null,null,null,null,null,null,null,null,null,null,null,null,null,null,null,0,"","","","","",""]
["SE",67.87,65.989999999999995,106.92,77.59,121.93,171.75,null,null,null,null,null,null,null,null,null,null,null,null,null,null,null,null,null,null,null,null,null,null,null,null,null,null,null,null,null,null,null,null,null,null,null,null,null,null,0,"","","","","",""]
["CV(%)",2.2400000000000002,9.7200000000000006,9.11,3.78,3.21,2.2999999999999998,null,null,null,null,null,null,null,null,null,null,null,null,null,null,null,null,null,null,null,null,null,null,null,null,null,null,null,null,null,null,null,null,null,null,null,null,null,null,0,"","","","","",""]
["Property taxes",null,null,null,null,null,null,null,null,null,null,null,null,null,null,null,null,null,null,null,null,null,null,null,null,null,null,null,null,null,null,null,null,null,null,null,null,null,null,null,null,null,null,null,null,0,"","","","","",""]
["Mean",1849,719,1085,1338,1980,4126,null,null,null,null,null,null,null,null,null,null,null,null,null,null,null,null,null,null,null,null,null,null,null,null,null,null,null,null,null,null,null,null,null,null,null,null,null,null,0,"","","","","",""]
["Share",3.6,3.1,3.3,3.1,3.3,4.0999999999999996,null,null,null,null,null,null,null,null,null,null,null,null,null,null,null,null,null,null,null,null,null,null,null,null,null,null,null,null,null,null,null,null,null,null,null,null,null,null,0,"","","","","",""]
["SE",41.25,28.68,53.26,43.46,56.41,102.41,null,null,null,null,null,null,null,null,null,null,null,null,null,null,null,null,null,null,null,null,null,null,null,null,null,null,null,null,null,null,null,null,null,null,null,null,null,null,0,"","","","","",""]
["CV(%)",2.23,3.99,4.91,3.25,2.85,2.48,null,null,null,null,null,null,null,null,null,null,null,null,null,null,null,null,null,null,null,null,null,null,null,null,null,null,null,null,null,null,null,null,null,null,null,null,null,null,0,"","","","","",""]
["Maintenance, repairs, insurance, other expenses",null,null,null,null,null,null,null,null,null,null,null,null,null,null,null,null,null,null,null,null,null,null,null,null,null,null,null,null,null,null,null,null,null,null,null,null,null,null,null,null,null,null,null,null,0,"","","","","",""]
["Mean",1257,509,868,994,1380,2533,null,null,null,null,null,null,null,null,null,null,null,null,null,null,null,null,null,null,null,null,null,null,null,null,null,null,null,null,null,null,null,null,null,null,null,null,null,null,0,"","","","","",""]
["Share",2.4,2.2000000000000002,2.6,2.2999999999999998,2.2999999999999998,2.5,null,null,null,null,null,null,null,null,null,null,null,null,null,null,null,null,null,null,null,null,null,null,null,null,null,null,null,null,null,null,null,null,null,null,null,null,null,null,0,"","","","","",""]
["SE",33.08,39.61,57.84,73.44,61.4,105.59,null,null,null,null,null,null,null,null,null,null,null,null,null,null,null,null,null,null,null,null,null,null,null,null,null,null,null,null,null,null,null,null,null,null,null,null,null,null,0,"","","","","",""]
["CV(%)",2.63,7.78,6.66,7.39,4.45,4.17,null,null,null,null,null,null,null,null,null,null,null,null,null,null,null,null,null,null,null,null,null,null,null,null,null,null,null,null,null,null,null,null,null,null,null,null,null,null,0,"","","","","",""]
["Rented dwellings",null,null,null,null,null,null,null,null,null,null,null,null,null,null,null,null,null,null,null,null,null,null,null,null,null,null,null,null,null,null,null,null,null,null,null,null,null,null,null,null,null,null,null,null,0,"","","","","",""]
["Mean",3472,3630,3821,4048,3237,2621,null,null,null,null,null,null,null,null,null,null,null,null,null,null,null,null,null,null,null,null,null,null,null,null,null,null,null,null,null,null,null,null,null,null,null,null,null,null,0,"","","","","",""]
["Share",6.7,15.8,11.7,9.3000000000000007,5.5,2.6,null,null,null,null,null,null,null,null,null,null,null,null,null,null,null,null,null,null,null,null,null,null,null,null,null,null,null,null,null,null,null,null,null,null,null,null,null,null,0,"","","","","",""]
["SE",51.27,122.52,111.88,102.45,101.55,139.1,null,null,null,null,null,null,null,null,null,null,null,null,null,null,null,null,null,null,null,null,null,null,null,null,null,null,null,null,null,null,null,null,null,null,null,null,null,null,0,"","","","","",""]
["CV(%)",1.48,3.37,2.93,2.5299999999999998,3.14,5.31,null,null,null,null,null,null,null,null,null,null,null,null,null,null,null,null,null,null,null,null,null,null,null,null,null,null,null,null,null,null,null,null,null,null,null,null,null,null,0,"","","","","",""]
["Other lodging",null,null,null,null,null,null,null,null,null,null,null,null,null,null,null,null,null,null,null,null,null,null,null,null,null,null,null,null,null,null,null,null,null,null,null,null,null,null,null,null,null,null,null,null,0,"","","","","",""]
["Mean",664,135,246,347,641,1957,null,null,null,null,null,null,null,null,null,null,null,null,null,null,null,null,null,null,null,null,null,null,null,null,null,null,null,null,null,null,null,null,null,null,null,null,null,null,0,"","","","","",""]
["Share",1.3,0.6,0.8,0.8,1.1000000000000001,1.9,null,null,null,null,null,null,null,null,null,null,null,null,null,null,null,null,null,null,null,null,null,null,null,null,null,null,null,null,null,null,null,null,null,null,null,null,null,null,0,"","","","","",""]
["SE",30.86,16.3,23.46,24.42,37.14,131.19999999999999,null,null,null,null,null,null,null,null,null,null,null,null,null,null,null,null,null,null,null,null,null,null,null,null,null,null,null,null,null,null,null,null,null,null,null,null,null,null,0,"","","","","",""]
["CV(%)",4.6399999999999997,12.09,9.5399999999999991,7.03,5.8,6.7,null,null,null,null,null,null,null,null,null,null,null,null,null,null,null,null,null,null,null,null,null,null,null,null,null,null,null,null,null,null,null,null,null,null,null,null,null,null,0,"","","","","",""]
["Utilities, fuels, and public services",null,null,null,null,null,null,null,null,null,null,null,null,null,null,null,null,null,null,null,null,null,null,null,null,null,null,null,null,null,null,null,null,null,null,null,null,null,null,null,null,null,null,null,null,0,"","","","","",""]
["Mean",3861,2317,3142,3774,4459,5613,null,null,null,null,null,null,null,null,null,null,null,null,null,null,null,null,null,null,null,null,null,null,null,null,null,null,null,null,null,null,null,null,null,null,null,null,null,null,0,"","","","","",""]
["Share",7.4,10.1,9.6,8.6,7.5,5.6,null,null,null,null,null,null,null,null,null,null,null,null,null,null,null,null,null,null,null,null,null,null,null,null,null,null,null,null,null,null,null,null,null,null,null,null,null,null,0,"","","","","",""]
["SE",30.98,60.57,49.34,38.619999999999997,49.25,59.57,null,null,null,null,null,null,null,null,null,null,null,null,null,null,null,null,null,null,null,null,null,null,null,null,null,null,null,null,null,null,null,null,null,null,null,null,null,null,0,"","","","","",""]
["CV(%)",0.8,2.61,1.57,1.02,1.1000000000000001,1.06,null,null,null,null,null,null,null,null,null,null,null,null,null,null,null,null,null,null,null,null,null,null,null,null,null,null,null,null,null,null,null,null,null,null,null,null,null,null,0,"","","","","",""]
["Natural gas",null,null,null,null,null,null,null,null,null,null,null,null,null,null,null,null,null,null,null,null,null,null,null,null,null,null,null,null,null,null,null,null,null,null,null,null,null,null,null,null,null,null,null,null,0,"","","","","",""]
["Mean",427,233,332,387,509,676,null,null,null,null,null,null,null,null,null,null,null,null,null,null,null,null,null,null,null,null,null,null,null,null,null,null,null,null,null,null,null,null,null,null,null,null,null,null,0,"","","","","",""]
["Share",0.8,1,1,0.9,0.9,0.7,null,null,null,null,null,null,null,null,null,null,null,null,null,null,null,null,null,null,null,null,null,null,null,null,null,null,null,null,null,null,null,null,null,null,null,null,null,null,0,"","","","","",""]
["SE",13.9,14.34,16.87,14.71,19.510000000000002,27.43,null,null,null,null,null,null,null,null,null,null,null,null,null,null,null,null,null,null,null,null,null,null,null,null,null,null,null,null,null,null,null,null,null,null,null,null,null,null,0,"","","","","",""]
["CV(%)",3.25,6.16,5.09,3.8,3.84,4.0599999999999996,null,null,null,null,null,null,null,null,null,null,null,null,null,null,null,null,null,null,null,null,null,null,null,null,null,null,null,null,null,null,null,null,null,null,null,null,null,null,0,"","","","","",""]
["Electricity",null,null,null,null,null,null,null,null,null,null,null,null,null,null,null,null,null,null,null,null,null,null,null,null,null,null,null,null,null,null,null,null,null,null,null,null,null,null,null,null,null,null,null,null,0,"","","","","",""]
["Mean",1470,1031,1302,1486,1608,1922,null,null,null,null,null,null,null,null,null,null,null,null,null,null,null,null,null,null,null,null,null,null,null,null,null,null,null,null,null,null,null,null,null,null,null,null,null,null,{"$f":"+J253","v":0},{"$f":"IF($I253=1,B254,\"\")","v":""},{"$f":"IF($I253=1,C254,\"\")","v":""},{"$f":"IF($I253=1,D254,\"\")","v":""},{"$f":"IF($I253=1,E254,\"\")","v":""},{"$f":"IF($I253=1,F254,\"\")","v":""},{"$f":"IF($I253=1,G254,\"\")","v":""}]
["Share",2.8,4.5,4,3.4,2.7,1.9,null,null,null,null,null,null,null,null,null,null,null,null,null,null,null,null,null,null,null,null,null,null,null,null,null,null,null,null,null,null,null,null,null,null,null,null,null,null,0,"","","","","",""]
["SE",20.14,39.11,29.69,25.75,25.73,29.72,null,null,null,null,null,null,null,null,null,null,null,null,null,null,null,null,null,null,null,null,null,null,null,null,null,null,null,null,null,null,null,null,null,null,null,null,null,null,0,"","","","","",""]
["CV(%)",1.37,3.79,2.2799999999999998,1.73,1.6,1.55,null,null,null,null,null,null,null,null,null,null,null,null,null,null,null,null,null,null,null,null,null,null,null,null,null,null,null,null,null,null,null,null,null,null,null,null,null,null,0,"","","","","",""]
["Fuel oil and other fuels",null,null,null,null,null,null,null,null,null,null,null,null,null,null,null,null,null,null,null,null,null,null,null,null,null,null,null,null,null,null,null,null,null,null,null,null,null,null,null,null,null,null,null,null,0,"","","","","",""]
["Mean",153,75,121,148,157,263,null,null,null,null,null,null,null,null,null,null,null,null,null,null,null,null,null,null,null,null,null,null,null,null,null,null,null,null,null,null,null,null,null,null,null,null,null,null,0,"","","","","",""]
["Share",0.3,0.3,0.4,0.3,0.3,0.3,null,null,null,null,null,null,null,null,null,null,null,null,null,null,null,null,null,null,null,null,null,null,null,null,null,null,null,null,null,null,null,null,null,null,null,null,null,null,0,"","","","","",""]
["SE",9.5500000000000007,12.98,10.7,8.66,13.58,27.58,null,null,null,null,null,null,null,null,null,null,null,null,null,null,null,null,null,null,null,null,null,null,null,null,null,null,null,null,null,null,null,null,null,null,null,null,null,null,0,"","","","","",""]
["CV(%)",6.25,17.37,8.83,5.87,8.67,10.47,null,null,null,null,null,null,null,null,null,null,null,null,null,null,null,null,null,null,null,null,null,null,null,null,null,null,null,null,null,null,null,null,null,null,null,null,null,null,0,"","","","","",""]
["Telephone services",null,null,null,null,null,null,null,null,null,null,null,null,null,null,null,null,null,null,null,null,null,null,null,null,null,null,null,null,null,null,null,null,null,null,null,null,null,null,null,null,null,null,null,null,0,"","","","","",""]
["Mean",1293,688,979,1266,1578,1957,null,null,null,null,null,null,null,null,null,null,null,null,null,null,null,null,null,null,null,null,null,null,null,null,null,null,null,null,null,null,null,null,null,null,null,null,null,null,0,"","","","","",""]
["Share",2.5,3,3,2.9,2.7,1.9,null,null,null,null,null,null,null,null,null,null,null,null,null,null,null,null,null,null,null,null,null,null,null,null,null,null,null,null,null,null,null,null,null,null,null,null,null,null,0,"","","","","",""]
["SE",12.71,19.260000000000002,21.35,15.23,26.02,22.57,null,null,null,null,null,null,null,null,null,null,null,null,null,null,null,null,null,null,null,null,null,null,null,null,null,null,null,null,null,null,null,null,null,null,null,null,null,null,0,"","","","","",""]
["CV(%)",0.98,2.8,2.1800000000000002,1.2,1.65,1.1499999999999999,null,null,null,null,null,null,null,null,null,null,null,null,null,null,null,null,null,null,null,null,null,null,null,null,null,null,null,null,null,null,null,null,null,null,null,null,null,null,0,"","","","","",""]
["Residential phone service, VOIP, and phone cards",null,null,null,null,null,null,null,null,null,null,null,null,null,null,null,null,null,null,null,null,null,null,null,null,null,null,null,null,null,null,null,null,null,null,null,null,null,null,null,null,null,null,null,null,0,"","","","","",""]
["Mean",357,259,314,335,380,496,null,null,null,null,null,null,null,null,null,null,null,null,null,null,null,null,null,null,null,null,null,null,null,null,null,null,null,null,null,null,null,null,null,null,null,null,null,null,0,"","","","","",""]
["Share",0.7,1.1000000000000001,1,0.8,0.6,0.5,null,null,null,null,null,null,null,null,null,null,null,null,null,null,null,null,null,null,null,null,null,null,null,null,null,null,null,null,null,null,null,null,null,null,null,null,null,null,0,"","","","","",""]
["SE",5.43,9.15,10.130000000000001,8.1300000000000008,9.7899999999999991,12.65,null,null,null,null,null,null,null,null,null,null,null,null,null,null,null,null,null,null,null,null,null,null,null,null,null,null,null,null,null,null,null,null,null,null,null,null,null,null,0,"","","","","",""]
["CV(%)",1.52,3.53,3.23,2.4300000000000002,2.57,2.5499999999999998,null,null,null,null,null,null,null,null,null,null,null,null,null,null,null,null,null,null,null,null,null,null,null,null,null,null,null,null,null,null,null,null,null,null,null,null,null,null,0,"","","","","",""]
["Cellular phone service",null,null,null,null,null,null,null,null,null,null,null,null,null,null,null,null,null,null,null,null,null,null,null,null,null,null,null,null,null,null,null,null,null,null,null,null,null,null,null,null,null,null,null,null,0,"","","","","",""]
["Mean",937,429,666,931,1197,1462,null,null,null,null,null,null,null,null,null,null,null,null,null,null,null,null,null,null,null,null,null,null,null,null,null,null,null,null,null,null,null,null,null,null,null,null,null,null,0,"","","","","",""]
["Share",1.8,1.9,2,2.1,2,1.4,null,null,null,null,null,null,null,null,null,null,null,null,null,null,null,null,null,null,null,null,null,null,null,null,null,null,null,null,null,null,null,null,null,null,null,null,null,null,0,"","","","","",""]
["SE",12.12,15.63,17.84,16.350000000000001,24.57,19.79,null,null,null,null,null,null,null,null,null,null,null,null,null,null,null,null,null,null,null,null,null,null,null,null,null,null,null,null,null,null,null,null,null,null,null,null,null,null,0,"","","","","",""]
["CV(%)",1.29,3.65,2.68,1.76,2.0499999999999998,1.35,null,null,null,null,null,null,null,null,null,null,null,null,null,null,null,null,null,null,null,null,null,null,null,null,null,null,null,null,null,null,null,null,null,null,null,null,null,null,0,"","","","","",""]
["Water and other public services",null,null,null,null,null,null,null,null,null,null,null,null,null,null,null,null,null,null,null,null,null,null,null,null,null,null,null,null,null,null,null,null,null,null,null,null,null,null,null,null,null,null,null,null,0,"","","","","",""]
["Mean",518,291,408,488,608,794,null,null,null,null,null,null,null,null,null,null,null,null,null,null,null,null,null,null,null,null,null,null,null,null,null,null,null,null,null,null,null,null,null,null,null,null,null,null,0,"","","","","",""]
["Share",1,1.3,1.2,1.1000000000000001,1,0.8,null,null,null,null,null,null,null,null,null,null,null,null,null,null,null,null,null,null,null,null,null,null,null,null,null,null,null,null,null,null,null,null,null,null,null,null,null,null,0,"","","","","",""]
["SE",11.7,14.61,12.78,15.64,15.61,23.04,null,null,null,null,null,null,null,null,null,null,null,null,null,null,null,null,null,null,null,null,null,null,null,null,null,null,null,null,null,null,null,null,null,null,null,null,null,null,0,"","","","","",""]
["CV(%)",2.2599999999999998,5.01,3.13,3.21,2.57,2.9,null,null,null,null,null,null,null,null,null,null,null,null,null,null,null,null,null,null,null,null,null,null,null,null,null,null,null,null,null,null,null,null,null,null,null,null,null,null,0,"","","","","",""]
["Household operations",null,null,null,null,null,null,null,null,null,null,null,null,null,null,null,null,null,null,null,null,null,null,null,null,null,null,null,null,null,null,null,null,null,null,null,null,null,null,null,null,null,null,null,null,0,"","","","","",""]
["Mean",1115,437,651,800,1169,2520,null,null,null,null,null,null,null,null,null,null,null,null,null,null,null,null,null,null,null,null,null,null,null,null,null,null,null,null,null,null,null,null,null,null,null,null,null,null,0,"","","","","",""]
["Share",2.1,1.9,2,1.8,2,2.5,null,null,null,null,null,null,null,null,null,null,null,null,null,null,null,null,null,null,null,null,null,null,null,null,null,null,null,null,null,null,null,null,null,null,null,null,null,null,0,"","","","","",""]
["SE",30.97,44.01,31.37,34.86,45.47,102.96,null,null,null,null,null,null,null,null,null,null,null,null,null,null,null,null,null,null,null,null,null,null,null,null,null,null,null,null,null,null,null,null,null,null,null,null,null,null,0,"","","","","",""]
["CV(%)",2.78,10.07,4.82,4.3600000000000003,3.89,4.08,null,null,null,null,null,null,null,null,null,null,null,null,null,null,null,null,null,null,null,null,null,null,null,null,null,null,null,null,null,null,null,null,null,null,null,null,null,null,0,"","","","","",""]
["Personal services",null,null,null,null,null,null,null,null,null,null,null,null,null,null,null,null,null,null,null,null,null,null,null,null,null,null,null,null,null,null,null,null,null,null,null,null,null,null,null,null,null,null,null,null,0,"","","","","",""]
["Mean",333,95,139,178,342,914,null,null,null,null,null,null,null,null,null,null,null,null,null,null,null,null,null,null,null,null,null,null,null,null,null,null,null,null,null,null,null,null,null,null,null,null,null,null,0,"","","","","",""]
["Share",0.6,0.4,0.4,0.4,0.6,0.9,null,null,null,null,null,null,null,null,null,null,null,null,null,null,null,null,null,null,null,null,null,null,null,null,null,null,null,null,null,null,null,null,null,null,null,null,null,null,0,"","","","","",""]
["SE",20.47,35.31,25.07,23.23,31.27,80.819999999999993,null,null,null,null,null,null,null,null,null,null,null,null,null,null,null,null,null,null,null,null,null,null,null,null,null,null,null,null,null,null,null,null,null,null,null,null,null,null,0,"","","","","",""]
["CV(%)",6.14,37.270000000000003,18.02,13.04,9.14,8.84,null,null,null,null,null,null,null,null,null,null,null,null,null,null,null,null,null,null,null,null,null,null,null,null,null,null,null,null,null,null,null,null,null,null,null,null,null,null,0,"","","","","",""]
["Other household expenses",null,null,null,null,null,null,null,null,null,null,null,null,null,null,null,null,null,null,null,null,null,null,null,null,null,null,null,null,null,null,null,null,null,null,null,null,null,null,null,null,null,null,null,null,0,"","","","","",""]
["Mean",782,342,512,622,827,1607,null,null,null,null,null,null,null,null,null,null,null,null,null,null,null,null,null,null,null,null,null,null,null,null,null,null,null,null,null,null,null,null,null,null,null,null,null,null,0,"","","","","",""]
["Share",1.5,1.5,1.6,1.4,1.4,1.6,null,null,null,null,null,null,null,null,null,null,null,null,null,null,null,null,null,null,null,null,null,null,null,null,null,null,null,null,null,null,null,null,null,null,null,null,null,null,0,"","","","","",""]
["SE",16.649999999999999,18.53,19.600000000000001,25.41,27.12,46.45,null,null,null,null,null,null,null,null,null,null,null,null,null,null,null,null,null,null,null,null,null,null,null,null,null,null,null,null,null,null,null,null,null,null,null,null,null,null,0,"","","","","",""]
["CV(%)",2.13,5.41,3.83,4.08,3.28,2.89,null,null,null,null,null,null,null,null,null,null,null,null,null,null,null,null,null,null,null,null,null,null,null,null,null,null,null,null,null,null,null,null,null,null,null,null,null,null,0,"","","","","",""]
["Housekeeping supplies",null,null,null,null,null,null,null,null,null,null,null,null,null,null,null,null,null,null,null,null,null,null,null,null,null,null,null,null,null,null,null,null,null,null,null,null,null,null,null,null,null,null,null,null,0,"","","","","",""]
["Mean",643,318,460,548,739,1148,null,null,null,null,null,null,null,null,null,null,null,null,null,null,null,null,null,null,null,null,null,null,null,null,null,null,null,null,null,null,null,null,null,null,null,null,null,null,0,"","","","","",""]
["Share",1.2,1.4,1.4,1.3,1.2,1.1000000000000001,null,null,null,null,null,null,null,null,null,null,null,null,null,null,null,null,null,null,null,null,null,null,null,null,null,null,null,null,null,null,null,null,null,null,null,null,null,null,0,"","","","","",""]
["SE",15.25,12.19,26.62,29.66,36.33,52.42,null,null,null,null,null,null,null,null,null,null,null,null,null,null,null,null,null,null,null,null,null,null,null,null,null,null,null,null,null,null,null,null,null,null,null,null,null,null,0,"","","","","",""]
["CV(%)",2.37,3.83,5.78,5.41,4.92,4.5599999999999996,null,null,null,null,null,null,null,null,null,null,null,null,null,null,null,null,null,null,null,null,null,null,null,null,null,null,null,null,null,null,null,null,null,null,null,null,null,null,0,"","","","","",""]
["Laundry and cleaning supplies",null,null,null,null,null,null,null,null,null,null,null,null,null,null,null,null,null,null,null,null,null,null,null,null,null,null,null,null,null,null,null,null,null,null,null,null,null,null,null,null,null,null,null,null,0,"","","","","",""]
["Mean",151,88,123,134,175,236,null,null,null,null,null,null,null,null,null,null,null,null,null,null,null,null,null,null,null,null,null,null,null,null,null,null,null,null,null,null,null,null,null,null,null,null,null,null,0,"","","","","",""]
["Share",0.3,0.4,0.4,0.3,0.3,0.2,null,null,null,null,null,null,null,null,null,null,null,null,null,null,null,null,null,null,null,null,null,null,null,null,null,null,null,null,null,null,null,null,null,null,null,null,null,null,0,"","","","","",""]
["SE",4.57,5.05,9.3000000000000007,11.25,9.5299999999999994,12.82,null,null,null,null,null,null,null,null,null,null,null,null,null,null,null,null,null,null,null,null,null,null,null,null,null,null,null,null,null,null,null,null,null,null,null,null,null,null,0,"","","","","",""]
["CV(%)",3.02,5.7,7.57,8.4,5.44,5.44,null,null,null,null,null,null,null,null,null,null,null,null,null,null,null,null,null,null,null,null,null,null,null,null,null,null,null,null,null,null,null,null,null,null,null,null,null,null,0,"","","","","",""]
["Other household products",null,null,null,null,null,null,null,null,null,null,null,null,null,null,null,null,null,null,null,null,null,null,null,null,null,null,null,null,null,null,null,null,null,null,null,null,null,null,null,null,null,null,null,null,0,"","","","","",""]
["Mean",360,161,241,307,416,675,null,null,null,null,null,null,null,null,null,null,null,null,null,null,null,null,null,null,null,null,null,null,null,null,null,null,null,null,null,null,null,null,null,null,null,null,null,null,0,"","","","","",""]
["Share",0.7,0.7,0.7,0.7,0.7,0.7,null,null,null,null,null,null,null,null,null,null,null,null,null,null,null,null,null,null,null,null,null,null,null,null,null,null,null,null,null,null,null,null,null,null,null,null,null,null,0,"","","","","",""]
["SE",13.01,7.21,16.71,22.16,27.43,47.19,null,null,null,null,null,null,null,null,null,null,null,null,null,null,null,null,null,null,null,null,null,null,null,null,null,null,null,null,null,null,null,null,null,null,null,null,null,null,0,"","","","","",""]
["CV(%)",3.61,4.47,6.92,7.21,6.59,6.99,null,null,null,null,null,null,null,null,null,null,null,null,null,null,null,null,null,null,null,null,null,null,null,null,null,null,null,null,null,null,null,null,null,null,null,null,null,null,0,"","","","","",""]
["Postage and stationery",null,null,null,null,null,null,null,null,null,null,null,null,null,null,null,null,null,null,null,null,null,null,null,null,null,null,null,null,null,null,null,null,null,null,null,null,null,null,null,null,null,null,null,null,0,"","","","","",""]
["Mean",131,68,96,107,147,238,null,null,null,null,null,null,null,null,null,null,null,null,null,null,null,null,null,null,null,null,null,null,null,null,null,null,null,null,null,null,null,null,null,null,null,null,null,null,0,"","","","","",""]
["Share",0.3,0.3,0.3,0.2,0.2,0.2,null,null,null,null,null,null,null,null,null,null,null,null,null,null,null,null,null,null,null,null,null,null,null,null,null,null,null,null,null,null,null,null,null,null,null,null,null,null,0,"","","","","",""]
["SE",5.22,8.4700000000000006,11.18,8.76,11.28,16.940000000000001,null,null,null,null,null,null,null,null,null,null,null,null,null,null,null,null,null,null,null,null,null,null,null,null,null,null,null,null,null,null,null,null,null,null,null,null,null,null,0,"","","","","",""]
["CV(%)",3.98,12.37,11.65,8.1999999999999993,7.66,7.12,null,null,null,null,null,null,null,null,null,null,null,null,null,null,null,null,null,null,null,null,null,null,null,null,null,null,null,null,null,null,null,null,null,null,null,null,null,null,0,"","","","","",""]
["Household furnishings and equipment",null,null,null,null,null,null,null,null,null,null,null,null,null,null,null,null,null,null,null,null,null,null,null,null,null,null,null,null,null,null,null,null,null,null,null,null,null,null,null,null,null,null,null,null,{"$f":"+J317","v":0},{"$f":"IF($I317=1,B318,\"\")","v":""},{"$f":"IF($I317=1,C318,\"\")","v":""},{"$f":"IF($I317=1,D318,\"\")","v":""},{"$f":"IF($I317=1,E318,\"\")","v":""},{"$f":"IF($I317=1,F318,\"\")","v":""},{"$f":"IF($I317=1,G318,\"\")","v":""}]
["Mean",1484,574,888,1219,1690,3049,null,null,null,null,null,null,null,null,null,null,null,null,null,null,null,null,null,null,null,null,null,null,null,null,null,null,null,null,null,null,null,null,null,null,null,null,null,null,0,"","","","","",""]
["Share",2.9,2.5,2.7,2.8,2.9,3,null,null,null,null,null,null,null,null,null,null,null,null,null,null,null,null,null,null,null,null,null,null,null,null,null,null,null,null,null,null,null,null,null,null,null,null,null,null,0,"","","","","",""]
["SE",42.1,38.979999999999997,55.63,62.52,86.46,135.94,null,null,null,null,null,null,null,null,null,null,null,null,null,null,null,null,null,null,null,null,null,null,null,null,null,null,null,null,null,null,null,null,null,null,null,null,null,null,0,"","","","","",""]
["CV(%)",2.84,6.79,6.26,5.13,5.1100000000000003,4.46,null,null,null,null,null,null,null,null,null,null,null,null,null,null,null,null,null,null,null,null,null,null,null,null,null,null,null,null,null,null,null,null,null,null,null,null,null,null,0,"","","","","",""]
["Household textiles",null,null,null,null,null,null,null,null,null,null,null,null,null,null,null,null,null,null,null,null,null,null,null,null,null,null,null,null,null,null,null,null,null,null,null,null,null,null,null,null,null,null,null,null,0,"","","","","",""]
["Mean",91,49,61,74,89,181,null,null,null,null,null,null,null,null,null,null,null,null,null,null,null,null,null,null,null,null,null,null,null,null,null,null,null,null,null,null,null,null,null,null,null,null,null,null,0,"","","","","",""]
["Share",0.2,0.2,0.2,0.2,0.2,0.2,null,null,null,null,null,null,null,null,null,null,null,null,null,null,null,null,null,null,null,null,null,null,null,null,null,null,null,null,null,null,null,null,null,null,null,null,null,null,0,"","","","","",""]
["SE",5.22,7.07,9.3800000000000008,10.28,12.39,20.59,null,null,null,null,null,null,null,null,null,null,null,null,null,null,null,null,null,null,null,null,null,null,null,null,null,null,null,null,null,null,null,null,null,null,null,null,null,null,0,"","","","","",""]
["CV(%)",5.73,14.42,15.31,13.84,13.85,11.38,null,null,null,null,null,null,null,null,null,null,null,null,null,null,null,null,null,null,null,null,null,null,null,null,null,null,null,null,null,null,null,null,null,null,null,null,null,null,0,"","","","","",""]
["Furniture",null,null,null,null,null,null,null,null,null,null,null,null,null,null,null,null,null,null,null,null,null,null,null,null,null,null,null,null,null,null,null,null,null,null,null,null,null,null,null,null,null,null,null,null,0,"","","","","",""]
["Mean",362,137,188,283,367,834,null,null,null,null,null,null,null,null,null,null,null,null,null,null,null,null,null,null,null,null,null,null,null,null,null,null,null,null,null,null,null,null,null,null,null,null,null,null,0,"","","","","",""]
["Share",0.7,0.6,0.6,0.6,0.6,0.8,null,null,null,null,null,null,null,null,null,null,null,null,null,null,null,null,null,null,null,null,null,null,null,null,null,null,null,null,null,null,null,null,null,null,null,null,null,null,0,"","","","","",""]
["SE",18.399999999999999,15.97,19.66,20.23,26.36,64.790000000000006,null,null,null,null,null,null,null,null,null,null,null,null,null,null,null,null,null,null,null,null,null,null,null,null,null,null,null,null,null,null,null,null,null,null,null,null,null,null,0,"","","","","",""]
["CV(%)",5.09,11.67,10.48,7.14,7.19,7.77,null,null,null,null,null,null,null,null,null,null,null,null,null,null,null,null,null,null,null,null,null,null,null,null,null,null,null,null,null,null,null,null,null,null,null,null,null,null,0,"","","","","",""]
["Floor coverings",null,null,null,null,null,null,null,null,null,null,null,null,null,null,null,null,null,null,null,null,null,null,null,null,null,null,null,null,null,null,null,null,null,null,null,null,null,null,null,null,null,null,null,null,0,"","","","","",""]
["Mean",18,6,7,13,15,51,null,null,null,null,null,null,null,null,null,null,null,null,null,null,null,null,null,null,null,null,null,null,null,null,null,null,null,null,null,null,null,null,null,null,null,null,null,null,0,"","","","","",""]
["Share","a/","a/","a/","a/","a/",0.1,null,null,null,null,null,null,null,null,null,null,null,null,null,null,null,null,null,null,null,null,null,null,null,null,null,null,null,null,null,null,null,null,null,null,null,null,null,null,0,"","","","","",""]
["SE",1.96,3.1,1.49,3.53,2.0099999999999998,8.8000000000000007,null,null,null,null,null,null,null,null,null,null,null,null,null,null,null,null,null,null,null,null,null,null,null,null,null,null,null,null,null,null,null,null,null,null,null,null,null,null,0,"","","","","",""]
["CV(%)",10.7,48.74,20.170000000000002,27.92,13.8,17.38,null,null,null,null,null,null,null,null,null,null,null,null,null,null,null,null,null,null,null,null,null,null,null,null,null,null,null,null,null,null,null,null,null,null,null,null,null,null,0,"","","","","",""]
["Major appliances",null,null,null,null,null,null,null,null,null,null,null,null,null,null,null,null,null,null,null,null,null,null,null,null,null,null,null,null,null,null,null,null,null,null,null,null,null,null,null,null,null,null,null,null,0,"","","","","",""]
["Mean",208,78,119,152,256,436,null,null,null,null,null,null,null,null,null,null,null,null,null,null,null,null,null,null,null,null,null,null,null,null,null,null,null,null,null,null,null,null,null,null,null,null,null,null,0,"","","","","",""]
["Share",0.4,0.3,0.4,0.3,0.4,0.4,null,null,null,null,null,null,null,null,null,null,null,null,null,null,null,null,null,null,null,null,null,null,null,null,null,null,null,null,null,null,null,null,null,null,null,null,null,null,0,"","","","","",""]
["SE",7.99,9.99,12.15,13.12,21.94,32.119999999999997,null,null,null,null,null,null,null,null,null,null,null,null,null,null,null,null,null,null,null,null,null,null,null,null,null,null,null,null,null,null,null,null,null,null,null,null,null,null,0,"","","","","",""]
["CV(%)",3.83,12.74,10.220000000000001,8.61,8.58,7.36,null,null,null,null,null,null,null,null,null,null,null,null,null,null,null,null,null,null,null,null,null,null,null,null,null,null,null,null,null,null,null,null,null,null,null,null,null,null,0,"","","","","",""]
["Small appliances, miscellaneous housewares",null,null,null,null,null,null,null,null,null,null,null,null,null,null,null,null,null,null,null,null,null,null,null,null,null,null,null,null,null,null,null,null,null,null,null,null,null,null,null,null,null,null,null,null,0,"","","","","",""]
["Mean",104,50,71,83,124,191,null,null,null,null,null,null,null,null,null,null,null,null,null,null,null,null,null,null,null,null,null,null,null,null,null,null,null,null,null,null,null,null,null,null,null,null,null,null,0,"","","","","",""]
["Share",0.2,0.2,0.2,0.2,0.2,0.2,null,null,null,null,null,null,null,null,null,null,null,null,null,null,null,null,null,null,null,null,null,null,null,null,null,null,null,null,null,null,null,null,null,null,null,null,null,null,0,"","","","","",""]
["SE",5.89,5.97,11.12,6.18,14.31,11.63,null,null,null,null,null,null,null,null,null,null,null,null,null,null,null,null,null,null,null,null,null,null,null,null,null,null,null,null,null,null,null,null,null,null,null,null,null,null,0,"","","","","",""]
["CV(%)",5.68,11.98,15.71,7.44,11.57,6.08,null,null,null,null,null,null,null,null,null,null,null,null,null,null,null,null,null,null,null,null,null,null,null,null,null,null,null,null,null,null,null,null,null,null,null,null,null,null,0,"","","","","",""]
["Miscellaneous household equipment",null,null,null,null,null,null,null,null,null,null,null,null,null,null,null,null,null,null,null,null,null,null,null,null,null,null,null,null,null,null,null,null,null,null,null,null,null,null,null,null,null,null,null,null,0,"","","","","",""]
["Mean",701,253,442,613,840,1355,null,null,null,null,null,null,null,null,null,null,null,null,null,null,null,null,null,null,null,null,null,null,null,null,null,null,null,null,null,null,null,null,null,null,null,null,null,null,0,"","","","","",""]
["Share",1.3,1.1000000000000001,1.3,1.4,1.4,1.3,null,null,null,null,null,null,null,null,null,null,null,null,null,null,null,null,null,null,null,null,null,null,null,null,null,null,null,null,null,null,null,null,null,null,null,null,null,null,0,"","","","","",""]
["SE",28.41,27.37,34.76,51.94,67.37,78.78,null,null,null,null,null,null,null,null,null,null,null,null,null,null,null,null,null,null,null,null,null,null,null,null,null,null,null,null,null,null,null,null,null,null,null,null,null,null,0,"","","","","",""]
["CV(%)",4.05,10.8,7.86,8.4700000000000006,8.02,5.81,null,null,null,null,null,null,null,null,null,null,null,null,null,null,null,null,null,null,null,null,null,null,null,null,null,null,null,null,null,null,null,null,null,null,null,null,null,null,0,"","","","","",""]
["",null,null,null,null,null,null,null,null,null,null,null,null,null,null,null,null,null,null,null,null,null,null,null,null,null,null,null,null,null,null,null,null,null,null,null,null,null,null,null,null,null,null,null,null,0,"","","","","",""]
["Apparel and services",null,null,null,null,null,null,null,null,null,null,null,null,null,null,null,null,null,null,null,null,null,null,null,null,null,null,null,null,null,null,null,null,null,null,null,null,null,null,null,null,null,null,null,null,0,"","","","","",""]
["Mean",1674,732,1045,1345,1908,3339,null,null,null,null,null,null,null,null,null,null,null,null,null,null,null,null,null,null,null,null,null,null,null,null,null,null,null,null,null,null,null,null,null,null,null,null,null,null,0,"","","","","",""]
["Share",3.2,3.2,3.2,3.1,3.2,3.3,null,null,null,null,null,null,null,null,null,null,null,null,null,null,null,null,null,null,null,null,null,null,null,null,null,null,null,null,null,null,null,null,null,null,null,null,null,null,0,"","","","","",""]
["SE",46.86,49.81,78.62,79.709999999999994,106.11,183.5,null,null,null,null,null,null,null,null,null,null,null,null,null,null,null,null,null,null,null,null,null,null,null,null,null,null,null,null,null,null,null,null,null,null,null,null,null,null,0,"","","","","",""]
["CV(%)",2.8,6.81,7.52,5.93,5.56,5.5,null,null,null,null,null,null,null,null,null,null,null,null,null,null,null,null,null,null,null,null,null,null,null,null,null,null,null,null,null,null,null,null,null,null,null,null,null,null,0,"","","","","",""]
["Men and boys",null,null,null,null,null,null,null,null,null,null,null,null,null,null,null,null,null,null,null,null,null,null,null,null,null,null,null,null,null,null,null,null,null,null,null,null,null,null,null,null,null,null,null,null,0,"","","","","",""]
["Mean",396,173,232,329,467,780,null,null,null,null,null,null,null,null,null,null,null,null,null,null,null,null,null,null,null,null,null,null,null,null,null,null,null,null,null,null,null,null,null,null,null,null,null,null,0,"","","","","",""]
["Share",0.8,0.8,0.7,0.8,0.8,0.8,null,null,null,null,null,null,null,null,null,null,null,null,null,null,null,null,null,null,null,null,null,null,null,null,null,null,null,null,null,null,null,null,null,null,null,null,null,null,0,"","","","","",""]
["SE",15.99,18.8,26.87,32.369999999999997,40.01,55.96,null,null,null,null,null,null,null,null,null,null,null,null,null,null,null,null,null,null,null,null,null,null,null,null,null,null,null,null,null,null,null,null,null,null,null,null,null,null,0,"","","","","",""]
["CV(%)",4.04,10.86,11.6,9.85,8.57,7.18,null,null,null,null,null,null,null,null,null,null,null,null,null,null,null,null,null,null,null,null,null,null,null,null,null,null,null,null,null,null,null,null,null,null,null,null,null,null,0,"","","","","",""]
["Men, 16 and over",null,null,null,null,null,null,null,null,null,null,null,null,null,null,null,null,null,null,null,null,null,null,null,null,null,null,null,null,null,null,null,null,null,null,null,null,null,null,null,null,null,null,null,null,0,"","","","","",""]
["Mean",307,126,167,257,349,634,null,null,null,null,null,null,null,null,null,null,null,null,null,null,null,null,null,null,null,null,null,null,null,null,null,null,null,null,null,null,null,null,null,null,null,null,null,null,0,"","","","","",""]
["Share",0.6,0.6,0.5,0.6,0.6,0.6,null,null,null,null,null,null,null,null,null,null,null,null,null,null,null,null,null,null,null,null,null,null,null,null,null,null,null,null,null,null,null,null,null,null,null,null,null,null,0,"","","","","",""]
["SE",13.9,16.78,23.91,30.8,29.53,51.7,null,null,null,null,null,null,null,null,null,null,null,null,null,null,null,null,null,null,null,null,null,null,null,null,null,null,null,null,null,null,null,null,null,null,null,null,null,null,0,"","","","","",""]
["CV(%)",4.53,13.27,14.3,11.99,8.4600000000000009,8.15,null,null,null,null,null,null,null,null,null,null,null,null,null,null,null,null,null,null,null,null,null,null,null,null,null,null,null,null,null,null,null,null,null,null,null,null,null,null,0,"","","","","",""]
["Boys, 2 to 15",null,null,null,null,null,null,null,null,null,null,null,null,null,null,null,null,null,null,null,null,null,null,null,null,null,null,null,null,null,null,null,null,null,null,null,null,null,null,null,null,null,null,null,null,0,"","","","","",""]
["Mean",89,47,64,72,118,146,null,null,null,null,null,null,null,null,null,null,null,null,null,null,null,null,null,null,null,null,null,null,null,null,null,null,null,null,null,null,null,null,null,null,null,null,null,null,0,"","","","","",""]
["Share",0.2,0.2,0.2,0.2,0.2,0.1,null,null,null,null,null,null,null,null,null,null,null,null,null,null,null,null,null,null,null,null,null,null,null,null,null,null,null,null,null,null,null,null,null,null,null,null,null,null,0,"","","","","",""]
["SE",6.86,8.73,9.09,11.17,26.23,14.25,null,null,null,null,null,null,null,null,null,null,null,null,null,null,null,null,null,null,null,null,null,null,null,null,null,null,null,null,null,null,null,null,null,null,null,null,null,null,0,"","","","","",""]
["CV(%)",7.68,18.72,14.12,15.54,22.19,9.7899999999999991,null,null,null,null,null,null,null,null,null,null,null,null,null,null,null,null,null,null,null,null,null,null,null,null,null,null,null,null,null,null,null,null,null,null,null,null,null,null,0,"","","","","",""]
["Women and girls",null,null,null,null,null,null,null,null,null,null,null,null,null,null,null,null,null,null,null,null,null,null,null,null,null,null,null,null,null,null,null,null,null,null,null,null,null,null,null,null,null,null,null,null,0,"","","","","",""]
["Mean",633,272,390,515,742,1243,null,null,null,null,null,null,null,null,null,null,null,null,null,null,null,null,null,null,null,null,null,null,null,null,null,null,null,null,null,null,null,null,null,null,null,null,null,null,0,"","","","","",""]
["Share",1.2,1.2,1.2,1.2,1.3,1.2,null,null,null,null,null,null,null,null,null,null,null,null,null,null,null,null,null,null,null,null,null,null,null,null,null,null,null,null,null,null,null,null,null,null,null,null,null,null,0,"","","","","",""]
["SE",23.55,31.03,35.840000000000003,45.6,55.43,77.94,null,null,null,null,null,null,null,null,null,null,null,null,null,null,null,null,null,null,null,null,null,null,null,null,null,null,null,null,null,null,null,null,null,null,null,null,null,null,0,"","","","","",""]
["CV(%)",3.72,11.41,9.18,8.85,7.47,6.27,null,null,null,null,null,null,null,null,null,null,null,null,null,null,null,null,null,null,null,null,null,null,null,null,null,null,null,null,null,null,null,null,null,null,null,null,null,null,0,"","","","","",""]
["Women, 16 and over",null,null,null,null,null,null,null,null,null,null,null,null,null,null,null,null,null,null,null,null,null,null,null,null,null,null,null,null,null,null,null,null,null,null,null,null,null,null,null,null,null,null,null,null,0,"","","","","",""]
["Mean",528,233,307,431,614,1053,null,null,null,null,null,null,null,null,null,null,null,null,null,null,null,null,null,null,null,null,null,null,null,null,null,null,null,null,null,null,null,null,null,null,null,null,null,null,0,"","","","","",""]
["Share",1,1,0.9,1,1,1,null,null,null,null,null,null,null,null,null,null,null,null,null,null,null,null,null,null,null,null,null,null,null,null,null,null,null,null,null,null,null,null,null,null,null,null,null,null,0,"","","","","",""]
["SE",21.68,30.1,29.48,42.96,50.72,71.319999999999993,null,null,null,null,null,null,null,null,null,null,null,null,null,null,null,null,null,null,null,null,null,null,null,null,null,null,null,null,null,null,null,null,null,null,null,null,null,null,{"$f":"+J381","v":0},{"$f":"IF($I381=1,B382,\"\")","v":""},{"$f":"IF($I381=1,C382,\"\")","v":""},{"$f":"IF($I381=1,D382,\"\")","v":""},{"$f":"IF($I381=1,E382,\"\")","v":""},{"$f":"IF($I381=1,F382,\"\")","v":""},{"$f":"IF($I381=1,G382,\"\")","v":""}]
["CV(%)",4.1100000000000003,12.93,9.6,9.98,8.26,6.77,null,null,null,null,null,null,null,null,null,null,null,null,null,null,null,null,null,null,null,null,null,null,null,null,null,null,null,null,null,null,null,null,null,null,null,null,null,null,0,"","","","","",""]
["Girls, 2 to 15",null,null,null,null,null,null,null,null,null,null,null,null,null,null,null,null,null,null,null,null,null,null,null,null,null,null,null,null,null,null,null,null,null,null,null,null,null,null,null,null,null,null,null,null,0,"","","","","",""]
["Mean",105,39,83,85,129,189,null,null,null,null,null,null,null,null,null,null,null,null,null,null,null,null,null,null,null,null,null,null,null,null,null,null,null,null,null,null,null,null,null,null,null,null,null,null,0,"","","","","",""]
["Share",0.2,0.2,0.3,0.2,0.2,0.2,null,null,null,null,null,null,null,null,null,null,null,null,null,null,null,null,null,null,null,null,null,null,null,null,null,null,null,null,null,null,null,null,null,null,null,null,null,null,0,"","","","","",""]
["SE",5.59,5.35,15.69,9.23,14.74,19.61,null,null,null,null,null,null,null,null,null,null,null,null,null,null,null,null,null,null,null,null,null,null,null,null,null,null,null,null,null,null,null,null,null,null,null,null,null,null,0,"","","","","",""]
["CV(%)",5.32,13.67,18.88,10.91,11.46,10.35,null,null,null,null,null,null,null,null,null,null,null,null,null,null,null,null,null,null,null,null,null,null,null,null,null,null,null,null,null,null,null,null,null,null,null,null,null,null,0,"","","","","",""]
["Children under 2",null,null,null,null,null,null,null,null,null,null,null,null,null,null,null,null,null,null,null,null,null,null,null,null,null,null,null,null,null,null,null,null,null,null,null,null,null,null,null,null,null,null,null,null,0,"","","","","",""]
["Mean",74,41,63,69,92,105,null,null,null,null,null,null,null,null,null,null,null,null,null,null,null,null,null,null,null,null,null,null,null,null,null,null,null,null,null,null,null,null,null,null,null,null,null,null,0,"","","","","",""]
["Share",0.1,0.2,0.2,0.2,0.2,0.1,null,null,null,null,null,null,null,null,null,null,null,null,null,null,null,null,null,null,null,null,null,null,null,null,null,null,null,null,null,null,null,null,null,null,null,null,null,null,0,"","","","","",""]
["SE",5.01,7.47,12.1,8.4,14.88,12.54,null,null,null,null,null,null,null,null,null,null,null,null,null,null,null,null,null,null,null,null,null,null,null,null,null,null,null,null,null,null,null,null,null,null,null,null,null,null,0,"","","","","",""]
["CV(%)",6.77,18.38,19.079999999999998,12.16,16.170000000000002,11.93,null,null,null,null,null,null,null,null,null,null,null,null,null,null,null,null,null,null,null,null,null,null,null,null,null,null,null,null,null,null,null,null,null,null,null,null,null,null,0,"","","","","",""]
["Footwear",null,null,null,null,null,null,null,null,null,null,null,null,null,null,null,null,null,null,null,null,null,null,null,null,null,null,null,null,null,null,null,null,null,null,null,null,null,null,null,null,null,null,null,null,0,"","","","","",""]
["Mean",333,146,244,253,390,632,null,null,null,null,null,null,null,null,null,null,null,null,null,null,null,null,null,null,null,null,null,null,null,null,null,null,null,null,null,null,null,null,null,null,null,null,null,null,0,"","","","","",""]
["Share",0.6,0.6,0.7,0.6,0.7,0.6,null,null,null,null,null,null,null,null,null,null,null,null,null,null,null,null,null,null,null,null,null,null,null,null,null,null,null,null,null,null,null,null,null,null,null,null,null,null,0,"","","","","",""]
["SE",16,18.95,43.56,26.1,36.14,42.5,null,null,null,null,null,null,null,null,null,null,null,null,null,null,null,null,null,null,null,null,null,null,null,null,null,null,null,null,null,null,null,null,null,null,null,null,null,null,0,"","","","","",""]
["CV(%)",4.8,12.94,17.87,10.32,9.26,6.73,null,null,null,null,null,null,null,null,null,null,null,null,null,null,null,null,null,null,null,null,null,null,null,null,null,null,null,null,null,null,null,null,null,null,null,null,null,null,0,"","","","","",""]
["Other apparel products and services",null,null,null,null,null,null,null,null,null,null,null,null,null,null,null,null,null,null,null,null,null,null,null,null,null,null,null,null,null,null,null,null,null,null,null,null,null,null,null,null,null,null,null,null,0,"","","","","",""]
["Mean",238,100,116,179,216,579,null,null,null,null,null,null,null,null,null,null,null,null,null,null,null,null,null,null,null,null,null,null,null,null,null,null,null,null,null,null,null,null,null,null,null,null,null,null,0,"","","","","",""]
["Share",0.5,0.4,0.4,0.4,0.4,0.6,null,null,null,null,null,null,null,null,null,null,null,null,null,null,null,null,null,null,null,null,null,null,null,null,null,null,null,null,null,null,null,null,null,null,null,null,null,null,0,"","","","","",""]
["SE",21.61,9.61,9.8800000000000008,17.21,23.22,112.74,null,null,null,null,null,null,null,null,null,null,null,null,null,null,null,null,null,null,null,null,null,null,null,null,null,null,null,null,null,null,null,null,null,null,null,null,null,null,0,"","","","","",""]
["CV(%)",9.09,9.64,8.5299999999999994,9.6199999999999992,10.73,19.47,null,null,null,null,null,null,null,null,null,null,null,null,null,null,null,null,null,null,null,null,null,null,null,null,null,null,null,null,null,null,null,null,null,null,null,null,null,null,0,"","","","","",""]
["",null,null,null,null,null,null,null,null,null,null,null,null,null,null,null,null,null,null,null,null,null,null,null,null,null,null,null,null,null,null,null,null,null,null,null,null,null,null,null,null,null,null,null,null,0,"","","","","",""]
["Transportation",null,null,null,null,null,null,null,null,null,null,null,null,null,null,null,null,null,null,null,null,null,null,null,null,null,null,null,null,null,null,null,null,null,null,null,null,null,null,null,null,null,null,null,null,0,"","","","","",""]
["Mean",9104,3365,5710,8477,10940,17033,null,null,null,null,null,null,null,null,null,null,null,null,null,null,null,null,null,null,null,null,null,null,null,null,null,null,null,null,null,null,null,null,null,null,null,null,null,null,0,"","","","","",""]
["Share",17.5,14.6,17.399999999999999,19.399999999999999,18.5,16.899999999999999,null,null,null,null,null,null,null,null,null,null,null,null,null,null,null,null,null,null,null,null,null,null,null,null,null,null,null,null,null,null,null,null,null,null,null,null,null,null,0,"","","","","",""]
["SE",163,177.08,235.5,250.47,341.87,423.83,null,null,null,null,null,null,null,null,null,null,null,null,null,null,null,null,null,null,null,null,null,null,null,null,null,null,null,null,null,null,null,null,null,null,null,null,null,null,0,"","","","","",""]
["CV(%)",1.79,5.26,4.12,2.95,3.12,2.4900000000000002,null,null,null,null,null,null,null,null,null,null,null,null,null,null,null,null,null,null,null,null,null,null,null,null,null,null,null,null,null,null,null,null,null,null,null,null,null,null,0,"","","","","",""]
["Vehicle purchases (net outlay)",null,null,null,null,null,null,null,null,null,null,null,null,null,null,null,null,null,null,null,null,null,null,null,null,null,null,null,null,null,null,null,null,null,null,null,null,null,null,null,null,null,null,null,null,0,"","","","","",""]
["Mean",3353,968,1895,3174,3826,6907,null,null,null,null,null,null,null,null,null,null,null,null,null,null,null,null,null,null,null,null,null,null,null,null,null,null,null,null,null,null,null,null,null,null,null,null,null,null,0,"","","","","",""]
["Share",6.5,4.2,5.8,7.3,6.5,6.8,null,null,null,null,null,null,null,null,null,null,null,null,null,null,null,null,null,null,null,null,null,null,null,null,null,null,null,null,null,null,null,null,null,null,null,null,null,null,0,"","","","","",""]
["SE",148.47,140.72,193.46,250.82,306.76,401.25,null,null,null,null,null,null,null,null,null,null,null,null,null,null,null,null,null,null,null,null,null,null,null,null,null,null,null,null,null,null,null,null,null,null,null,null,null,null,0,"","","","","",""]
["CV(%)",4.43,14.54,10.210000000000001,7.9,8.02,5.81,null,null,null,null,null,null,null,null,null,null,null,null,null,null,null,null,null,null,null,null,null,null,null,null,null,null,null,null,null,null,null,null,null,null,null,null,null,null,0,"","","","","",""]
["Cars and trucks, new",null,null,null,null,null,null,null,null,null,null,null,null,null,null,null,null,null,null,null,null,null,null,null,null,null,null,null,null,null,null,null,null,null,null,null,null,null,null,null,null,null,null,null,null,0,"","","","","",""]
["Mean",1605,282,547,1343,1593,4268,null,null,null,null,null,null,null,null,null,null,null,null,null,null,null,null,null,null,null,null,null,null,null,null,null,null,null,null,null,null,null,null,null,null,null,null,null,null,0,"","","","","",""]
["Share",3.1,1.2,1.7,3.1,2.7,4.2,null,null,null,null,null,null,null,null,null,null,null,null,null,null,null,null,null,null,null,null,null,null,null,null,null,null,null,null,null,null,null,null,null,null,null,null,null,null,0,"","","","","",""]
["SE",115.79,93.38,117.51,180.66,168.56,354.17,null,null,null,null,null,null,null,null,null,null,null,null,null,null,null,null,null,null,null,null,null,null,null,null,null,null,null,null,null,null,null,null,null,null,null,null,null,null,0,"","","","","",""]
["CV(%)",7.21,33.11,21.48,13.46,10.58,8.3000000000000007,null,null,null,null,null,null,null,null,null,null,null,null,null,null,null,null,null,null,null,null,null,null,null,null,null,null,null,null,null,null,null,null,null,null,null,null,null,null,0,"","","","","",""]
["Cars and trucks, used",null,null,null,null,null,null,null,null,null,null,null,null,null,null,null,null,null,null,null,null,null,null,null,null,null,null,null,null,null,null,null,null,null,null,null,null,null,null,null,null,null,null,null,null,0,"","","","","",""]
["Mean",1707,685,1319,1778,2181,2570,null,null,null,null,null,null,null,null,null,null,null,null,null,null,null,null,null,null,null,null,null,null,null,null,null,null,null,null,null,null,null,null,null,null,null,null,null,null,0,"","","","","",""]
["Share",3.3,3,4,4.0999999999999996,3.7,2.5,null,null,null,null,null,null,null,null,null,null,null,null,null,null,null,null,null,null,null,null,null,null,null,null,null,null,null,null,null,null,null,null,null,null,null,null,null,null,0,"","","","","",""]
["SE",78,94.78,163.89,183.24,223.19,222.44,null,null,null,null,null,null,null,null,null,null,null,null,null,null,null,null,null,null,null,null,null,null,null,null,null,null,null,null,null,null,null,null,null,null,null,null,null,null,0,"","","","","",""]
["CV(%)",4.57,13.83,12.42,10.3,10.24,8.65,null,null,null,null,null,null,null,null,null,null,null,null,null,null,null,null,null,null,null,null,null,null,null,null,null,null,null,null,null,null,null,null,null,null,null,null,null,null,0,"","","","","",""]
["Other vehicles",null,null,null,null,null,null,null,null,null,null,null,null,null,null,null,null,null,null,null,null,null,null,null,null,null,null,null,null,null,null,null,null,null,null,null,null,null,null,null,null,null,null,null,null,0,"","","","","",""]
["Mean",41,1,29,53,52,68,null,null,null,null,null,null,null,null,null,null,null,null,null,null,null,null,null,null,null,null,null,null,null,null,null,null,null,null,null,null,null,null,null,null,null,null,null,null,0,"","","","","",""]
["Share",0.1,"a/",0.1,0.1,0.1,0.1,null,null,null,null,null,null,null,null,null,null,null,null,null,null,null,null,null,null,null,null,null,null,null,null,null,null,null,null,null,null,null,null,null,null,null,null,null,null,0,"","","","","",""]
["SE",9.9600000000000009,0.49,21.58,28.87,33.96,29.55,null,null,null,null,null,null,null,null,null,null,null,null,null,null,null,null,null,null,null,null,null,null,null,null,null,null,null,null,null,null,null,null,null,null,null,null,null,null,0,"","","","","",""]
["CV(%)",24.55,76.260000000000005,75.61,54.21,64.97,43.39,null,null,null,null,null,null,null,null,null,null,null,null,null,null,null,null,null,null,null,null,null,null,null,null,null,null,null,null,null,null,null,null,null,null,null,null,null,null,0,"","","","","",""]
["Gasoline and motor oil",null,null,null,null,null,null,null,null,null,null,null,null,null,null,null,null,null,null,null,null,null,null,null,null,null,null,null,null,null,null,null,null,null,null,null,null,null,null,null,null,null,null,null,null,0,"","","","","",""]
["Mean",2571,1222,1855,2572,3216,3987,null,null,null,null,null,null,null,null,null,null,null,null,null,null,null,null,null,null,null,null,null,null,null,null,null,null,null,null,null,null,null,null,null,null,null,null,null,null,0,"","","","","",""]
["Share",4.9000000000000004,5.3,5.7,5.9,5.4,3.9,null,null,null,null,null,null,null,null,null,null,null,null,null,null,null,null,null,null,null,null,null,null,null,null,null,null,null,null,null,null,null,null,null,null,null,null,null,null,0,"","","","","",""]
["SE",23.59,36.130000000000003,36.03,32.81,39.17,49.88,null,null,null,null,null,null,null,null,null,null,null,null,null,null,null,null,null,null,null,null,null,null,null,null,null,null,null,null,null,null,null,null,null,null,null,null,null,null,0,"","","","","",""]
["CV(%)",0.92,2.96,1.94,1.28,1.22,1.25,null,null,null,null,null,null,null,null,null,null,null,null,null,null,null,null,null,null,null,null,null,null,null,null,null,null,null,null,null,null,null,null,null,null,null,null,null,null,0,"","","","","",""]
["Other vehicle expenses",null,null,null,null,null,null,null,null,null,null,null,null,null,null,null,null,null,null,null,null,null,null,null,null,null,null,null,null,null,null,null,null,null,null,null,null,null,null,null,null,null,null,null,null,0,"","","","","",""]
["Mean",2637,999,1730,2345,3396,4715,null,null,null,null,null,null,null,null,null,null,null,null,null,null,null,null,null,null,null,null,null,null,null,null,null,null,null,null,null,null,null,null,null,null,null,null,null,null,0,"","","","","",""]
["Share",5.0999999999999996,4.3,5.3,5.4,5.7,4.7,null,null,null,null,null,null,null,null,null,null,null,null,null,null,null,null,null,null,null,null,null,null,null,null,null,null,null,null,null,null,null,null,null,null,null,null,null,null,0,"","","","","",""]
["SE",55.14,70.290000000000006,102.97,77.94,159.13999999999999,173.28,null,null,null,null,null,null,null,null,null,null,null,null,null,null,null,null,null,null,null,null,null,null,null,null,null,null,null,null,null,null,null,null,null,null,null,null,null,null,0,"","","","","",""]
["CV(%)",2.09,7.04,5.95,3.32,4.6900000000000004,3.68,null,null,null,null,null,null,null,null,null,null,null,null,null,null,null,null,null,null,null,null,null,null,null,null,null,null,null,null,null,null,null,null,null,null,null,null,null,null,0,"","","","","",""]
["Vehicle finance charges",null,null,null,null,null,null,null,null,null,null,null,null,null,null,null,null,null,null,null,null,null,null,null,null,null,null,null,null,null,null,null,null,null,null,null,null,null,null,null,null,null,null,null,null,0,"","","","","",""]
["Mean",206,54,112,194,288,381,null,null,null,null,null,null,null,null,null,null,null,null,null,null,null,null,null,null,null,null,null,null,null,null,null,null,null,null,null,null,null,null,null,null,null,null,null,null,0,"","","","","",""]
["Share",0.4,0.2,0.3,0.4,0.5,0.4,null,null,null,null,null,null,null,null,null,null,null,null,null,null,null,null,null,null,null,null,null,null,null,null,null,null,null,null,null,null,null,null,null,null,null,null,null,null,0,"","","","","",""]
["SE",6.22,4.29,6.26,7.98,13.89,15.15,null,null,null,null,null,null,null,null,null,null,null,null,null,null,null,null,null,null,null,null,null,null,null,null,null,null,null,null,null,null,null,null,null,null,null,null,null,null,0,"","","","","",""]
["CV(%)",3.03,8,5.6,4.1100000000000003,4.82,3.98,null,null,null,null,null,null,null,null,null,null,null,null,null,null,null,null,null,null,null,null,null,null,null,null,null,null,null,null,null,null,null,null,null,null,null,null,null,null,0,"","","","","",""]
["Maintenance and repairs",null,null,null,null,null,null,null,null,null,null,null,null,null,null,null,null,null,null,null,null,null,null,null,null,null,null,null,null,null,null,null,null,null,null,null,null,null,null,null,null,null,null,null,null,0,"","","","","",""]
["Mean",824,312,579,730,1003,1498,null,null,null,null,null,null,null,null,null,null,null,null,null,null,null,null,null,null,null,null,null,null,null,null,null,null,null,null,null,null,null,null,null,null,null,null,null,null,{"$f":"+J445","v":0},{"$f":"IF($I445=1,B446,\"\")","v":""},{"$f":"IF($I445=1,C446,\"\")","v":""},{"$f":"IF($I445=1,D446,\"\")","v":""},{"$f":"IF($I445=1,E446,\"\")","v":""},{"$f":"IF($I445=1,F446,\"\")","v":""},{"$f":"IF($I445=1,G446,\"\")","v":""}]
["Share",1.6,1.4,1.8,1.7,1.7,1.5,null,null,null,null,null,null,null,null,null,null,null,null,null,null,null,null,null,null,null,null,null,null,null,null,null,null,null,null,null,null,null,null,null,null,null,null,null,null,0,"","","","","",""]
["SE",22.6,19.71,36.44,30.85,32.340000000000003,71.81,null,null,null,null,null,null,null,null,null,null,null,null,null,null,null,null,null,null,null,null,null,null,null,null,null,null,null,null,null,null,null,null,null,null,null,null,null,null,0,"","","","","",""]
["CV(%)",2.74,6.32,6.29,4.22,3.23,4.79,null,null,null,null,null,null,null,null,null,null,null,null,null,null,null,null,null,null,null,null,null,null,null,null,null,null,null,null,null,null,null,null,null,null,null,null,null,null,0,"","","","","",""]
["Vehicle insurance",null,null,null,null,null,null,null,null,null,null,null,null,null,null,null,null,null,null,null,null,null,null,null,null,null,null,null,null,null,null,null,null,null,null,null,null,null,null,null,null,null,null,null,null,0,"","","","","",""]
["Mean",1054,485,726,993,1478,1588,null,null,null,null,null,null,null,null,null,null,null,null,null,null,null,null,null,null,null,null,null,null,null,null,null,null,null,null,null,null,null,null,null,null,null,null,null,null,0,"","","","","",""]
["Share",2,2.1,2.2000000000000002,2.2999999999999998,2.5,1.6,null,null,null,null,null,null,null,null,null,null,null,null,null,null,null,null,null,null,null,null,null,null,null,null,null,null,null,null,null,null,null,null,null,null,null,null,null,null,0,"","","","","",""]
["SE",46.7,60.14,89.88,72.64,156.04,144.38999999999999,null,null,null,null,null,null,null,null,null,null,null,null,null,null,null,null,null,null,null,null,null,null,null,null,null,null,null,null,null,null,null,null,null,null,null,null,null,null,0,"","","","","",""]
["CV(%)",4.43,12.41,12.38,7.31,10.55,9.09,null,null,null,null,null,null,null,null,null,null,null,null,null,null,null,null,null,null,null,null,null,null,null,null,null,null,null,null,null,null,null,null,null,null,null,null,null,null,0,"","","","","",""]
["Vehicle rental, leases, licenses, and other charges",null,null,null,null,null,null,null,null,null,null,null,null,null,null,null,null,null,null,null,null,null,null,null,null,null,null,null,null,null,null,null,null,null,null,null,null,null,null,null,null,null,null,null,null,0,"","","","","",""]
["Mean",552,149,313,427,627,1248,null,null,null,null,null,null,null,null,null,null,null,null,null,null,null,null,null,null,null,null,null,null,null,null,null,null,null,null,null,null,null,null,null,null,null,null,null,null,0,"","","","","",""]
["Share",1.1000000000000001,0.6,1,1,1.1000000000000001,1.2,null,null,null,null,null,null,null,null,null,null,null,null,null,null,null,null,null,null,null,null,null,null,null,null,null,null,null,null,null,null,null,null,null,null,null,null,null,null,0,"","","","","",""]
["SE",22.66,14.68,24.54,36.950000000000003,43.36,73.959999999999994,null,null,null,null,null,null,null,null,null,null,null,null,null,null,null,null,null,null,null,null,null,null,null,null,null,null,null,null,null,null,null,null,null,null,null,null,null,null,0,"","","","","",""]
["CV(%)",4.0999999999999996,9.8800000000000008,7.85,8.65,6.92,5.93,null,null,null,null,null,null,null,null,null,null,null,null,null,null,null,null,null,null,null,null,null,null,null,null,null,null,null,null,null,null,null,null,null,null,null,null,null,null,0,"","","","","",""]
["Public and other transportation",null,null,null,null,null,null,null,null,null,null,null,null,null,null,null,null,null,null,null,null,null,null,null,null,null,null,null,null,null,null,null,null,null,null,null,null,null,null,null,null,null,null,null,null,0,"","","","","",""]
["Mean",543,177,230,386,502,1425,null,null,null,null,null,null,null,null,null,null,null,null,null,null,null,null,null,null,null,null,null,null,null,null,null,null,null,null,null,null,null,null,null,null,null,null,null,null,0,"","","","","",""]
["Share",1,0.8,0.7,0.9,0.8,1.4,null,null,null,null,null,null,null,null,null,null,null,null,null,null,null,null,null,null,null,null,null,null,null,null,null,null,null,null,null,null,null,null,null,null,null,null,null,null,0,"","","","","",""]
["SE",17.25,17.98,17.23,29.95,39.31,79.8,null,null,null,null,null,null,null,null,null,null,null,null,null,null,null,null,null,null,null,null,null,null,null,null,null,null,null,null,null,null,null,null,null,null,null,null,null,null,0,"","","","","",""]
["CV(%)",3.17,10.19,7.48,7.77,7.83,5.6,null,null,null,null,null,null,null,null,null,null,null,null,null,null,null,null,null,null,null,null,null,null,null,null,null,null,null,null,null,null,null,null,null,null,null,null,null,null,0,"","","","","",""]
["",null,null,null,null,null,null,null,null,null,null,null,null,null,null,null,null,null,null,null,null,null,null,null,null,null,null,null,null,null,null,null,null,null,null,null,null,null,null,null,null,null,null,null,null,0,"","","","","",""]
["Healthcare",null,null,null,null,null,null,null,null,null,null,null,null,null,null,null,null,null,null,null,null,null,null,null,null,null,null,null,null,null,null,null,null,null,null,null,null,null,null,null,null,null,null,null,null,0,"","","","","",""]
["Mean",3919,1912,2963,3593,4724,6402,null,null,null,null,null,null,null,null,null,null,null,null,null,null,null,null,null,null,null,null,null,null,null,null,null,null,null,null,null,null,null,null,null,null,null,null,null,null,0,"","","","","",""]
["Share",7.5,8.3000000000000007,9,8.1999999999999993,8,6.3,null,null,null,null,null,null,null,null,null,null,null,null,null,null,null,null,null,null,null,null,null,null,null,null,null,null,null,null,null,null,null,null,null,null,null,null,null,null,0,"","","","","",""]
["SE",66.55,112.02,77.84,97.98,124.33,158.13999999999999,null,null,null,null,null,null,null,null,null,null,null,null,null,null,null,null,null,null,null,null,null,null,null,null,null,null,null,null,null,null,null,null,null,null,null,null,null,null,0,"","","","","",""]
["CV(%)",1.7,5.86,2.63,2.73,2.63,2.4700000000000002,null,null,null,null,null,null,null,null,null,null,null,null,null,null,null,null,null,null,null,null,null,null,null,null,null,null,null,null,null,null,null,null,null,null,null,null,null,null,0,"","","","","",""]
["Health insurance",null,null,null,null,null,null,null,null,null,null,null,null,null,null,null,null,null,null,null,null,null,null,null,null,null,null,null,null,null,null,null,null,null,null,null,null,null,null,null,null,null,null,null,null,0,"","","","","",""]
["Mean",2505,1169,2012,2338,3005,4000,null,null,null,null,null,null,null,null,null,null,null,null,null,null,null,null,null,null,null,null,null,null,null,null,null,null,null,null,null,null,null,null,null,null,null,null,null,null,0,"","","","","",""]
["Share",4.8,5.0999999999999996,6.1,5.3,5.0999999999999996,4,null,null,null,null,null,null,null,null,null,null,null,null,null,null,null,null,null,null,null,null,null,null,null,null,null,null,null,null,null,null,null,null,null,null,null,null,null,null,0,"","","","","",""]
["SE",45.67,49.12,55.59,56.89,68.510000000000005,129.88999999999999,null,null,null,null,null,null,null,null,null,null,null,null,null,null,null,null,null,null,null,null,null,null,null,null,null,null,null,null,null,null,null,null,null,null,null,null,null,null,0,"","","","","",""]
["CV(%)",1.82,4.2,2.76,2.4300000000000002,2.2799999999999998,3.25,null,null,null,null,null,null,null,null,null,null,null,null,null,null,null,null,null,null,null,null,null,null,null,null,null,null,null,null,null,null,null,null,null,null,null,null,null,null,0,"","","","","",""]
["Medical services",null,null,null,null,null,null,null,null,null,null,null,null,null,null,null,null,null,null,null,null,null,null,null,null,null,null,null,null,null,null,null,null,null,null,null,null,null,null,null,null,null,null,null,null,0,"","","","","",""]
["Mean",800,393,426,678,1021,1483,null,null,null,null,null,null,null,null,null,null,null,null,null,null,null,null,null,null,null,null,null,null,null,null,null,null,null,null,null,null,null,null,null,null,null,null,null,null,0,"","","","","",""]
["Share",1.5,1.7,1.3,1.6,1.7,1.5,null,null,null,null,null,null,null,null,null,null,null,null,null,null,null,null,null,null,null,null,null,null,null,null,null,null,null,null,null,null,null,null,null,null,null,null,null,null,0,"","","","","",""]
["SE",27.05,74.069999999999993,29.62,49.71,82.66,67.45,null,null,null,null,null,null,null,null,null,null,null,null,null,null,null,null,null,null,null,null,null,null,null,null,null,null,null,null,null,null,null,null,null,null,null,null,null,null,0,"","","","","",""]
["CV(%)",3.38,18.87,6.96,7.33,8.1,4.55,null,null,null,null,null,null,null,null,null,null,null,null,null,null,null,null,null,null,null,null,null,null,null,null,null,null,null,null,null,null,null,null,null,null,null,null,null,null,0,"","","","","",""]
["Drugs",null,null,null,null,null,null,null,null,null,null,null,null,null,null,null,null,null,null,null,null,null,null,null,null,null,null,null,null,null,null,null,null,null,null,null,null,null,null,null,null,null,null,null,null,0,"","","","","",""]
["Mean",471,278,420,460,525,671,null,null,null,null,null,null,null,null,null,null,null,null,null,null,null,null,null,null,null,null,null,null,null,null,null,null,null,null,null,null,null,null,null,null,null,null,null,null,0,"","","","","",""]
["Share",0.9,1.2,1.3,1.1000000000000001,0.9,0.7,null,null,null,null,null,null,null,null,null,null,null,null,null,null,null,null,null,null,null,null,null,null,null,null,null,null,null,null,null,null,null,null,null,null,null,null,null,null,0,"","","","","",""]
["SE",12,17.059999999999999,17.86,20.64,26.32,31,null,null,null,null,null,null,null,null,null,null,null,null,null,null,null,null,null,null,null,null,null,null,null,null,null,null,null,null,null,null,null,null,null,null,null,null,null,null,0,"","","","","",""]
["CV(%)",2.5499999999999998,6.15,4.26,4.4800000000000004,5.0199999999999996,4.62,null,null,null,null,null,null,null,null,null,null,null,null,null,null,null,null,null,null,null,null,null,null,null,null,null,null,null,null,null,null,null,null,null,null,null,null,null,null,0,"","","","","",""]
["Medical supplies",null,null,null,null,null,null,null,null,null,null,null,null,null,null,null,null,null,null,null,null,null,null,null,null,null,null,null,null,null,null,null,null,null,null,null,null,null,null,null,null,null,null,null,null,0,"","","","","",""]
["Mean",143,73,106,116,173,248,null,null,null,null,null,null,null,null,null,null,null,null,null,null,null,null,null,null,null,null,null,null,null,null,null,null,null,null,null,null,null,null,null,null,null,null,null,null,0,"","","","","",""]
["Share",0.3,0.3,0.3,0.3,0.3,0.2,null,null,null,null,null,null,null,null,null,null,null,null,null,null,null,null,null,null,null,null,null,null,null,null,null,null,null,null,null,null,null,null,null,null,null,null,null,null,0,"","","","","",""]
["SE",5.72,13.72,9.3000000000000007,11.86,13.28,19.190000000000001,null,null,null,null,null,null,null,null,null,null,null,null,null,null,null,null,null,null,null,null,null,null,null,null,null,null,null,null,null,null,null,null,null,null,null,null,null,null,0,"","","","","",""]
["CV(%)",3.99,18.87,8.7899999999999991,10.210000000000001,7.66,7.72,null,null,null,null,null,null,null,null,null,null,null,null,null,null,null,null,null,null,null,null,null,null,null,null,null,null,null,null,null,null,null,null,null,null,null,null,null,null,0,"","","","","",""]
["",null,null,null,null,null,null,null,null,null,null,null,null,null,null,null,null,null,null,null,null,null,null,null,null,null,null,null,null,null,null,null,null,null,null,null,null,null,null,null,null,null,null,null,null,0,"","","","","",""]
["Entertainment",null,null,null,null,null,null,null,null,null,null,null,null,null,null,null,null,null,null,null,null,null,null,null,null,null,null,null,null,null,null,null,null,null,null,null,null,null,null,null,null,null,null,null,null,0,"","","","","",""]
["Mean",2560,1028,1445,2108,2802,5420,null,null,null,null,null,null,null,null,null,null,null,null,null,null,null,null,null,null,null,null,null,null,null,null,null,null,null,null,null,null,null,null,null,null,null,null,null,null,0,"","","","","",""]
["Share",4.9000000000000004,4.5,4.4000000000000004,4.8,4.7,5.4,null,null,null,null,null,null,null,null,null,null,null,null,null,null,null,null,null,null,null,null,null,null,null,null,null,null,null,null,null,null,null,null,null,null,null,null,null,null,0,"","","","","",""]
["SE",66.28,39.47,36.83,81.41,84.99,255.65,null,null,null,null,null,null,null,null,null,null,null,null,null,null,null,null,null,null,null,null,null,null,null,null,null,null,null,null,null,null,null,null,null,null,null,null,null,null,0,"","","","","",""]
["CV(%)",2.59,3.84,2.5499999999999998,3.86,3.03,4.72,null,null,null,null,null,null,null,null,null,null,null,null,null,null,null,null,null,null,null,null,null,null,null,null,null,null,null,null,null,null,null,null,null,null,null,null,null,null,0,"","","","","",""]
["Fees and admissions",null,null,null,null,null,null,null,null,null,null,null,null,null,null,null,null,null,null,null,null,null,null,null,null,null,null,null,null,null,null,null,null,null,null,null,null,null,null,null,null,null,null,null,null,0,"","","","","",""]
["Mean",572,139,199,329,551,1644,null,null,null,null,null,null,null,null,null,null,null,null,null,null,null,null,null,null,null,null,null,null,null,null,null,null,null,null,null,null,null,null,null,null,null,null,null,null,0,"","","","","",""]
["Share",1.1000000000000001,0.6,0.6,0.8,0.9,1.6,null,null,null,null,null,null,null,null,null,null,null,null,null,null,null,null,null,null,null,null,null,null,null,null,null,null,null,null,null,null,null,null,null,null,null,null,null,null,0,"","","","","",""]
["SE",23.67,18.190000000000001,16.66,14.96,28.17,102.71,null,null,null,null,null,null,null,null,null,null,null,null,null,null,null,null,null,null,null,null,null,null,null,null,null,null,null,null,null,null,null,null,null,null,null,null,null,null,0,"","","","","",""]
["CV(%)",4.1399999999999997,13.08,8.3699999999999992,4.55,5.1100000000000003,6.25,null,null,null,null,null,null,null,null,null,null,null,null,null,null,null,null,null,null,null,null,null,null,null,null,null,null,null,null,null,null,null,null,null,null,null,null,null,null,0,"","","","","",""]
["Audio and visual equipment and services",null,null,null,null,null,null,null,null,null,null,null,null,null,null,null,null,null,null,null,null,null,null,null,null,null,null,null,null,null,null,null,null,null,null,null,null,null,null,null,null,null,null,null,null,0,"","","","","",""]
["Mean",1001,567,781,961,1174,1519,null,null,null,null,null,null,null,null,null,null,null,null,null,null,null,null,null,null,null,null,null,null,null,null,null,null,null,null,null,null,null,null,null,null,null,null,null,null,0,"","","","","",""]
["Share",1.9,2.5,2.4,2.2000000000000002,2,1.5,null,null,null,null,null,null,null,null,null,null,null,null,null,null,null,null,null,null,null,null,null,null,null,null,null,null,null,null,null,null,null,null,null,null,null,null,null,null,0,"","","","","",""]
["SE",23.53,17.010000000000002,30.32,40.07,35.619999999999997,71.989999999999995,null,null,null,null,null,null,null,null,null,null,null,null,null,null,null,null,null,null,null,null,null,null,null,null,null,null,null,null,null,null,null,null,null,null,null,null,null,null,0,"","","","","",""]
["CV(%)",2.35,3,3.88,4.17,3.04,4.74,null,null,null,null,null,null,null,null,null,null,null,null,null,null,null,null,null,null,null,null,null,null,null,null,null,null,null,null,null,null,null,null,null,null,null,null,null,null,0,"","","","","",""]
["Pets, toys, hobbies, and playground equipment",null,null,null,null,null,null,null,null,null,null,null,null,null,null,null,null,null,null,null,null,null,null,null,null,null,null,null,null,null,null,null,null,null,null,null,null,null,null,null,null,null,null,null,null,0,"","","","","",""]
["Mean",609,262,340,559,777,1108,null,null,null,null,null,null,null,null,null,null,null,null,null,null,null,null,null,null,null,null,null,null,null,null,null,null,null,null,null,null,null,null,null,null,null,null,null,null,0,"","","","","",""]
["Share",1.2,1.1000000000000001,1,1.3,1.3,1.1000000000000001,null,null,null,null,null,null,null,null,null,null,null,null,null,null,null,null,null,null,null,null,null,null,null,null,null,null,null,null,null,null,null,null,null,null,null,null,null,null,0,"","","","","",""]
["SE",27.65,17.66,20.91,46.44,52.14,77.7,null,null,null,null,null,null,null,null,null,null,null,null,null,null,null,null,null,null,null,null,null,null,null,null,null,null,null,null,null,null,null,null,null,null,null,null,null,null,{"$f":"+J509","v":0},{"$f":"IF($I509=1,B510,\"\")","v":""},{"$f":"IF($I509=1,C510,\"\")","v":""},{"$f":"IF($I509=1,D510,\"\")","v":""},{"$f":"IF($I509=1,E510,\"\")","v":""},{"$f":"IF($I509=1,F510,\"\")","v":""},{"$f":"IF($I509=1,G510,\"\")","v":""}]
["CV(%)",4.54,6.74,6.15,8.31,6.71,7.02,null,null,null,null,null,null,null,null,null,null,null,null,null,null,null,null,null,null,null,null,null,null,null,null,null,null,null,null,null,null,null,null,null,null,null,null,null,null,0,"","","","","",""]
["Pets",null,null,null,null,null,null,null,null,null,null,null,null,null,null,null,null,null,null,null,null,null,null,null,null,null,null,null,null,null,null,null,null,null,null,null,null,null,null,null,null,null,null,null,null,0,"","","","","",""]
["Mean",482,216,274,438,607,874,null,null,null,null,null,null,null,null,null,null,null,null,null,null,null,null,null,null,null,null,null,null,null,null,null,null,null,null,null,null,null,null,null,null,null,null,null,null,0,"","","","","",""]
["Share",0.9,0.9,0.8,1,1,0.9,null,null,null,null,null,null,null,null,null,null,null,null,null,null,null,null,null,null,null,null,null,null,null,null,null,null,null,null,null,null,null,null,null,null,null,null,null,null,0,"","","","","",""]
["SE",25.37,16.23,18.21,42.37,44.8,69.31,null,null,null,null,null,null,null,null,null,null,null,null,null,null,null,null,null,null,null,null,null,null,null,null,null,null,null,null,null,null,null,null,null,null,null,null,null,null,0,"","","","","",""]
["CV(%)",5.27,7.53,6.65,9.68,7.38,7.93,null,null,null,null,null,null,null,null,null,null,null,null,null,null,null,null,null,null,null,null,null,null,null,null,null,null,null,null,null,null,null,null,null,null,null,null,null,null,0,"","","","","",""]
["Toys, hobbies, and playground equipment",null,null,null,null,null,null,null,null,null,null,null,null,null,null,null,null,null,null,null,null,null,null,null,null,null,null,null,null,null,null,null,null,null,null,null,null,null,null,null,null,null,null,null,null,0,"","","","","",""]
["Mean",127,46,66,121,170,234,null,null,null,null,null,null,null,null,null,null,null,null,null,null,null,null,null,null,null,null,null,null,null,null,null,null,null,null,null,null,null,null,null,null,null,null,null,null,0,"","","","","",""]
["Share",0.2,0.2,0.2,0.3,0.3,0.2,null,null,null,null,null,null,null,null,null,null,null,null,null,null,null,null,null,null,null,null,null,null,null,null,null,null,null,null,null,null,null,null,null,null,null,null,null,null,0,"","","","","",""]
["SE",8.39,9.2200000000000006,9.7100000000000009,17.010000000000002,23.44,32.57,null,null,null,null,null,null,null,null,null,null,null,null,null,null,null,null,null,null,null,null,null,null,null,null,null,null,null,null,null,null,null,null,null,null,null,null,null,null,0,"","","","","",""]
["CV(%)",6.59,19.850000000000001,14.73,14.07,13.82,13.94,null,null,null,null,null,null,null,null,null,null,null,null,null,null,null,null,null,null,null,null,null,null,null,null,null,null,null,null,null,null,null,null,null,null,null,null,null,null,0,"","","","","",""]
["Other entertainment supplies, equipment, and services",null,null,null,null,null,null,null,null,null,null,null,null,null,null,null,null,null,null,null,null,null,null,null,null,null,null,null,null,null,null,null,null,null,null,null,null,null,null,null,null,null,null,null,null,0,"","","","","",""]
["Mean",378,59,124,259,300,1150,null,null,null,null,null,null,null,null,null,null,null,null,null,null,null,null,null,null,null,null,null,null,null,null,null,null,null,null,null,null,null,null,null,null,null,null,null,null,0,"","","","","",""]
["Share",0.7,0.3,0.4,0.6,0.5,1.1000000000000001,null,null,null,null,null,null,null,null,null,null,null,null,null,null,null,null,null,null,null,null,null,null,null,null,null,null,null,null,null,null,null,null,null,null,null,null,null,null,0,"","","","","",""]
["SE",30.51,10.25,26.24,49.98,38.380000000000003,141.24,null,null,null,null,null,null,null,null,null,null,null,null,null,null,null,null,null,null,null,null,null,null,null,null,null,null,null,null,null,null,null,null,null,null,null,null,null,null,0,"","","","","",""]
["CV(%)",8.07,17.399999999999999,21.08,19.329999999999998,12.78,12.29,null,null,null,null,null,null,null,null,null,null,null,null,null,null,null,null,null,null,null,null,null,null,null,null,null,null,null,null,null,null,null,null,null,null,null,null,null,null,0,"","","","","",""]
["",null,null,null,null,null,null,null,null,null,null,null,null,null,null,null,null,null,null,null,null,null,null,null,null,null,null,null,null,null,null,null,null,null,null,null,null,null,null,null,null,null,null,null,null,0,"","","","","",""]
["Personal care products and services",null,null,null,null,null,null,null,null,null,null,null,null,null,null,null,null,null,null,null,null,null,null,null,null,null,null,null,null,null,null,null,null,null,null,null,null,null,null,null,null,null,null,null,null,0,"","","","","",""]
["Mean",602,260,401,502,708,1138,null,null,null,null,null,null,null,null,null,null,null,null,null,null,null,null,null,null,null,null,null,null,null,null,null,null,null,null,null,null,null,null,null,null,null,null,null,null,0,"","","","","",""]
["Share",1.2,1.1000000000000001,1.2,1.1000000000000001,1.2,1.1000000000000001,null,null,null,null,null,null,null,null,null,null,null,null,null,null,null,null,null,null,null,null,null,null,null,null,null,null,null,null,null,null,null,null,null,null,null,null,null,null,0,"","","","","",""]
["SE",11.84,11.92,14.47,18.600000000000001,27.98,31.34,null,null,null,null,null,null,null,null,null,null,null,null,null,null,null,null,null,null,null,null,null,null,null,null,null,null,null,null,null,null,null,null,null,null,null,null,null,null,0,"","","","","",""]
["CV(%)",1.97,4.58,3.61,3.7,3.95,2.75,null,null,null,null,null,null,null,null,null,null,null,null,null,null,null,null,null,null,null,null,null,null,null,null,null,null,null,null,null,null,null,null,null,null,null,null,null,null,0,"","","","","",""]
["",null,null,null,null,null,null,null,null,null,null,null,null,null,null,null,null,null,null,null,null,null,null,null,null,null,null,null,null,null,null,null,null,null,null,null,null,null,null,null,null,null,null,null,null,0,"","","","","",""]
["Reading",null,null,null,null,null,null,null,null,null,null,null,null,null,null,null,null,null,null,null,null,null,null,null,null,null,null,null,null,null,null,null,null,null,null,null,null,null,null,null,null,null,null,null,null,0,"","","","","",""]
["Mean",101,42,67,83,108,203,null,null,null,null,null,null,null,null,null,null,null,null,null,null,null,null,null,null,null,null,null,null,null,null,null,null,null,null,null,null,null,null,null,null,null,null,null,null,0,"","","","","",""]
["Share",0.2,0.2,0.2,0.2,0.2,0.2,null,null,null,null,null,null,null,null,null,null,null,null,null,null,null,null,null,null,null,null,null,null,null,null,null,null,null,null,null,null,null,null,null,null,null,null,null,null,0,"","","","","",""]
["SE",3.02,3.32,3.95,4.5599999999999996,6.97,9.9499999999999993,null,null,null,null,null,null,null,null,null,null,null,null,null,null,null,null,null,null,null,null,null,null,null,null,null,null,null,null,null,null,null,null,null,null,null,null,null,null,0,"","","","","",""]
["CV(%)",3,7.84,5.88,5.52,6.43,4.9000000000000004,null,null,null,null,null,null,null,null,null,null,null,null,null,null,null,null,null,null,null,null,null,null,null,null,null,null,null,null,null,null,null,null,null,null,null,null,null,null,0,"","","","","",""]
["",null,null,null,null,null,null,null,null,null,null,null,null,null,null,null,null,null,null,null,null,null,null,null,null,null,null,null,null,null,null,null,null,null,null,null,null,null,null,null,null,null,null,null,null,0,"","","","","",""]
["Education",null,null,null,null,null,null,null,null,null,null,null,null,null,null,null,null,null,null,null,null,null,null,null,null,null,null,null,null,null,null,null,null,null,null,null,null,null,null,null,null,null,null,null,null,0,"","","","","",""]
["Mean",1143,818,359,659,943,2946,null,null,null,null,null,null,null,null,null,null,null,null,null,null,null,null,null,null,null,null,null,null,null,null,null,null,null,null,null,null,null,null,null,null,null,null,null,null,0,"","","","","",""]
["Share",2.2000000000000002,3.6,1.1000000000000001,1.5,1.6,2.9,null,null,null,null,null,null,null,null,null,null,null,null,null,null,null,null,null,null,null,null,null,null,null,null,null,null,null,null,null,null,null,null,null,null,null,null,null,null,0,"","","","","",""]
["SE",51.13,181.96,61.01,77.22,75.22,188.89,null,null,null,null,null,null,null,null,null,null,null,null,null,null,null,null,null,null,null,null,null,null,null,null,null,null,null,null,null,null,null,null,null,null,null,null,null,null,0,"","","","","",""]
["CV(%)",4.47,22.25,17.02,11.71,7.98,6.41,null,null,null,null,null,null,null,null,null,null,null,null,null,null,null,null,null,null,null,null,null,null,null,null,null,null,null,null,null,null,null,null,null,null,null,null,null,null,0,"","","","","",""]
["",null,null,null,null,null,null,null,null,null,null,null,null,null,null,null,null,null,null,null,null,null,null,null,null,null,null,null,null,null,null,null,null,null,null,null,null,null,null,null,null,null,null,null,null,0,"","","","","",""]
["Tobacco products and smoking supplies",null,null,null,null,null,null,null,null,null,null,null,null,null,null,null,null,null,null,null,null,null,null,null,null,null,null,null,null,null,null,null,null,null,null,null,null,null,null,null,null,null,null,null,null,0,"","","","","",""]
["Mean",315,274,312,351,365,271,null,null,null,null,null,null,null,null,null,null,null,null,null,null,null,null,null,null,null,null,null,null,null,null,null,null,null,null,null,null,null,null,null,null,null,null,null,null,0,"","","","","",""]
["Share",0.6,1.2,1,0.8,0.6,0.3,null,null,null,null,null,null,null,null,null,null,null,null,null,null,null,null,null,null,null,null,null,null,null,null,null,null,null,null,null,null,null,null,null,null,null,null,null,null,0,"","","","","",""]
["SE",12.2,16.53,19.100000000000001,19.91,25.15,19.87,null,null,null,null,null,null,null,null,null,null,null,null,null,null,null,null,null,null,null,null,null,null,null,null,null,null,null,null,null,null,null,null,null,null,null,null,null,null,0,"","","","","",""]
["CV(%)",3.87,6.04,6.12,5.66,6.88,7.32,null,null,null,null,null,null,null,null,null,null,null,null,null,null,null,null,null,null,null,null,null,null,null,null,null,null,null,null,null,null,null,null,null,null,null,null,null,null,0,"","","","","",""]
["",null,null,null,null,null,null,null,null,null,null,null,null,null,null,null,null,null,null,null,null,null,null,null,null,null,null,null,null,null,null,null,null,null,null,null,null,null,null,null,null,null,null,null,null,0,"","","","","",""]
["Miscellaneous",null,null,null,null,null,null,null,null,null,null,null,null,null,null,null,null,null,null,null,null,null,null,null,null,null,null,null,null,null,null,null,null,null,null,null,null,null,null,null,null,null,null,null,null,0,"","","","","",""]
["Mean",683,286,455,532,790,1352,null,null,null,null,null,null,null,null,null,null,null,null,null,null,null,null,null,null,null,null,null,null,null,null,null,null,null,null,null,null,null,null,null,null,null,null,null,null,0,"","","","","",""]
["Share",1.3,1.2,1.4,1.2,1.3,1.3,null,null,null,null,null,null,null,null,null,null,null,null,null,null,null,null,null,null,null,null,null,null,null,null,null,null,null,null,null,null,null,null,null,null,null,null,null,null,0,"","","","","",""]
["SE",40.32,26.06,48.4,42.21,81.430000000000007,116.15,null,null,null,null,null,null,null,null,null,null,null,null,null,null,null,null,null,null,null,null,null,null,null,null,null,null,null,null,null,null,null,null,null,null,null,null,null,null,0,"","","","","",""]
["CV(%)",5.91,9.11,10.63,7.93,10.3,8.59,null,null,null,null,null,null,null,null,null,null,null,null,null,null,null,null,null,null,null,null,null,null,null,null,null,null,null,null,null,null,null,null,null,null,null,null,null,null,0,"","","","","",""]
["",null,null,null,null,null,null,null,null,null,null,null,null,null,null,null,null,null,null,null,null,null,null,null,null,null,null,null,null,null,null,null,null,null,null,null,null,null,null,null,null,null,null,null,null,0,"","","","","",""]
["Cash contributions",null,null,null,null,null,null,null,null,null,null,null,null,null,null,null,null,null,null,null,null,null,null,null,null,null,null,null,null,null,null,null,null,null,null,null,null,null,null,null,null,null,null,null,null,0,"","","","","",""]
["Mean",1790,591,1148,1329,1988,3900,null,null,null,null,null,null,null,null,null,null,null,null,null,null,null,null,null,null,null,null,null,null,null,null,null,null,null,null,null,null,null,null,null,null,null,null,null,null,0,"","","","","",""]
["Share",3.4,2.6,3.5,3,3.4,3.9,null,null,null,null,null,null,null,null,null,null,null,null,null,null,null,null,null,null,null,null,null,null,null,null,null,null,null,null,null,null,null,null,null,null,null,null,null,null,0,"","","","","",""]
["SE",92.85,55.09,136.68,73.930000000000007,110.76,272.51,null,null,null,null,null,null,null,null,null,null,null,null,null,null,null,null,null,null,null,null,null,null,null,null,null,null,null,null,null,null,null,null,null,null,null,null,null,null,0,"","","","","",""]
["CV(%)",5.19,9.32,11.91,5.56,5.57,6.99,null,null,null,null,null,null,null,null,null,null,null,null,null,null,null,null,null,null,null,null,null,null,null,null,null,null,null,null,null,null,null,null,null,null,null,null,null,null,0,"","","","","",""]
["",null,null,null,null,null,null,null,null,null,null,null,null,null,null,null,null,null,null,null,null,null,null,null,null,null,null,null,null,null,null,null,null,null,null,null,null,null,null,null,null,null,null,null,null,0,"","","","","",""]
["Personal insurance and pensions",null,null,null,null,null,null,null,null,null,null,null,null,null,null,null,null,null,null,null,null,null,null,null,null,null,null,null,null,null,null,null,null,null,null,null,null,null,null,null,null,null,null,null,null,0,"","","","","",""]
["Mean",5551,489,1612,3436,6529,15710,null,null,null,null,null,null,null,null,null,null,null,null,null,null,null,null,null,null,null,null,null,null,null,null,null,null,null,null,null,null,null,null,null,null,null,null,null,null,0,"","","","","",""]
["Share",10.7,2.1,4.9000000000000004,7.9,11,15.6,null,null,null,null,null,null,null,null,null,null,null,null,null,null,null,null,null,null,null,null,null,null,null,null,null,null,null,null,null,null,null,null,null,null,null,null,null,null,0,"","","","","",""]
["SE",113.46,55.51,99.01,67.61,102.06,285,null,null,null,null,null,null,null,null,null,null,null,null,null,null,null,null,null,null,null,null,null,null,null,null,null,null,null,null,null,null,null,null,null,null,null,null,null,null,0,"","","","","",""]
["CV(%)",2.04,11.36,6.14,1.97,1.56,1.81,null,null,null,null,null,null,null,null,null,null,null,null,null,null,null,null,null,null,null,null,null,null,null,null,null,null,null,null,null,null,null,null,null,null,null,null,null,null,0,"","","","","",""]
["Life and other personal insurance",null,null,null,null,null,null,null,null,null,null,null,null,null,null,null,null,null,null,null,null,null,null,null,null,null,null,null,null,null,null,null,null,null,null,null,null,null,null,null,null,null,null,null,null,0,"","","","","",""]
["Mean",319,84,167,221,339,787,null,null,null,null,null,null,null,null,null,null,null,null,null,null,null,null,null,null,null,null,null,null,null,null,null,null,null,null,null,null,null,null,null,null,null,null,null,null,0,"","","","","",""]
["Share",0.6,0.4,0.5,0.5,0.6,0.8,null,null,null,null,null,null,null,null,null,null,null,null,null,null,null,null,null,null,null,null,null,null,null,null,null,null,null,null,null,null,null,null,null,null,null,null,null,null,0,"","","","","",""]
["SE",20.04,10.88,17.3,35.520000000000003,32.89,57.33,null,null,null,null,null,null,null,null,null,null,null,null,null,null,null,null,null,null,null,null,null,null,null,null,null,null,null,null,null,null,null,null,null,null,null,null,null,null,0,"","","","","",""]
["CV(%)",6.28,12.98,10.39,16.059999999999999,9.69,7.28,null,null,null,null,null,null,null,null,null,null,null,null,null,null,null,null,null,null,null,null,null,null,null,null,null,null,null,null,null,null,null,null,null,null,null,null,null,null,0,"","","","","",""]
["Pensions and Social Security",null,null,null,null,null,null,null,null,null,null,null,null,null,null,null,null,null,null,null,null,null,null,null,null,null,null,null,null,null,null,null,null,null,null,null,null,null,null,null,null,null,null,null,null,{"$f":"+J573","v":0},{"$f":"IF($I573=1,B574,\"\")","v":""},{"$f":"IF($I573=1,C574,\"\")","v":""},{"$f":"IF($I573=1,D574,\"\")","v":""},{"$f":"IF($I573=1,E574,\"\")","v":""},{"$f":"IF($I573=1,F574,\"\")","v":""},{"$f":"IF($I573=1,G574,\"\")","v":""}]
["Mean",5231,405,1446,3215,6189,14922,null,null,null,null,null,null,null,null,null,null,null,null,null,null,null,null,null,null,null,null,null,null,null,null,null,null,null,null,null,null,null,null,null,null,null,null,null,null,0,"","","","","",""]
["Share",10.1,1.8,4.4000000000000004,7.4,10.4,14.8,null,null,null,null,null,null,null,null,null,null,null,null,null,null,null,null,null,null,null,null,null,null,null,null,null,null,null,null,null,null,null,null,null,null,null,null,null,null,0,"","","","","",""]
["SE",106.83,55.98,100.11,55.83,94.66,275.42,null,null,null,null,null,null,null,null,null,null,null,null,null,null,null,null,null,null,null,null,null,null,null,null,null,null,null,null,null,null,null,null,null,null,null,null,null,null,0,"","","","","",""]
["CV(%)",2.04,13.83,6.93,1.74,1.53,1.85,null,null,null,null,null,null,null,null,null,null,null,null,null,null,null,null,null,null,null,null,null,null,null,null,null,null,null,null,null,null,null,null,null,null,null,null,null,null,0,"","","","","",""]
["",null,null,null,null,null,null,null,null,null,null,null,null,null,null,null,null,null,null,null,null,null,null,null,null,null,null,null,null,null,null,null,null,null,null,null,null,null,null,null,null,null,null,null,null,0,"","","","","",""]
["Sources of income and personal taxes:",null,null,null,null,null,null,null,null,null,null,null,null,null,null,null,null,null,null,null,null,null,null,null,null,null,null,null,null,null,null,null,null,null,null,null,null,null,null,null,null,null,null,null,null,0,"","","","","",""]
["",null,null,null,null,null,null,null,null,null,null,null,null,null,null,null,null,null,null,null,null,null,null,null,null,null,null,null,null,null,null,null,null,null,null,null,null,null,null,null,null,null,null,null,null,0,"","","","","",""]
["Money income before taxes",null,null,null,null,null,null,null,null,null,null,null,null,null,null,null,null,null,null,null,null,null,null,null,null,null,null,null,null,null,null,null,null,null,null,null,null,null,null,null,null,null,null,null,null,0,"","","","","",""]
["Mean",64434,9818,26369,45724,74413,166052,null,null,null,null,null,null,null,null,null,null,null,null,null,null,null,null,null,null,null,null,null,null,null,null,null,null,null,null,null,null,null,null,null,null,null,null,null,null,0,"","","","","",""]
["SE",1002.97,193.95,268.66000000000003,400.74,437.8,3118.6,null,null,null,null,null,null,null,null,null,null,null,null,null,null,null,null,null,null,null,null,null,null,null,null,null,null,null,null,null,null,null,null,null,null,null,null,null,null,0,"","","","","",""]
["CV(%)",1.56,1.98,1.02,0.88,0.59,1.88,null,null,null,null,null,null,null,null,null,null,null,null,null,null,null,null,null,null,null,null,null,null,null,null,null,null,null,null,null,null,null,null,null,null,null,null,null,null,0,"","","","","",""]
["Wages and salaries",null,null,null,null,null,null,null,null,null,null,null,null,null,null,null,null,null,null,null,null,null,null,null,null,null,null,null,null,null,null,null,null,null,null,null,null,null,null,null,null,null,null,null,null,0,"","","","","",""]
["Mean",50234,3122,14093,33807,61063,139268,null,null,null,null,null,null,null,null,null,null,null,null,null,null,null,null,null,null,null,null,null,null,null,null,null,null,null,null,null,null,null,null,null,null,null,null,null,null,0,"","","","","",""]
["Share",78,31.8,53.4,73.900000000000006,82.1,83.9,null,null,null,null,null,null,null,null,null,null,null,null,null,null,null,null,null,null,null,null,null,null,null,null,null,null,null,null,null,null,null,null,null,null,null,null,null,null,0,"","","","","",""]
["SE",838.19,128.61000000000001,328.68,424.41,680.44,2348.89,null,null,null,null,null,null,null,null,null,null,null,null,null,null,null,null,null,null,null,null,null,null,null,null,null,null,null,null,null,null,null,null,null,null,null,null,null,null,0,"","","","","",""]
["CV(%)",1.67,4.12,2.33,1.26,1.1100000000000001,1.69,null,null,null,null,null,null,null,null,null,null,null,null,null,null,null,null,null,null,null,null,null,null,null,null,null,null,null,null,null,null,null,null,null,null,null,null,null,null,0,"","","","","",""]
["Self-employment income",null,null,null,null,null,null,null,null,null,null,null,null,null,null,null,null,null,null,null,null,null,null,null,null,null,null,null,null,null,null,null,null,null,null,null,null,null,null,null,null,null,null,null,null,0,"","","","","",""]
["Mean",3771,-148,710,1575,3286,13459,null,null,null,null,null,null,null,null,null,null,null,null,null,null,null,null,null,null,null,null,null,null,null,null,null,null,null,null,null,null,null,null,null,null,null,null,null,null,0,"","","","","",""]
["Share",5.9,-1.5,2.7,3.4,4.4000000000000004,8.1,null,null,null,null,null,null,null,null,null,null,null,null,null,null,null,null,null,null,null,null,null,null,null,null,null,null,null,null,null,null,null,null,null,null,null,null,null,null,0,"","","","","",""]
["SE",328.3,155.38999999999999,120.34,202.58,311.52999999999997,1408.04,null,null,null,null,null,null,null,null,null,null,null,null,null,null,null,null,null,null,null,null,null,null,null,null,null,null,null,null,null,null,null,null,null,null,null,null,null,null,0,"","","","","",""]
["CV(%)",8.7100000000000009,-105.21,16.95,12.86,9.48,10.46,null,null,null,null,null,null,null,null,null,null,null,null,null,null,null,null,null,null,null,null,null,null,null,null,null,null,null,null,null,null,null,null,null,null,null,null,null,null,0,"","","","","",""]
["Social Security, private and government retirement",null,null,null,null,null,null,null,null,null,null,null,null,null,null,null,null,null,null,null,null,null,null,null,null,null,null,null,null,null,null,null,null,null,null,null,null,null,null,null,null,null,null,null,null,0,"","","","","",""]
["Mean",7496,4643,9547,8331,7812,7130,null,null,null,null,null,null,null,null,null,null,null,null,null,null,null,null,null,null,null,null,null,null,null,null,null,null,null,null,null,null,null,null,null,null,null,null,null,null,0,"","","","","",""]
["Share",11.6,47.3,36.200000000000003,18.2,10.5,4.3,null,null,null,null,null,null,null,null,null,null,null,null,null,null,null,null,null,null,null,null,null,null,null,null,null,null,null,null,null,null,null,null,null,null,null,null,null,null,0,"","","","","",""]
["SE",150.44999999999999,166.54,253.33,319.77,369.34,493.88,null,null,null,null,null,null,null,null,null,null,null,null,null,null,null,null,null,null,null,null,null,null,null,null,null,null,null,null,null,null,null,null,null,null,null,null,null,null,0,"","","","","",""]
["CV(%)",2.0099999999999998,3.59,2.65,3.84,4.7300000000000004,6.93,null,null,null,null,null,null,null,null,null,null,null,null,null,null,null,null,null,null,null,null,null,null,null,null,null,null,null,null,null,null,null,null,null,null,null,null,null,null,0,"","","","","",""]
["Interest, dividends, rental income, other property income",null,null,null,null,null,null,null,null,null,null,null,null,null,null,null,null,null,null,null,null,null,null,null,null,null,null,null,null,null,null,null,null,null,null,null,null,null,null,null,null,null,null,null,null,0,"","","","","",""]
["Mean",1516,119,458,784,1168,5063,null,null,null,null,null,null,null,null,null,null,null,null,null,null,null,null,null,null,null,null,null,null,null,null,null,null,null,null,null,null,null,null,null,null,null,null,null,null,0,"","","","","",""]
["Share",2.4,1.2,1.7,1.7,1.6,3,null,null,null,null,null,null,null,null,null,null,null,null,null,null,null,null,null,null,null,null,null,null,null,null,null,null,null,null,null,null,null,null,null,null,null,null,null,null,0,"","","","","",""]
["SE",152.55000000000001,26.94,75.22,78.540000000000006,141.59,687.79,null,null,null,null,null,null,null,null,null,null,null,null,null,null,null,null,null,null,null,null,null,null,null,null,null,null,null,null,null,null,null,null,null,null,null,null,null,null,0,"","","","","",""]
["CV(%)",10.06,22.58,16.43,10.02,12.12,13.58,null,null,null,null,null,null,null,null,null,null,null,null,null,null,null,null,null,null,null,null,null,null,null,null,null,null,null,null,null,null,null,null,null,null,null,null,null,null,0,"","","","","",""]
["Public assistance, supplemental security income, food stamps",null,null,null,null,null,null,null,null,null,null,null,null,null,null,null,null,null,null,null,null,null,null,null,null,null,null,null,null,null,null,null,null,null,null,null,null,null,null,null,null,null,null,null,null,0,"","","","","",""]
["Mean",553,1276,813,393,170,113,null,null,null,null,null,null,null,null,null,null,null,null,null,null,null,null,null,null,null,null,null,null,null,null,null,null,null,null,null,null,null,null,null,null,null,null,null,null,0,"","","","","",""]
["Share",0.9,13,3.1,0.9,0.2,0.1,null,null,null,null,null,null,null,null,null,null,null,null,null,null,null,null,null,null,null,null,null,null,null,null,null,null,null,null,null,null,null,null,null,null,null,null,null,null,0,"","","","","",""]
["SE",30.82,78.38,64.709999999999994,38.35,24.85,26.64,null,null,null,null,null,null,null,null,null,null,null,null,null,null,null,null,null,null,null,null,null,null,null,null,null,null,null,null,null,null,null,null,null,null,null,null,null,null,0,"","","","","",""]
["CV(%)",5.58,6.14,7.96,9.75,14.64,23.54,null,null,null,null,null,null,null,null,null,null,null,null,null,null,null,null,null,null,null,null,null,null,null,null,null,null,null,null,null,null,null,null,null,null,null,null,null,null,0,"","","","","",""]
["Unemployment and workers' compensation, veterans' benefits, and regular contributions for support",null,null,null,null,null,null,null,null,null,null,null,null,null,null,null,null,null,null,null,null,null,null,null,null,null,null,null,null,null,null,null,null,null,null,null,null,null,null,null,null,null,null,null,null,0,"","","","","",""]
["Mean",561,330,447,559,715,755,null,null,null,null,null,null,null,null,null,null,null,null,null,null,null,null,null,null,null,null,null,null,null,null,null,null,null,null,null,null,null,null,null,null,null,null,null,null,0,"","","","","",""]
["Share",0.9,3.4,1.7,1.2,1,0.5,null,null,null,null,null,null,null,null,null,null,null,null,null,null,null,null,null,null,null,null,null,null,null,null,null,null,null,null,null,null,null,null,null,null,null,null,null,null,0,"","","","","",""]
["SE",63,37.25,55.54,60.15,114.94,222.7,null,null,null,null,null,null,null,null,null,null,null,null,null,null,null,null,null,null,null,null,null,null,null,null,null,null,null,null,null,null,null,null,null,null,null,null,null,null,0,"","","","","",""]
["CV(%)",11.23,11.3,12.44,10.77,16.079999999999998,29.49,null,null,null,null,null,null,null,null,null,null,null,null,null,null,null,null,null,null,null,null,null,null,null,null,null,null,null,null,null,null,null,null,null,null,null,null,null,null,0,"","","","","",""]
["Other income",null,null,null,null,null,null,null,null,null,null,null,null,null,null,null,null,null,null,null,null,null,null,null,null,null,null,null,null,null,null,null,null,null,null,null,null,null,null,null,null,null,null,null,null,0,"","","","","",""]
["Mean",303,476,302,276,199,264,null,null,null,null,null,null,null,null,null,null,null,null,null,null,null,null,null,null,null,null,null,null,null,null,null,null,null,null,null,null,null,null,null,null,null,null,null,null,0,"","","","","",""]
["Share",0.5,4.8,1.1000000000000001,0.6,0.3,0.2,null,null,null,null,null,null,null,null,null,null,null,null,null,null,null,null,null,null,null,null,null,null,null,null,null,null,null,null,null,null,null,null,null,null,null,null,null,null,0,"","","","","",""]
["SE",26.78,57.39,34.5,70.900000000000006,35.94,58.68,null,null,null,null,null,null,null,null,null,null,null,null,null,null,null,null,null,null,null,null,null,null,null,null,null,null,null,null,null,null,null,null,null,null,null,null,null,null,0,"","","","","",""]
["CV(%)",8.84,12.07,11.41,25.73,18.059999999999999,22.26,null,null,null,null,null,null,null,null,null,null,null,null,null,null,null,null,null,null,null,null,null,null,null,null,null,null,null,null,null,null,null,null,null,null,null,null,null,null,0,"","","","","",""]
["",null,null,null,null,null,null,null,null,null,null,null,null,null,null,null,null,null,null,null,null,null,null,null,null,null,null,null,null,null,null,null,null,null,null,null,null,null,null,null,null,null,null,null,null,0,"","","","","",""]
["Personal taxes (contains some imputed values)",null,null,null,null,null,null,null,null,null,null,null,null,null,null,null,null,null,null,null,null,null,null,null,null,null,null,null,null,null,null,null,null,null,null,null,null,null,null,null,null,null,null,null,null,0,"","","","","",""]
["Mean",7995,-436,-532,2336,7586,31089,null,null,null,null,null,null,null,null,null,null,null,null,null,null,null,null,null,null,null,null,null,null,null,null,null,null,null,null,null,null,null,null,null,null,null,null,null,null,0,"","","","","",""]
["Share",12.4,-4.4000000000000004,-2,5.0999999999999996,10.199999999999999,18.7,null,null,null,null,null,null,null,null,null,null,null,null,null,null,null,null,null,null,null,null,null,null,null,null,null,null,null,null,null,null,null,null,null,null,null,null,null,null,0,"","","","","",""]
["SE",265.3,75.599999999999994,79.73,136.06,117.98,1056.74,null,null,null,null,null,null,null,null,null,null,null,null,null,null,null,null,null,null,null,null,null,null,null,null,null,null,null,null,null,null,null,null,null,null,null,null,null,null,0,"","","","","",""]
["CV(%)",3.32,-17.34,-14.98,5.83,1.56,3.4,null,null,null,null,null,null,null,null,null,null,null,null,null,null,null,null,null,null,null,null,null,null,null,null,null,null,null,null,null,null,null,null,null,null,null,null,null,null,0,"","","","","",""]
["Federal income taxes",null,null,null,null,null,null,null,null,null,null,null,null,null,null,null,null,null,null,null,null,null,null,null,null,null,null,null,null,null,null,null,null,null,null,null,null,null,null,null,null,null,null,null,null,0,"","","","","",""]
["Mean",6226,-419,-684,1512,5687,25089,null,null,null,null,null,null,null,null,null,null,null,null,null,null,null,null,null,null,null,null,null,null,null,null,null,null,null,null,null,null,null,null,null,null,null,null,null,null,0,"","","","","",""]
["Share",9.6999999999999993,-4.3,-2.6,3.3,7.6,15.1,null,null,null,null,null,null,null,null,null,null,null,null,null,null,null,null,null,null,null,null,null,null,null,null,null,null,null,null,null,null,null,null,null,null,null,null,null,null,0,"","","","","",""]
["SE",228.99,31.89,73.790000000000006,87.15,84.46,938.97,null,null,null,null,null,null,null,null,null,null,null,null,null,null,null,null,null,null,null,null,null,null,null,null,null,null,null,null,null,null,null,null,null,null,null,null,null,null,0,"","","","","",""]
["CV(%)",3.68,-7.61,-10.79,5.76,1.49,3.74,null,null,null,null,null,null,null,null,null,null,null,null,null,null,null,null,null,null,null,null,null,null,null,null,null,null,null,null,null,null,null,null,null,null,null,null,null,null,0,"","","","","",""]
["State and local income taxes",null,null,null,null,null,null,null,null,null,null,null,null,null,null,null,null,null,null,null,null,null,null,null,null,null,null,null,null,null,null,null,null,null,null,null,null,null,null,null,null,null,null,null,null,0,"","","","","",""]
["Mean",1719,-74,135,759,1866,5922,null,null,null,null,null,null,null,null,null,null,null,null,null,null,null,null,null,null,null,null,null,null,null,null,null,null,null,null,null,null,null,null,null,null,null,null,null,null,0,"","","","","",""]
["Share",2.7,-0.8,0.5,1.7,2.5,3.6,null,null,null,null,null,null,null,null,null,null,null,null,null,null,null,null,null,null,null,null,null,null,null,null,null,null,null,null,null,null,null,null,null,null,null,null,null,null,0,"","","","","",""]
["SE",62.59,20.51,17.61,38.69,70.81,227.06,null,null,null,null,null,null,null,null,null,null,null,null,null,null,null,null,null,null,null,null,null,null,null,null,null,null,null,null,null,null,null,null,null,null,null,null,null,null,0,"","","","","",""]
["CV(%)",3.64,-27.76,13.07,5.0999999999999996,3.79,3.83,null,null,null,null,null,null,null,null,null,null,null,null,null,null,null,null,null,null,null,null,null,null,null,null,null,null,null,null,null,null,null,null,null,null,null,null,null,null,0,"","","","","",""]
["Other taxes",null,null,null,null,null,null,null,null,null,null,null,null,null,null,null,null,null,null,null,null,null,null,null,null,null,null,null,null,null,null,null,null,null,null,null,null,null,null,null,null,null,null,null,null,0,"","","","","",""]
["Mean",50,57,17,65,33,77,null,null,null,null,null,null,null,null,null,null,null,null,null,null,null,null,null,null,null,null,null,null,null,null,null,null,null,null,null,null,null,null,null,null,null,null,null,null,{"$f":"+J637","v":0},{"$f":"IF($I637=1,B638,\"\")","v":""},{"$f":"IF($I637=1,C638,\"\")","v":""},{"$f":"IF($I637=1,D638,\"\")","v":""},{"$f":"IF($I637=1,E638,\"\")","v":""},{"$f":"IF($I637=1,F638,\"\")","v":""},{"$f":"IF($I637=1,G638,\"\")","v":""}]
["Share",0.1,0.6,0.1,0.1,"a/","a/",null,null,null,null,null,null,null,null,null,null,null,null,null,null,null,null,null,null,null,null,null,null,null,null,null,null,null,null,null,null,null,null,null,null,null,null,null,null,0,"","","","","",""]
["SE",13.23,49.39,2.59,35.380000000000003,6.46,12.15,null,null,null,null,null,null,null,null,null,null,null,null,null,null,null,null,null,null,null,null,null,null,null,null,null,null,null,null,null,null,null,null,null,null,null,null,null,null,0,"","","","","",""]
["CV(%)",26.65,86.45,15.29,54.77,19.809999999999999,15.74,null,null,null,null,null,null,null,null,null,null,null,null,null,null,null,null,null,null,null,null,null,null,null,null,null,null,null,null,null,null,null,null,null,null,null,null,null,null,0,"","","","","",""]
["",null,null,null,null,null,null,null,null,null,null,null,null,null,null,null,null,null,null,null,null,null,null,null,null,null,null,null,null,null,null,null,null,null,null,null,null,null,null,null,null,null,null,null,null,0,"","","","","",""]
["Income after taxes",null,null,null,null,null,null,null,null,null,null,null,null,null,null,null,null,null,null,null,null,null,null,null,null,null,null,null,null,null,null,null,null,null,null,null,null,null,null,null,null,null,null,null,null,0,"","","","","",""]
["Mean",56437,10254,26901,43389,66824,134959,null,null,null,null,null,null,null,null,null,null,null,null,null,null,null,null,null,null,null,null,null,null,null,null,null,null,null,null,null,null,null,null,null,null,null,null,null,null,0,"","","","","",""]
["Share",87.6,104.4,102,94.9,89.8,81.3,null,null,null,null,null,null,null,null,null,null,null,null,null,null,null,null,null,null,null,null,null,null,null,null,null,null,null,null,null,null,null,null,null,null,null,null,null,null,0,"","","","","",""]
["SE",774.9,187.73,275.27,410.92,436.54,2196.67,null,null,null,null,null,null,null,null,null,null,null,null,null,null,null,null,null,null,null,null,null,null,null,null,null,null,null,null,null,null,null,null,null,null,null,null,null,null,0,"","","","","",""]
["CV(%)",1.37,1.83,1.02,0.95,0.65,1.63,null,null,null,null,null,null,null,null,null,null,null,null,null,null,null,null,null,null,null,null,null,null,null,null,null,null,null,null,null,null,null,null,null,null,null,null,null,null,0,"","","","","",""]
["",null,null,null,null,null,null,null,null,null,null,null,null,null,null,null,null,null,null,null,null,null,null,null,null,null,null,null,null,null,null,null,null,null,null,null,null,null,null,null,null,null,null,null,null,0,"","","","","",""]
["Addenda:",null,null,null,null,null,null,null,null,null,null,null,null,null,null,null,null,null,null,null,null,null,null,null,null,null,null,null,null,null,null,null,null,null,null,null,null,null,null,null,null,null,null,null,null,0,"","","","","",""]
["",null,null,null,null,null,null,null,null,null,null,null,null,null,null,null,null,null,null,null,null,null,null,null,null,null,null,null,null,null,null,null,null,null,null,null,null,null,null,null,null,null,null,null,null,0,"","","","","",""]
["Net change in total assets and liabilities",null,null,null,null,null,null,null,null,null,null,null,null,null,null,null,null,null,null,null,null,null,null,null,null,null,null,null,null,null,null,null,null,null,null,null,null,null,null,null,null,null,null,null,null,0,"","","","","",""]
["Mean",12691,1126,12888,2929,11179,35380,null,null,null,null,null,null,null,null,null,null,null,null,null,null,null,null,null,null,null,null,null,null,null,null,null,null,null,null,null,null,null,null,null,null,null,null,null,null,0,"","","","","",""]
["SE",3174.04,1797.22,12782.57,1868.09,2382.75,12787.75,null,null,null,null,null,null,null,null,null,null,null,null,null,null,null,null,null,null,null,null,null,null,null,null,null,null,null,null,null,null,null,null,null,null,null,null,null,null,0,"","","","","",""]
["CV(%)",25.01,159.55000000000001,99.18,63.78,21.31,36.14,null,null,null,null,null,null,null,null,null,null,null,null,null,null,null,null,null,null,null,null,null,null,null,null,null,null,null,null,null,null,null,null,null,null,null,null,null,null,0,"","","","","",""]
["Net change in total assets",null,null,null,null,null,null,null,null,null,null,null,null,null,null,null,null,null,null,null,null,null,null,null,null,null,null,null,null,null,null,null,null,null,null,null,null,null,null,null,null,null,null,null,null,0,"","","","","",""]
["Mean",21207,3771,16846,7779,17996,59736,null,null,null,null,null,null,null,null,null,null,null,null,null,null,null,null,null,null,null,null,null,null,null,null,null,null,null,null,null,null,null,null,null,null,null,null,null,null,0,"","","","","",""]
["SE",3206.6,1828.64,12564.46,1699.93,2304.08,13477.41,null,null,null,null,null,null,null,null,null,null,null,null,null,null,null,null,null,null,null,null,null,null,null,null,null,null,null,null,null,null,null,null,null,null,null,null,null,null,0,"","","","","",""]
["CV(%)",15.12,48.49,74.58,21.85,12.8,22.56,null,null,null,null,null,null,null,null,null,null,null,null,null,null,null,null,null,null,null,null,null,null,null,null,null,null,null,null,null,null,null,null,null,null,null,null,null,null,0,"","","","","",""]
["Net change in total liabilities",null,null,null,null,null,null,null,null,null,null,null,null,null,null,null,null,null,null,null,null,null,null,null,null,null,null,null,null,null,null,null,null,null,null,null,null,null,null,null,null,null,null,null,null,0,"","","","","",""]
["Mean",8516,2645,3958,4849,6818,24356,null,null,null,null,null,null,null,null,null,null,null,null,null,null,null,null,null,null,null,null,null,null,null,null,null,null,null,null,null,null,null,null,null,null,null,null,null,null,0,"","","","","",""]
["SE",736.9,783.67,1526.32,770.34,1049.26,3064.71,null,null,null,null,null,null,null,null,null,null,null,null,null,null,null,null,null,null,null,null,null,null,null,null,null,null,null,null,null,null,null,null,null,null,null,null,null,null,0,"","","","","",""]
["CV(%)",8.65,29.63,38.57,15.88,15.39,12.58,null,null,null,null,null,null,null,null,null,null,null,null,null,null,null,null,null,null,null,null,null,null,null,null,null,null,null,null,null,null,null,null,null,null,null,null,null,null,0,"","","","","",""]
["",null,null,null,null,null,null,null,null,null,null,null,null,null,null,null,null,null,null,null,null,null,null,null,null,null,null,null,null,null,null,null,null,null,null,null,null,null,null,null,null,null,null,null,null,0,"","","","","",""]
["Other financial information:",null,null,null,null,null,null,null,null,null,null,null,null,null,null,null,null,null,null,null,null,null,null,null,null,null,null,null,null,null,null,null,null,null,null,null,null,null,null,null,null,null,null,null,null,0,"","","","","",""]
["Other money receipts",null,null,null,null,null,null,null,null,null,null,null,null,null,null,null,null,null,null,null,null,null,null,null,null,null,null,null,null,null,null,null,null,null,null,null,null,null,null,null,null,null,null,null,null,0,"","","","","",""]
["Mean",619,319,450,627,561,1139,null,null,null,null,null,null,null,null,null,null,null,null,null,null,null,null,null,null,null,null,null,null,null,null,null,null,null,null,null,null,null,null,null,null,null,null,null,null,0,"","","","","",""]
["SE",115.16,66.62,145.94,226.86,211.66,383.02,null,null,null,null,null,null,null,null,null,null,null,null,null,null,null,null,null,null,null,null,null,null,null,null,null,null,null,null,null,null,null,null,null,null,null,null,null,null,0,"","","","","",""]
["CV(%)",18.61,20.91,32.4,36.21,37.76,33.64,null,null,null,null,null,null,null,null,null,null,null,null,null,null,null,null,null,null,null,null,null,null,null,null,null,null,null,null,null,null,null,null,null,null,null,null,null,null,0,"","","","","",""]
["Mortgage principal paid on owned property",null,null,null,null,null,null,null,null,null,null,null,null,null,null,null,null,null,null,null,null,null,null,null,null,null,null,null,null,null,null,null,null,null,null,null,null,null,null,null,null,null,null,null,null,0,"","","","","",""]
["Mean",-1835,-435,-733,-1163,-2280,-4568,null,null,null,null,null,null,null,null,null,null,null,null,null,null,null,null,null,null,null,null,null,null,null,null,null,null,null,null,null,null,null,null,null,null,null,null,null,null,0,"","","","","",""]
["SE",43.82,36.44,36.18,57.5,92.66,132.08000000000001,null,null,null,null,null,null,null,null,null,null,null,null,null,null,null,null,null,null,null,null,null,null,null,null,null,null,null,null,null,null,null,null,null,null,null,null,null,null,0,"","","","","",""]
["CV(%)",-2.39,-8.3699999999999992,-4.93,-4.9400000000000004,-4.0599999999999996,-2.89,null,null,null,null,null,null,null,null,null,null,null,null,null,null,null,null,null,null,null,null,null,null,null,null,null,null,null,null,null,null,null,null,null,null,null,null,null,null,0,"","","","","",""]
["Estimated market value of owned home",null,null,null,null,null,null,null,null,null,null,null,null,null,null,null,null,null,null,null,null,null,null,null,null,null,null,null,null,null,null,null,null,null,null,null,null,null,null,null,null,null,null,null,null,0,"","","","","",""]
["Mean",156606,63522,95269,113822,167571,343259,null,null,null,null,null,null,null,null,null,null,null,null,null,null,null,null,null,null,null,null,null,null,null,null,null,null,null,null,null,null,null,null,null,null,null,null,null,null,0,"","","","","",""]
["SE",2677.05,2994.84,3563.09,3007.42,3226.63,9138.76,null,null,null,null,null,null,null,null,null,null,null,null,null,null,null,null,null,null,null,null,null,null,null,null,null,null,null,null,null,null,null,null,null,null,null,null,null,null,0,"","","","","",""]
["CV(%)",1.71,4.71,3.74,2.64,1.93,2.66,null,null,null,null,null,null,null,null,null,null,null,null,null,null,null,null,null,null,null,null,null,null,null,null,null,null,null,null,null,null,null,null,null,null,null,null,null,null,0,"","","","","",""]
["Estimated monthly rental value of owned home",null,null,null,null,null,null,null,null,null,null,null,null,null,null,null,null,null,null,null,null,null,null,null,null,null,null,null,null,null,null,null,null,null,null,null,null,null,null,null,null,null,null,null,null,0,"","","","","",""]
["Mean",894,417,599,714,1018,1725,null,null,null,null,null,null,null,null,null,null,null,null,null,null,null,null,null,null,null,null,null,null,null,null,null,null,null,null,null,null,null,null,null,null,null,null,null,null,0,"","","","","",""]
["SE",10.7,11.2,17.05,16.61,16.309999999999999,23.26,null,null,null,null,null,null,null,null,null,null,null,null,null,null,null,null,null,null,null,null,null,null,null,null,null,null,null,null,null,null,null,null,null,null,null,null,null,null,0,"","","","","",""]
["CV(%)",1.2,2.68,2.85,2.33,1.6,1.35,null,null,null,null,null,null,null,null,null,null,null,null,null,null,null,null,null,null,null,null,null,null,null,null,null,null,null,null,null,null,null,null,null,null,null,null,null,null,0,"","","","","",""]
["",null,null,null,null,null,null,null,null,null,null,null,null,null,null,null,null,null,null,null,null,null,null,null,null,null,null,null,null,null,null,null,null,null,null,null,null,null,null,null,null,null,null,null,null,0,"","","","","",""]
["Gifts of goods and services, total",null,null,null,null,null,null,null,null,null,null,null,null,null,null,null,null,null,null,null,null,null,null,null,null,null,null,null,null,null,null,null,null,null,null,null,null,null,null,null,null,null,null,null,null,0,"","","","","",""]
["Mean",1068,396,545,732,1089,2580,null,null,null,null,null,null,null,null,null,null,null,null,null,null,null,null,null,null,null,null,null,null,null,null,null,null,null,null,null,null,null,null,null,null,null,null,null,null,0,"","","","","",""]
["SE",58.78,74.02,60.28,56.33,87.3,233.3,null,null,null,null,null,null,null,null,null,null,null,null,null,null,null,null,null,null,null,null,null,null,null,null,null,null,null,null,null,null,null,null,null,null,null,null,null,null,0,"","","","","",""]
["CV(%)",5.5,18.7,11.06,7.69,8.02,9.0399999999999991,null,null,null,null,null,null,null,null,null,null,null,null,null,null,null,null,null,null,null,null,null,null,null,null,null,null,null,null,null,null,null,null,null,null,null,null,null,null,0,"","","","","",""]
["Food",null,null,null,null,null,null,null,null,null,null,null,null,null,null,null,null,null,null,null,null,null,null,null,null,null,null,null,null,null,null,null,null,null,null,null,null,null,null,null,null,null,null,null,null,0,"","","","","",""]
["Mean",72,16,28,70,75,171,null,null,null,null,null,null,null,null,null,null,null,null,null,null,null,null,null,null,null,null,null,null,null,null,null,null,null,null,null,null,null,null,null,null,null,null,null,null,0,"","","","","",""]
["SE",5.62,3.02,5.4,13.67,13.97,20.13,null,null,null,null,null,null,null,null,null,null,null,null,null,null,null,null,null,null,null,null,null,null,null,null,null,null,null,null,null,null,null,null,null,null,null,null,null,null,0,"","","","","",""]
["CV(%)",7.8,18.87,19.41,19.399999999999999,18.62,11.79,null,null,null,null,null,null,null,null,null,null,null,null,null,null,null,null,null,null,null,null,null,null,null,null,null,null,null,null,null,null,null,null,null,null,null,null,null,null,0,"","","","","",""]
["Alcoholic beverages",null,null,null,null,null,null,null,null,null,null,null,null,null,null,null,null,null,null,null,null,null,null,null,null,null,null,null,null,null,null,null,null,null,null,null,null,null,null,null,null,null,null,null,null,0,"","","","","",""]
["Mean",11,4,5,11,17,19,null,null,null,null,null,null,null,null,null,null,null,null,null,null,null,null,null,null,null,null,null,null,null,null,null,null,null,null,null,null,null,null,null,null,null,null,null,null,0,"","","","","",""]
["SE",1.62,2.39,1.95,3.58,5.73,3.65,null,null,null,null,null,null,null,null,null,null,null,null,null,null,null,null,null,null,null,null,null,null,null,null,null,null,null,null,null,null,null,null,null,null,null,null,null,null,0,"","","","","",""]
["CV(%)",14.4,58.38,41.53,33.47,33.19,18.89,null,null,null,null,null,null,null,null,null,null,null,null,null,null,null,null,null,null,null,null,null,null,null,null,null,null,null,null,null,null,null,null,null,null,null,null,null,null,0,"","","","","",""]
["Housing",null,null,null,null,null,null,null,null,null,null,null,null,null,null,null,null,null,null,null,null,null,null,null,null,null,null,null,null,null,null,null,null,null,null,null,null,null,null,null,null,null,null,null,null,0,"","","","","",""]
["Mean",210,99,122,175,217,439,null,null,null,null,null,null,null,null,null,null,null,null,null,null,null,null,null,null,null,null,null,null,null,null,null,null,null,null,null,null,null,null,null,null,null,null,null,null,0,"","","","","",""]
["SE",13.79,13.8,23.94,24.86,30.6,46.96,null,null,null,null,null,null,null,null,null,null,null,null,null,null,null,null,null,null,null,null,null,null,null,null,null,null,null,null,null,null,null,null,null,null,null,null,null,null,0,"","","","","",""]
["CV(%)",6.56,13.98,19.68,14.2,14.11,10.69,null,null,null,null,null,null,null,null,null,null,null,null,null,null,null,null,null,null,null,null,null,null,null,null,null,null,null,null,null,null,null,null,null,null,null,null,null,null,0,"","","","","",""]
["Housekeeping supplies",null,null,null,null,null,null,null,null,null,null,null,null,null,null,null,null,null,null,null,null,null,null,null,null,null,null,null,null,null,null,null,null,null,null,null,null,null,null,null,null,null,null,null,null,0,"","","","","",""]
["Mean",24,7,11,21,32,46,null,null,null,null,null,null,null,null,null,null,null,null,null,null,null,null,null,null,null,null,null,null,null,null,null,null,null,null,null,null,null,null,null,null,null,null,null,null,0,"","","","","",""]
["SE",2.3199999999999998,1.85,2.58,4.1900000000000004,6,7.2,null,null,null,null,null,null,null,null,null,null,null,null,null,null,null,null,null,null,null,null,null,null,null,null,null,null,null,null,null,null,null,null,null,null,null,null,null,null,0,"","","","","",""]
["CV(%)",9.86,25.15,22.77,19.66,18.809999999999999,15.79,null,null,null,null,null,null,null,null,null,null,null,null,null,null,null,null,null,null,null,null,null,null,null,null,null,null,null,null,null,null,null,null,null,null,null,null,null,null,0,"","","","","",""]
["Household textiles",null,null,null,null,null,null,null,null,null,null,null,null,null,null,null,null,null,null,null,null,null,null,null,null,null,null,null,null,null,null,null,null,null,null,null,null,null,null,null,null,null,null,null,null,{"$f":"+J701","v":0},{"$f":"IF($I701=1,B702,\"\")","v":""},{"$f":"IF($I701=1,C702,\"\")","v":""},{"$f":"IF($I701=1,D702,\"\")","v":""},{"$f":"IF($I701=1,E702,\"\")","v":""},{"$f":"IF($I701=1,F702,\"\")","v":""},{"$f":"IF($I701=1,G702,\"\")","v":""}]
["Mean",6,7,5,4,6,8,null,null,null,null,null,null,null,null,null,null,null,null,null,null,null,null,null,null,null,null,null,null,null,null,null,null,null,null,null,null,null,null,null,null,null,null,null,null,0,"","","","","",""]
["SE",0.99,2.52,2.12,1.4,2.54,2.2799999999999998,null,null,null,null,null,null,null,null,null,null,null,null,null,null,null,null,null,null,null,null,null,null,null,null,null,null,null,null,null,null,null,null,null,null,null,null,null,null,0,"","","","","",""]
["CV(%)",16.52,35.61,42.44,34.93,40.44,29.74,null,null,null,null,null,null,null,null,null,null,null,null,null,null,null,null,null,null,null,null,null,null,null,null,null,null,null,null,null,null,null,null,null,null,null,null,null,null,0,"","","","","",""]
["Appliances and miscellaneous housewares",null,null,null,null,null,null,null,null,null,null,null,null,null,null,null,null,null,null,null,null,null,null,null,null,null,null,null,null,null,null,null,null,null,null,null,null,null,null,null,null,null,null,null,null,0,"","","","","",""]
["Mean",20,8,10,14,23,43,null,null,null,null,null,null,null,null,null,null,null,null,null,null,null,null,null,null,null,null,null,null,null,null,null,null,null,null,null,null,null,null,null,null,null,null,null,null,0,"","","","","",""]
["SE",2.67,2.41,3.1,3.47,4.5199999999999996,10.73,null,null,null,null,null,null,null,null,null,null,null,null,null,null,null,null,null,null,null,null,null,null,null,null,null,null,null,null,null,null,null,null,null,null,null,null,null,null,0,"","","","","",""]
["CV(%)",13.66,31.75,31.67,24.93,19.52,24.73,null,null,null,null,null,null,null,null,null,null,null,null,null,null,null,null,null,null,null,null,null,null,null,null,null,null,null,null,null,null,null,null,null,null,null,null,null,null,0,"","","","","",""]
["Major appliances",null,null,null,null,null,null,null,null,null,null,null,null,null,null,null,null,null,null,null,null,null,null,null,null,null,null,null,null,null,null,null,null,null,null,null,null,null,null,null,null,null,null,null,null,0,"","","","","",""]
["Mean",7,3,4,3,7,17,null,null,null,null,null,null,null,null,null,null,null,null,null,null,null,null,null,null,null,null,null,null,null,null,null,null,null,null,null,null,null,null,null,null,null,null,null,null,0,"","","","","",""]
["SE",1.37,1.24,2.16,1.38,2.8,5.9,null,null,null,null,null,null,null,null,null,null,null,null,null,null,null,null,null,null,null,null,null,null,null,null,null,null,null,null,null,null,null,null,null,null,null,null,null,null,0,"","","","","",""]
["CV(%)",20.09,46.76,52.66,42.8,37.61,35.33,null,null,null,null,null,null,null,null,null,null,null,null,null,null,null,null,null,null,null,null,null,null,null,null,null,null,null,null,null,null,null,null,null,null,null,null,null,null,0,"","","","","",""]
["Small appliances and miscellaneous housewares",null,null,null,null,null,null,null,null,null,null,null,null,null,null,null,null,null,null,null,null,null,null,null,null,null,null,null,null,null,null,null,null,null,null,null,null,null,null,null,null,null,null,null,null,0,"","","","","",""]
["Mean",13,5,6,11,16,27,null,null,null,null,null,null,null,null,null,null,null,null,null,null,null,null,null,null,null,null,null,null,null,null,null,null,null,null,null,null,null,null,null,null,null,null,null,null,0,"","","","","",""]
["SE",2.38,2.02,2.11,3.18,4.49,9,null,null,null,null,null,null,null,null,null,null,null,null,null,null,null,null,null,null,null,null,null,null,null,null,null,null,null,null,null,null,null,null,null,null,null,null,null,null,0,"","","","","",""]
["CV(%)",18.71,40.81,37.08,29.67,28.63,33.72,null,null,null,null,null,null,null,null,null,null,null,null,null,null,null,null,null,null,null,null,null,null,null,null,null,null,null,null,null,null,null,null,null,null,null,null,null,null,0,"","","","","",""]
["Miscellaneous household equipment",null,null,null,null,null,null,null,null,null,null,null,null,null,null,null,null,null,null,null,null,null,null,null,null,null,null,null,null,null,null,null,null,null,null,null,null,null,null,null,null,null,null,null,null,0,"","","","","",""]
["Mean",36,13,11,44,36,76,null,null,null,null,null,null,null,null,null,null,null,null,null,null,null,null,null,null,null,null,null,null,null,null,null,null,null,null,null,null,null,null,null,null,null,null,null,null,0,"","","","","",""]
["SE",3.75,3.36,1.69,8.33,5.41,13.49,null,null,null,null,null,null,null,null,null,null,null,null,null,null,null,null,null,null,null,null,null,null,null,null,null,null,null,null,null,null,null,null,null,null,null,null,null,null,0,"","","","","",""]
["CV(%)",10.45,25.88,15.29,18.91,15.23,17.78,null,null,null,null,null,null,null,null,null,null,null,null,null,null,null,null,null,null,null,null,null,null,null,null,null,null,null,null,null,null,null,null,null,null,null,null,null,null,0,"","","","","",""]
["Other housing",null,null,null,null,null,null,null,null,null,null,null,null,null,null,null,null,null,null,null,null,null,null,null,null,null,null,null,null,null,null,null,null,null,null,null,null,null,null,null,null,null,null,null,null,0,"","","","","",""]
["Mean",125,64,84,92,120,267,null,null,null,null,null,null,null,null,null,null,null,null,null,null,null,null,null,null,null,null,null,null,null,null,null,null,null,null,null,null,null,null,null,null,null,null,null,null,0,"","","","","",""]
["SE",11.66,11.92,22.92,20.59,27.8,35.78,null,null,null,null,null,null,null,null,null,null,null,null,null,null,null,null,null,null,null,null,null,null,null,null,null,null,null,null,null,null,null,null,null,null,null,null,null,null,0,"","","","","",""]
["CV(%)",9.31,18.71,27.13,22.45,23.16,13.43,null,null,null,null,null,null,null,null,null,null,null,null,null,null,null,null,null,null,null,null,null,null,null,null,null,null,null,null,null,null,null,null,null,null,null,null,null,null,0,"","","","","",""]
["Apparel and services",null,null,null,null,null,null,null,null,null,null,null,null,null,null,null,null,null,null,null,null,null,null,null,null,null,null,null,null,null,null,null,null,null,null,null,null,null,null,null,null,null,null,null,null,0,"","","","","",""]
["Mean",206,92,135,152,246,402,null,null,null,null,null,null,null,null,null,null,null,null,null,null,null,null,null,null,null,null,null,null,null,null,null,null,null,null,null,null,null,null,null,null,null,null,null,null,0,"","","","","",""]
["SE",13.93,14.78,19.05,17.36,34.380000000000003,50.78,null,null,null,null,null,null,null,null,null,null,null,null,null,null,null,null,null,null,null,null,null,null,null,null,null,null,null,null,null,null,null,null,null,null,null,null,null,null,0,"","","","","",""]
["CV(%)",6.77,16.05,14.08,11.39,13.98,12.63,null,null,null,null,null,null,null,null,null,null,null,null,null,null,null,null,null,null,null,null,null,null,null,null,null,null,null,null,null,null,null,null,null,null,null,null,null,null,0,"","","","","",""]
["Males, 2 and over",null,null,null,null,null,null,null,null,null,null,null,null,null,null,null,null,null,null,null,null,null,null,null,null,null,null,null,null,null,null,null,null,null,null,null,null,null,null,null,null,null,null,null,null,0,"","","","","",""]
["Mean",52,25,26,32,84,93,null,null,null,null,null,null,null,null,null,null,null,null,null,null,null,null,null,null,null,null,null,null,null,null,null,null,null,null,null,null,null,null,null,null,null,null,null,null,0,"","","","","",""]
["SE",4.67,7.41,5.64,6.24,19.46,14.27,null,null,null,null,null,null,null,null,null,null,null,null,null,null,null,null,null,null,null,null,null,null,null,null,null,null,null,null,null,null,null,null,null,null,null,null,null,null,0,"","","","","",""]
["CV(%)",8.9499999999999993,29.39,21.32,19.72,23.15,15.29,null,null,null,null,null,null,null,null,null,null,null,null,null,null,null,null,null,null,null,null,null,null,null,null,null,null,null,null,null,null,null,null,null,null,null,null,null,null,0,"","","","","",""]
["Females, 2 and over",null,null,null,null,null,null,null,null,null,null,null,null,null,null,null,null,null,null,null,null,null,null,null,null,null,null,null,null,null,null,null,null,null,null,null,null,null,null,null,null,null,null,null,null,0,"","","","","",""]
["Mean",74,26,56,59,83,146,null,null,null,null,null,null,null,null,null,null,null,null,null,null,null,null,null,null,null,null,null,null,null,null,null,null,null,null,null,null,null,null,null,null,null,null,null,null,0,"","","","","",""]
["SE",8.39,5.3,14.43,9.39,18.16,31.48,null,null,null,null,null,null,null,null,null,null,null,null,null,null,null,null,null,null,null,null,null,null,null,null,null,null,null,null,null,null,null,null,null,null,null,null,null,null,0,"","","","","",""]
["CV(%)",11.31,20.25,25.67,15.79,21.86,21.55,null,null,null,null,null,null,null,null,null,null,null,null,null,null,null,null,null,null,null,null,null,null,null,null,null,null,null,null,null,null,null,null,null,null,null,null,null,null,0,"","","","","",""]
["Children under 2",null,null,null,null,null,null,null,null,null,null,null,null,null,null,null,null,null,null,null,null,null,null,null,null,null,null,null,null,null,null,null,null,null,null,null,null,null,null,null,null,null,null,null,null,0,"","","","","",""]
["Mean",31,10,21,30,31,64,null,null,null,null,null,null,null,null,null,null,null,null,null,null,null,null,null,null,null,null,null,null,null,null,null,null,null,null,null,null,null,null,null,null,null,null,null,null,0,"","","","","",""]
["SE",2.8,2.4,5.15,6.35,5.73,10.36,null,null,null,null,null,null,null,null,null,null,null,null,null,null,null,null,null,null,null,null,null,null,null,null,null,null,null,null,null,null,null,null,null,null,null,null,null,null,0,"","","","","",""]
["CV(%)",8.98,24.37,25.09,20.97,18.22,16.23,null,null,null,null,null,null,null,null,null,null,null,null,null,null,null,null,null,null,null,null,null,null,null,null,null,null,null,null,null,null,null,null,null,null,null,null,null,null,0,"","","","","",""]
["Other apparel products and services",null,null,null,null,null,null,null,null,null,null,null,null,null,null,null,null,null,null,null,null,null,null,null,null,null,null,null,null,null,null,null,null,null,null,null,null,null,null,null,null,null,null,null,null,0,"","","","","",""]
["Mean",48,31,32,31,47,99,null,null,null,null,null,null,null,null,null,null,null,null,null,null,null,null,null,null,null,null,null,null,null,null,null,null,null,null,null,null,null,null,null,null,null,null,null,null,0,"","","","","",""]
["SE",6.33,7.6,8.2799999999999994,7.36,13.31,21.57,null,null,null,null,null,null,null,null,null,null,null,null,null,null,null,null,null,null,null,null,null,null,null,null,null,null,null,null,null,null,null,null,null,null,null,null,null,null,0,"","","","","",""]
["CV(%)",13.18,24.6,25.76,23.7,28.15,21.79,null,null,null,null,null,null,null,null,null,null,null,null,null,null,null,null,null,null,null,null,null,null,null,null,null,null,null,null,null,null,null,null,null,null,null,null,null,null,0,"","","","","",""]
["Jewelry and watches",null,null,null,null,null,null,null,null,null,null,null,null,null,null,null,null,null,null,null,null,null,null,null,null,null,null,null,null,null,null,null,null,null,null,null,null,null,null,null,null,null,null,null,null,0,"","","","","",""]
["Mean",17,5,7,8,16,49,null,null,null,null,null,null,null,null,null,null,null,null,null,null,null,null,null,null,null,null,null,null,null,null,null,null,null,null,null,null,null,null,null,null,null,null,null,null,0,"","","","","",""]
["SE",4.47,2.27,2.82,3.18,5.25,19.940000000000001,null,null,null,null,null,null,null,null,null,null,null,null,null,null,null,null,null,null,null,null,null,null,null,null,null,null,null,null,null,null,null,null,null,null,null,null,null,null,0,"","","","","",""]
["CV(%)",26.21,42.97,41.45,39.53,32.799999999999997,40.54,null,null,null,null,null,null,null,null,null,null,null,null,null,null,null,null,null,null,null,null,null,null,null,null,null,null,null,null,null,null,null,null,null,null,null,null,null,null,0,"","","","","",""]
["All other apparel products and services",null,null,null,null,null,null,null,null,null,null,null,null,null,null,null,null,null,null,null,null,null,null,null,null,null,null,null,null,null,null,null,null,null,null,null,null,null,null,null,null,null,null,null,null,0,"","","","","",""]
["Mean",31,26,25,23,31,50,null,null,null,null,null,null,null,null,null,null,null,null,null,null,null,null,null,null,null,null,null,null,null,null,null,null,null,null,null,null,null,null,null,null,null,null,null,null,0,"","","","","",""]
["SE",3.92,7.16,7.02,6.83,11.83,8.48,null,null,null,null,null,null,null,null,null,null,null,null,null,null,null,null,null,null,null,null,null,null,null,null,null,null,null,null,null,null,null,null,null,null,null,null,null,null,0,"","","","","",""]
["CV(%)",12.64,27.96,27.71,29.72,37.85,17.03,null,null,null,null,null,null,null,null,null,null,null,null,null,null,null,null,null,null,null,null,null,null,null,null,null,null,null,null,null,null,null,null,null,null,null,null,null,null,0,"","","","","",""]
["Transportation",null,null,null,null,null,null,null,null,null,null,null,null,null,null,null,null,null,null,null,null,null,null,null,null,null,null,null,null,null,null,null,null,null,null,null,null,null,null,null,null,null,null,null,null,0,"","","","","",""]
["Mean",109,53,104,69,68,252,null,null,null,null,null,null,null,null,null,null,null,null,null,null,null,null,null,null,null,null,null,null,null,null,null,null,null,null,null,null,null,null,null,null,null,null,null,null,0,"","","","","",""]
["SE",14.37,21.96,38.369999999999997,15.35,22.98,57.95,null,null,null,null,null,null,null,null,null,null,null,null,null,null,null,null,null,null,null,null,null,null,null,null,null,null,null,null,null,null,null,null,null,null,null,null,null,null,0,"","","","","",""]
["CV(%)",13.19,41.81,36.92,22.3,33.99,22.98,null,null,null,null,null,null,null,null,null,null,null,null,null,null,null,null,null,null,null,null,null,null,null,null,null,null,null,null,null,null,null,null,null,null,null,null,null,null,0,"","","","","",""]
["Healthcare",null,null,null,null,null,null,null,null,null,null,null,null,null,null,null,null,null,null,null,null,null,null,null,null,null,null,null,null,null,null,null,null,null,null,null,null,null,null,null,null,null,null,null,null,0,"","","","","",""]
["Mean",38,68,4,17,56,45,null,null,null,null,null,null,null,null,null,null,null,null,null,null,null,null,null,null,null,null,null,null,null,null,null,null,null,null,null,null,null,null,null,null,null,null,null,null,0,"","","","","",""]
["SE",13.25,55.41,1.38,6.91,34.380000000000003,15.07,null,null,null,null,null,null,null,null,null,null,null,null,null,null,null,null,null,null,null,null,null,null,null,null,null,null,null,null,null,null,null,null,null,null,null,null,null,null,0,"","","","","",""]
["CV(%)",34.93,81.99,31.94,41.46,60.95,33.65,null,null,null,null,null,null,null,null,null,null,null,null,null,null,null,null,null,null,null,null,null,null,null,null,null,null,null,null,null,null,null,null,null,null,null,null,null,null,0,"","","","","",""]
["Entertainment",null,null,null,null,null,null,null,null,null,null,null,null,null,null,null,null,null,null,null,null,null,null,null,null,null,null,null,null,null,null,null,null,null,null,null,null,null,null,null,null,null,null,null,null,0,"","","","","",""]
["Mean",84,23,61,52,118,165,null,null,null,null,null,null,null,null,null,null,null,null,null,null,null,null,null,null,null,null,null,null,null,null,null,null,null,null,null,null,null,null,null,null,null,null,null,null,0,"","","","","",""]
["SE",7.07,9.8699999999999992,23.03,6.11,21.21,14.5,null,null,null,null,null,null,null,null,null,null,null,null,null,null,null,null,null,null,null,null,null,null,null,null,null,null,null,null,null,null,null,null,null,null,null,null,null,null,0,"","","","","",""]
["CV(%)",8.4499999999999993,43.48,37.86,11.78,17.91,8.8000000000000007,null,null,null,null,null,null,null,null,null,null,null,null,null,null,null,null,null,null,null,null,null,null,null,null,null,null,null,null,null,null,null,null,null,null,null,null,null,null,0,"","","","","",""]
["Toys, games, arts and crafts, and tricycles",null,null,null,null,null,null,null,null,null,null,null,null,null,null,null,null,null,null,null,null,null,null,null,null,null,null,null,null,null,null,null,null,null,null,null,null,null,null,null,null,null,null,null,null,{"$f":"+J765","v":0},{"$f":"IF($I765=1,B766,\"\")","v":""},{"$f":"IF($I765=1,C766,\"\")","v":""},{"$f":"IF($I765=1,D766,\"\")","v":""},{"$f":"IF($I765=1,E766,\"\")","v":""},{"$f":"IF($I765=1,F766,\"\")","v":""},{"$f":"IF($I765=1,G766,\"\")","v":""}]
["Mean",26,3,11,20,46,50,null,null,null,null,null,null,null,null,null,null,null,null,null,null,null,null,null,null,null,null,null,null,null,null,null,null,null,null,null,null,null,null,null,null,null,null,null,null,0,"","","","","",""]
["SE",3.65,1.17,3.72,4.25,16.079999999999998,9.1999999999999993,null,null,null,null,null,null,null,null,null,null,null,null,null,null,null,null,null,null,null,null,null,null,null,null,null,null,null,null,null,null,null,null,null,null,null,null,null,null,0,"","","","","",""]
["CV(%)",13.88,38.39,32.72,21.05,34.69,18.260000000000002,null,null,null,null,null,null,null,null,null,null,null,null,null,null,null,null,null,null,null,null,null,null,null,null,null,null,null,null,null,null,null,null,null,null,null,null,null,null,0,"","","","","",""]
["Other entertainment",null,null,null,null,null,null,null,null,null,null,null,null,null,null,null,null,null,null,null,null,null,null,null,null,null,null,null,null,null,null,null,null,null,null,null,null,null,null,null,null,null,null,null,null,0,"","","","","",""]
["Mean",57,20,49,32,72,114,null,null,null,null,null,null,null,null,null,null,null,null,null,null,null,null,null,null,null,null,null,null,null,null,null,null,null,null,null,null,null,null,null,null,null,null,null,null,0,"","","","","",""]
["SE",6.09,9.89,22.42,5.33,11.33,13.66,null,null,null,null,null,null,null,null,null,null,null,null,null,null,null,null,null,null,null,null,null,null,null,null,null,null,null,null,null,null,null,null,null,null,null,null,null,null,0,"","","","","",""]
["CV(%)",10.6,50.26,45.35,16.79,15.71,11.95,null,null,null,null,null,null,null,null,null,null,null,null,null,null,null,null,null,null,null,null,null,null,null,null,null,null,null,null,null,null,null,null,null,null,null,null,null,null,0,"","","","","",""]
["Personal care products and services",null,null,null,null,null,null,null,null,null,null,null,null,null,null,null,null,null,null,null,null,null,null,null,null,null,null,null,null,null,null,null,null,null,null,null,null,null,null,null,null,null,null,null,null,0,"","","","","",""]
["Mean",14,4,6,13,14,31,null,null,null,null,null,null,null,null,null,null,null,null,null,null,null,null,null,null,null,null,null,null,null,null,null,null,null,null,null,null,null,null,null,null,null,null,null,null,0,"","","","","",""]
["SE",2.02,1.45,2.67,5.45,4.91,6.91,null,null,null,null,null,null,null,null,null,null,null,null,null,null,null,null,null,null,null,null,null,null,null,null,null,null,null,null,null,null,null,null,null,null,null,null,null,null,0,"","","","","",""]
["CV(%)",14.76,33.68,41.27,42.96,35.53,22.27,null,null,null,null,null,null,null,null,null,null,null,null,null,null,null,null,null,null,null,null,null,null,null,null,null,null,null,null,null,null,null,null,null,null,null,null,null,null,0,"","","","","",""]
["Reading",null,null,null,null,null,null,null,null,null,null,null,null,null,null,null,null,null,null,null,null,null,null,null,null,null,null,null,null,null,null,null,null,null,null,null,null,null,null,null,null,null,null,null,null,0,"","","","","",""]
["Mean",5,1,3,4,5,10,null,null,null,null,null,null,null,null,null,null,null,null,null,null,null,null,null,null,null,null,null,null,null,null,null,null,null,null,null,null,null,null,null,null,null,null,null,null,0,"","","","","",""]
["SE",0.57999999999999996,0.31,0.82,0.91,1.55,2.41,null,null,null,null,null,null,null,null,null,null,null,null,null,null,null,null,null,null,null,null,null,null,null,null,null,null,null,null,null,null,null,null,null,null,null,null,null,null,0,"","","","","",""]
["CV(%)",12.59,29.33,29.64,21.09,32.67,23.69,null,null,null,null,null,null,null,null,null,null,null,null,null,null,null,null,null,null,null,null,null,null,null,null,null,null,null,null,null,null,null,null,null,null,null,null,null,null,0,"","","","","",""]
["Education",null,null,null,null,null,null,null,null,null,null,null,null,null,null,null,null,null,null,null,null,null,null,null,null,null,null,null,null,null,null,null,null,null,null,null,null,null,null,null,null,null,null,null,null,0,"","","","","",""]
["Mean",249,11,44,113,208,873,null,null,null,null,null,null,null,null,null,null,null,null,null,null,null,null,null,null,null,null,null,null,null,null,null,null,null,null,null,null,null,null,null,null,null,null,null,null,0,"","","","","",""]
["SE",40.119999999999997,3.85,18.100000000000001,25.92,53.24,179.89,null,null,null,null,null,null,null,null,null,null,null,null,null,null,null,null,null,null,null,null,null,null,null,null,null,null,null,null,null,null,null,null,null,null,null,null,null,null,0,"","","","","",""]
["CV(%)",16.079999999999998,35.4,41.24,22.96,25.56,20.6,null,null,null,null,null,null,null,null,null,null,null,null,null,null,null,null,null,null,null,null,null,null,null,null,null,null,null,null,null,null,null,null,null,null,null,null,null,null,0,"","","","","",""]
["All other gifts",null,null,null,null,null,null,null,null,null,null,null,null,null,null,null,null,null,null,null,null,null,null,null,null,null,null,null,null,null,null,null,null,null,null,null,null,null,null,null,null,null,null,null,null,0,"","","","","",""]
["Mean",70,26,33,56,64,173,null,null,null,null,null,null,null,null,null,null,null,null,null,null,null,null,null,null,null,null,null,null,null,null,null,null,null,null,null,null,null,null,null,null,null,null,null,null,0,"","","","","",""]
["SE",6.39,9.59,10.77,10.86,10.6,23.89,null,null,null,null,null,null,null,null,null,null,null,null,null,null,null,null,null,null,null,null,null,null,null,null,null,null,null,null,null,null,null,null,null,null,null,null,null,null,0,"","","","","",""]
["CV(%)",9.07,37.090000000000003,32.159999999999997,19.29,16.510000000000002,13.85,null,null,null,null,null,null,null,null,null,null,null,null,null,null,null,null,null,null,null,null,null,null,null,null,null,null,null,null,null,null,null,null,null,null,null,null,null,null,0,"","","","","",""]
[null,null,null,null,null,null,null,null,null,null,null,null,null,null,null,null,null,null,null,null,null,null,null,null,null,null,null,null,null,null,null,null,null,null,null,null,null,null,null,null,null,null,null,null,null,0,"","","","","",""]
["a Value is too small to display.",null,null,null,null,null,null,null,null,null,null,null,null,null,null,null,null,null,null,null,null,null,null,null,null,null,null,null,null,null,null,null,null,null,null,null,null,null,null,null,null,null,null,null,null,0,"","","","","",""]
["n.a. Not applicable.",null,null,null,null,null,null,null,null,null,null,null,null,null,null,null,null,null,null,null,null,null,null,null,null,null,null,null,null,null,null,null,null,null,null,null,null,null,null,null,null,null,null,null,null,0,"","","","","",""]
[null,null,null,null,null,null,null,null,null,null,null,null,null,null,null,null,null,null,null,null,null,null,null,null,null,null,null,null,null,null,null,null,null,null,null,null,null,null,null,null,null,null,null,null,null,0,"","","","","",""]
[null,null,null,null,null,null,null,null,null,null,null,null,null,null,null,null,null,null,null,null,null,null,null,null,null,null,null,null,null,null,null,null,null,null,null,null,null,null,null,null,null,null,null,null,null,0,"","","","","",""]
[null,null,null,null,null,null,null,null,null,null,null,null,null,null,null,null,null,null,null,null,null,null,null,null,null,null,null,null,null,null,null,null,null,null,null,null,null,null,null,null,null,null,null,null,null,0,"","","","","",""]
["Source: Consumer Expenditure Survey, U.S. Bureau of Labor Statistics, April, 2015",null,null,null,null,null,null,null,null,null,null,null,null,null,null,null,null,null,null,null,null,null,null,null,null,null,null,null,null,null,null,null,null,null,null,null,null,null,null,null,null,null,null,null,null,0,"","","","","",""]
[null,null,null,null,null,null,null,null,null,null,null,null,null,null,null,null,null,null,null,null,null,null,null,null,null,null,null,null,null,null,null,null,null,null,null,null,null,null,null,null,null,null,null,null,null,0,"","","","","",""]
[null,null,null,null,null,null,null,null,null,null,null,null,null,null,null,null,null,null,null,null,null,null,null,null,null,null,null,null,null,null,null,null,null,null,null,null,null,null,null,null,null,null,null,null,null,0,"","","","","",""]
[null,null,null,null,null,null,null,null,null,null,null,null,null,null,null,null,null,null,null,null,null,null,null,null,null,null,null,null,null,null,null,null,null,null,null,null,null,null,null,null,null,null,null,null,null,0,"","","","","",""]
[null,null,null,null,null,null,null,null,null,null,null,null,null,null,null,null,null,null,null,null,null,null,null,null,null,null,null,null,null,null,null,null,null,null,null,null,null,null,null,null,null,null,null,null,null,0,"","","","","",""]
[null,null,null,null,null,null,null,null,null,null,null,null,null,null,null,null,null,null,null,null,null,null,null,null,null,null,null,null,null,null,null,null,null,null,null,null,null,null,null,null,null,null,null,null,null,0,"","","","","",""]
[null,null,null,null,null,null,null,null,null,null,null,null,null,null,null,null,null,null,null,null,null,null,null,null,null,null,null,null,null,null,null,null,null,null,null,null,null,null,null,null,null,null,null,null,null,0,"","","","","",""]

{"sheet":"8.16-8.18","index":10,"n_rows":44,"n_cols":27,"rows_kept":44,"cut":false,"hidden":false,"merged":[]}
["This is a very simple speedometer using a donut chart. It displays"]
["the needle in the yellow range, but it can be be modified for",null,null,null,null,null,null,null,null,null,null,null,"Bullet charts"]
["displaying values in other ranges."]
[null,null,null,null,null,null,null,null,null,null,null,null,null,"Low"]
[null,null,null,null,null,null,null,null,null,null,null,null,null,1,0,null,2,0,null,3,0,null,4,0,null,5,0]
[{"$f":"+B6","v":180},180,180,180,180,180,180,null,null,null,null,null,null,1,{"$f":"RANDBETWEEN(40,60)","v":46},null,2,{"$f":"RANDBETWEEN(40,60)","v":50},null,3,{"$f":"RANDBETWEEN(40,60)","v":42},null,4,{"$f":"RANDBETWEEN(40,60)","v":53},null,5,{"$f":"RANDBETWEEN(40,60)","v":53}]
[60,60,60,60,60,60,60,null,null,null,null,null,null,"Average"]
[57,57,57,57,57,57,57,"-these must sum 60",null,null,null,null,null,1,{"$f":"+O6","v":46},null,2,{"$f":"+R6","v":50},null,3,{"$f":"+U6","v":42},null,4,{"$f":"+X6","v":53},null,5,{"$f":"+AA6","v":53}]
[2,2,2,2,2,2,2,"->needle",null,null,null,null,null,1,{"$f":"RANDBETWEEN(O8,O8+RANDBETWEEN(2,100))","v":68},null,2,{"$f":"RANDBETWEEN(R8,R8+RANDBETWEEN(2,100))","v":55},null,3,{"$f":"RANDBETWEEN(U8,U8+RANDBETWEEN(2,100))","v":80},null,4,{"$f":"RANDBETWEEN(X8,X8+RANDBETWEEN(2,100))","v":67},null,5,{"$f":"RANDBETWEEN(AA8,AA8+RANDBETWEEN(2,100))","v":101}]
[1,1,1,1,1,1,{"$f":"60-G8-G9","v":1},null,null,null,null,null,null,"High"]
[60,60,60,60,60,60,60,null,null,null,null,null,null,1,{"$f":"+O9","v":68},null,2,{"$f":"+R9","v":55},null,3,{"$f":"+U9","v":80},null,4,{"$f":"+X9","v":67},null,5,{"$f":"+AA9","v":101}]
[null,null,null,null,null,null,null,null,null,null,null,null,null,1,180,null,2,180,null,3,180,null,4,180,null,5,180]
[null,null,null,null,null,null,null,null,null,null,null,null,null,"Actual"]
[null,null,null,null,null,null,null,null,null,null,null,null,null,1,0,null,2,0,null,3,0,null,4,0,null,5,0]
[null,null,null,null,null,null,null,null,null,null,null,null,null,1,{"$f":"RANDBETWEEN(O14,O12)","v":98},null,2,{"$f":"RANDBETWEEN(R14,R12)","v":154},null,3,{"$f":"RANDBETWEEN(U14,U12)","v":16},null,4,{"$f":"RANDBETWEEN(X14,X12)","v":173},null,5,{"$f":"RANDBETWEEN(AA14,AA12)","v":18}]
[null,null,null,null,null,null,null,null,null,null,null,null,null,"Target"]
[null,null,null,null,null,null,null,null,null,null,null,null,null,1,{"$f":"RANDBETWEEN(O11,O12)","v":85},null,2,{"$f":"RANDBETWEEN(R11,R12)","v":69},null,3,{"$f":"RANDBETWEEN(U11,U12)","v":88},null,4,{"$f":"RANDBETWEEN(X11,X12)","v":110},null,5,{"$f":"RANDBETWEEN(AA11,AA12)","v":145}]
[null,null,null,null,null,null,null,null,null,null,null,null,null,"Alarm"]
[null,null,null,null,null,null,null,null,null,null,null,null,null,1,{"$f":"IF(O15<O6,-10,NA())","v":{"$error":"#N/A"}},null,2,{"$f":"IF(R15<R6,-10,NA())","v":{"$error":"#N/A"}},null,3,{"$f":"IF(U15<U6,-10,NA())","v":-10},null,4,{"$f":"IF(X15<X6,-10,NA())","v":{"$error":"#N/A"}},null,5,{"$f":"IF(AA15<AA6,-10,NA())","v":-10}]
[]
[]
[]
[]
[]
[]
[null,null,null,null,null,null,null,null,null,null,null,{"$f":"+X15/100","v":1.73}]
[]
[]
[]
[]
[]
[null,null,null,null,null,null,null,null,null,null,null,null,null,"KPI 1"]
[null,null,null,null,null,null,null,null,null,null,null,null,null,"KPI 2"]
[null,null,null,null,null,null,null,null,null,null,null,null,null,"KPI 3"]
[null,null,null,null,null,null,null,null,null,null,null,null,null,"KPI 4"]
[null,null,null,null,null,null,null,null,null,null,null,null,null,"KPI 5"]
[]
[]
[]
[]
[]
[null,null,null,null,null,null,null,null,null,null,null,null,"These are a few examples of bullet charts using a scatterplot with large line widths to simulate bars"]
[null,null,null,null,null,null,null,null,null,null,null,null,"They also include na alarm (red dot). The data above is randomly generated, so if you can't see the alarm just keep pressing F9."]
[null,null,null,null,null,null,null,null,null,null,null,null,"Excel doesn't include a vertical marker but, since you can use an image as a marker, just make a vertical line (this ons is 10x2 pixels)."]

{"sheet":"US Regions","index":11,"n_rows":73,"n_cols":9,"rows_kept":73,"cut":false,"hidden":false,"merged":[]}
["Region 1: Northeast"]
["Division 1: New England (Connecticut"," Maine"," Massachusetts"," New Hampshire"," Rhode Island","Vermont"]
["Division 2: Mid-Atlantic (New Jersey"," New York","Pennsylvania"]
["Region 2: Midwest"]
["Division 3: East North Central (Illinois"," Indiana"," Michigan"," Ohio","Wisconsin"]
["Division 4: West North Central (Iowa"," Kansas"," Minnesota"," Missouri"," Nebraska"," North Dakota","South Dakota"]
["Region 3: South"]
["Division 5: South Atlantic (Delaware"," Florida"," Georgia"," Maryland"," North Carolina"," South Carolina"," Virginia"," Washington D.C."," West Virginia"]
["Division 6: East South Central (Alabama"," Kentucky"," Mississippi"," Tennessee"]
["Division 7: West South Central (Arkansas"," Louisiana"," Oklahoma"," Texas"]
["Region 4: West"]
["Division 8: Mountain (Arizona"," Colorado"," Idaho"," Montana"," Nevada"," New Mexico"," Utah"," Wyoming"]
["Division 9: Pacific (Alaska"," California"," Hawaii"," Oregon"," Washington"]
[]
[]
[]
[]
[]
[]
[]
[null,null,null,null,null,"State Code"]
[null,"State","Region","Division"]
[null,"Connecticut","Region 1: Northeast","Division 1: New England",{"$f":"VALUE(MID(C23,8,1))","v":1},"CT"]
[null,"Maine","Region 1: Northeast","Division 1: New England",{"$f":"VALUE(MID(C24,8,1))","v":1},"ME"]
[null,"Massachusetts","Region 1: Northeast","Division 1: New England",1,"MA"]
[null,"New Hampshire","Region 1: Northeast","Division 1: New England",1,"NH"]
[null,"Rhode Island","Region 1: Northeast","Division 1: New England",1,"RI"]
[null,"Vermont","Region 1: Northeast","Division 1: New England",1,"VT"]
[null,"New Jersey","Region 1: Northeast","Division 2: Mid-Atlantic ",1,"NJ"]
[null,"New York","Region 1: Northeast","Division 2: Mid-Atlantic ",1,"NY"]
[null,"Pennsylvania","Region 1: Northeast","Division 2: Mid-Atlantic ",1,"PA"]
[null,"Illinois","Region 2: Midwest","Division 3: East North Central",2,"IL"]
[null,"Indiana","Region 2: Midwest","Division 3: East North Central",2,"IN"]
[null,"Michigan","Region 2: Midwest","Division 3: East North Central",2,"MI"]
[null,"Ohio","Region 2: Midwest","Division 3: East North Central",2,"OH"]
[null,"Wisconsin","Region 2: Midwest","Division 3: East North Central",2,"WI"]
[null,"Iowa","Region 2: Midwest","Division 4: West North Central",2,"IA"]
[null,"Kansas","Region 2: Midwest","Division 4: West North Central",2,"KS"]
[null,"Minnesota","Region 2: Midwest","Division 4: West North Central",2,"MN"]
[null,"Missouri","Region 2: Midwest","Division 4: West North Central",2,"MO"]
[null,"Nebraska","Region 2: Midwest","Division 4: West North Central",2,"NE"]
[null,"North Dakota","Region 2: Midwest","Division 4: West North Central",2,"ND"]
[null,"South Dakota","Region 2: Midwest","Division 4: West North Central",2,"SD"]
[null,"Delaware","Region 3: South","Division 5: South Atlantic ",3,"DE"]
[null,"Florida","Region 3: South","Division 5: South Atlantic ",3,"FL"]
[null,"Georgia","Region 3: South","Division 5: South Atlantic ",3,"GA"]
[null,"Maryland","Region 3: South","Division 5: South Atlantic ",3,"MD"]
[null,"North Carolina","Region 3: South","Division 5: South Atlantic ",3,"NC"]
[null,"South Carolina","Region 3: South","Division 5: South Atlantic ",3,"SC"]
[null,"Virginia","Region 3: South","Division 5: South Atlantic ",3,"VA"]
["Washington D.C.","District of Columbia","Region 3: South","Division 5: South Atlantic ",3,"DC"]
[null,"West Virginia","Region 3: South","Division 5: South Atlantic ",3,"WV"]
[null,"Alabama","Region 3: South","Division 6: East South Central ",3,"AL"]
[null,"Kentucky","Region 3: South","Division 6: East South Central ",3,"KY"]
[null,"Mississippi","Region 3: South","Division 6: East South Central ",3,"MS"]
[null,"Tennessee","Region 3: South","Division 6: East South Central ",3,"TN"]
[null,"Arkansas","Region 3: South","Division 7: West South Central ",3,"AR"]
[null,"Louisiana","Region 3: South","Division 7: West South Central ",3,"LA"]
[null,"Oklahoma","Region 3: South","Division 7: West South Central ",3,"OK"]
[null,"Texas","Region 3: South","Division 7: West South Central ",3,"TX"]
[null,"Arizona","Region 4: West","Division 8: Mountain ",4,"AZ"]
[null,"Colorado","Region 4: West","Division 8: Mountain ",4,"CO"]
[null,"Idaho","Region 4: West","Division 8: Mountain ",4,"ID"]
[null,"Montana","Region 4: West","Division 8: Mountain ",4,"MT"]
[null,"Nevada","Region 4: West","Division 8: Mountain ",4,"NV"]
[null,"New Mexico","Region 4: West","Division 8: Mountain ",4,"NM"]
[null,"Utah","Region 4: West","Division 8: Mountain ",4,"UT"]
[null,"Wyoming","Region 4: West","Division 8: Mountain ",4,"WY"]
[null,"Alaska","Region 4: West","Division 9: Pacific ",4,"AK"]
[null,"California","Region 4: West","Division 9: Pacific ",4,"CA"]
[null,"Hawaii","Region 4: West","Division 9: Pacific ",4,"HI"]
[null,"Oregon","Region 4: West","Division 9: Pacific ",4,"OR"]
[null,"Washington","Region 4: West","Division 9: Pacific ",4,"WA"]